{"text_format":"3","workbook":"xlsx","n_sheets":3,"sheets":["Sheet1","RTBA","AC"],"not_rendered":{"images":1,"defined_names":8,"comments":1},"read":"whole","date_system":"1900"}

{"sheet":"Sheet1","index":0,"n_rows":112,"n_cols":11,"rows_kept":112,"merged":[[0,0,0,10],[1,0,1,10],[2,0,2,10],[3,0,3,10],[6,1,6,10],[7,1,7,10],[8,0,8,10],[9,0,9,10],[10,0,10,10],[11,0,11,10],[12,0,12,1],[12,2,12,3],[12,5,12,6],[12,7,12,8],[12,9,12,10],[13,0,13,1],[13,2,13,6],[13,9,13,10],[14,0,14,3],[14,4,14,6],[15,0,15,3],[15,4,15,6],[16,0,16,10],[17,0,17,10],[18,1,18,10],[19,1,19,10],[20,1,20,10],[21,1,21,10],[22,1,22,10],[23,1,23,10],[24,1,24,10],[25,1,25,10],[26,1,26,10],[27,0,27,10],[28,0,28,10],[29,1,29,10],[30,1,30,10],[31,1,31,3],[31,4,31,10],[32,0,32,3],[32,4,32,10],[33,0,33,10],[34,8,34,10],[48,8,49,8],[48,9,49,9],[48,10,49,10],[63,8,64,8],[63,9,64,9],[63,10,64,10],[73,1,73,10],[74,4,74,6],[75,1,75,10],[76,1,76,10],[77,1,77,10],[80,0,80,10],[82,1,82,3],[82,7,82,9],[83,1,83,4],[83,7,83,10],[84,1,84,3],[84,7,84,9],[86,1,86,3],[86,7,86,9],[87,1,87,4],[87,7,87,10],[88,1,88,3],[88,7,88,9],[91,1,91,3],[91,7,91,9],[92,1,92,4],[92,7,92,10],[93,1,93,4],[93,7,93,10],[95,6,95,7],[97,2,97,10],[98,0,98,10],[99,0,99,10],[100,1,100,3],[100,7,100,9],[101,1,101,5],[101,7,101,10],[105,0,105,10],[106,0,106,2],[111,0,111,10]]}
["Major Categorical Funds"]
["Justification of Expenditure for Budget/Expense Transfer"]
["and SPSA Modification"]
["2017-18"]
[]
["Complete this form for the following change in categorical expenditures allocated in the 2017-18 SPSA:"]
[null,"BUDGET transfer within a categorical resource."]
[null,"EXPENSE transfer between and/or into categorical resources.  Budget Transaction Detail Report or Actuals Query  is required highlighting items to transfer."]
[]
["A copy of the SSC meeting minutes showing budget discussion item must be attached."]
["(Minutes must include resource, account, and amounts for both “from” and “to” and the description of the resulting benefit to students)."]
[]
["School Name:",null,{"$f":"VLOOKUP(J13,RTBA!B:C,2,FALSE)","v":"Elementary/Interim"},null,"Date:      ",null,null,"Location Number:",null,"0001"]
["Analyst:",null,{"$f":"VLOOKUP(J13,RTBA!B:I,8,FALSE)","v":""},{"$nulls":4},"Resource Teacher:",null,{"$f":"VLOOKUP(J13,RTBA!B:E,4,FALSE)","v":""}]
["Proposed Funding Resource:"]
["PAR Number (If Required): "]
["Description of Proposed Expenditure:  All expenditures should be listed individually"]
["Expenditure and Benefit to Students and/or Parent Involvement:  How is the money specifically being spent on students?  How will this affect student achievement?  Please explain your rationale for compliance for the use of categorical funds."]
["Example","4301 - Supplemental instructional supplies such as chartpaper, notebooks, and classroom leveled books to enhance ELA classroom instruction."]
["A."]
["B."]
["C."]
["D."]
["E."]
["F."]
["G."]
["H."]
["* Please list amount funded for each item on the following budget page."]
["Reason for Transfer:"]
[null,"Increase to an activity previously identified in SPSA:  "]
[null,"Transfer of expenditures due to clerical error:  "]
[null,"Other (Please specify):  "]
["Required SPSA Modification:"]
["Data used to Justify Expenditure:"]
[null,"CAASP",null,"CELDT",null,"Other (Please Specify) "]
[null,"DRA2",null,"Benchmarks"]
[]
[]
["FROM:","Dept.","Resource","Budget Ref","Account","Program","Class","Fund","Extended","Amount","Description"]
["Example","0001","30100","00",5735,1000,"1110","01000","0000",{"v":2500,"d":"$2,500.00"},{"$f":"IFERROR(VLOOKUP(E40,AC!B:C,2,FALSE),\"\")","v":"Interprogram Svcs/Field Trip"}]
["A.",{"$f":"IF($J13>0,$J13,\"\")","v":"0001"},"     ","00",null,null,"     ","01000","0000","$     ",{"$f":"IFERROR(VLOOKUP(E41,AC!B:C,2,FALSE),\"\")","v":0}]
["B.",{"$f":"IF($J13>0,$J13,\"\")","v":"0001"},"     ","00","     ","     ","     ","01000","0000","$     ",{"$f":"IFERROR(VLOOKUP(E42,AC!B:C,2,FALSE),\"\")","v":""}]
["C.",{"$f":"IF($J13>0,$J13,\"\")","v":"0001"},"     ","00",null,"     ","     ","01000","0000","$     ",{"$f":"IFERROR(VLOOKUP(E43,AC!B:C,2,FALSE),\"\")","v":0}]
["D.",{"$f":"IF($J13>0,$J13,\"\")","v":"0001"},"     ","00","     ","     ","     ","01000","0000","$     ",{"$f":"IFERROR(VLOOKUP(E44,AC!B:C,2,FALSE),\"\")","v":""}]
["E.",{"$f":"IF($J13>0,$J13,\"\")","v":"0001"},"     ","00","     ","     ","     ","01000","0000","$     ",{"$f":"IFERROR(VLOOKUP(E45,AC!B:C,2,FALSE),\"\")","v":""}]
["F.",{"$f":"IF($J13>0,$J13,\"\")","v":"0001"},"     ","00","     ","     ","     ","01000","0000","$     ",{"$f":"IFERROR(VLOOKUP(E46,AC!B:C,2,FALSE),\"\")","v":""}]
["G.",{"$f":"IF($J13>0,$J13,\"\")","v":"0001"},"     ","00","     ","     ","     ","01000","0000","$     ",{"$f":"IFERROR(VLOOKUP(E47,AC!B:C,2,FALSE),\"\")","v":""}]
["H.",{"$f":"IF($J13>0,$J13,\"\")","v":"0001"},"     ","00","     ","     ","     ","01000","0000","$     ",{"$f":"IFERROR(VLOOKUP(E48,AC!B:C,2,FALSE),\"\")","v":""}]
[{"$nulls":8},"Total",{"$f":"SUM(J41:J48)","v":0}]
[]
[]
[]
[]
["TO:","Dept.","Resource","Budget Ref","Account","Program","Class","Fund","Extended","Amount","Description"]
["Example","0001","30100","00",4301,1000,"1110","01000","0000",{"v":2500,"d":"$2,500.00"},{"$f":"IFERROR(VLOOKUP(E55,AC!B:C,2,FALSE),\"\")","v":"Supplies"}]
["A.",{"$f":"IF($J13>0,$J13,\"\")","v":"0001"},"     ","00","     ","     ","     ","01000","0000","$     ",{"$f":"IFERROR(VLOOKUP(E56,AC!B:C,2,FALSE),\"\")","v":""}]
["B.",{"$f":"IF($J13>0,$J13,\"\")","v":"0001"},"     ","00","     ","     ","     ","01000","0000","$     ",{"$f":"IFERROR(VLOOKUP(E57,AC!B:C,2,FALSE),\"\")","v":""}]
["C.",{"$f":"IF($J13>0,$J13,\"\")","v":"0001"},"     ","00","     ","     ","     ","01000","0000","$     ",{"$f":"IFERROR(VLOOKUP(E58,AC!B:C,2,FALSE),\"\")","v":""}]
["D.",{"$f":"IF($J13>0,$J13,\"\")","v":"0001"},"     ","00","     ","     ","     ","01000","0000","$     ",{"$f":"IFERROR(VLOOKUP(E59,AC!B:C,2,FALSE),\"\")","v":""}]
["E.",{"$f":"IF($J13>0,$J13,\"\")","v":"0001"},"     ","00","     ","     ","     ","01000","0000","$     ",{"$f":"IFERROR(VLOOKUP(E60,AC!B:C,2,FALSE),\"\")","v":""}]
["F.",{"$f":"IF($J13>0,$J13,\"\")","v":"0001"},"     ","00","     ","     ","     ","01000","0000","$     ",{"$f":"IFERROR(VLOOKUP(E61,AC!B:C,2,FALSE),\"\")","v":""}]
["G.",{"$f":"IF($J13>0,$J13,\"\")","v":"0001"},"     ","00","     ","     ","     ","01000","0000","$     ",{"$f":"IFERROR(VLOOKUP(E62,AC!B:C,2,FALSE),\"\")","v":""}]
["H.",{"$f":"IF($J13>0,$J13,\"\")","v":"0001"},"     ","00","     ","     ","     ","01000","0000","$     ",{"$f":"IFERROR(VLOOKUP(E63,AC!B:C,2,FALSE),\"\")","v":""}]
[{"$nulls":8},"Total",{"$f":"SUM(J56:J63)","v":0}]
{"$rows_empty":8}
["Site Assurances:"]
[null,"Student achievement data and site plan strategies were reviewed and analyzed.  Based on our findings, the SSC has approved modifying our Single Plan for Student Achievement (SPSA) and categorical budget."]
[null,"List date(s) of SSC meeting(s):"]
[null,"A copy of the SSC meeting minutes showing plan and budget discussion item is attached, and discussion/approval item is highlighted (Includes resource, account, and amounts)."]
[null,"A copy of the Detailed Transaction Report is attached and highlighted (expenses only)."]
[null,"The expense is supplemental to district-provided services."]
[]
["Required Signatures:"]
["The undersigned declare under penalty of perjury that the foregoing is true and correct and that these assurances were signed in San Diego, California, on the date(s) indicated."]
[]
[]
[null,"_____________________________________",{"$nulls":5},"_______________________________________________"]
[null,"Principal (Print Name)",null,null,"Date",null,null,"SSC Chairperson (Print Name)",null,null,"Date"]
[]
[]
[null,"_____________________________________",{"$nulls":5},"_______________________________________________"]
[null,"Principal's Signature",null,null,"Date",null,null,"SSC Chairperson's Signature",null,null,"Date"]
[]
[]
[]
[null,"_____________________________________",{"$nulls":5},"____________________________________________"]
[null,"  Date Received by FPMA Department",{"$nulls":5},"  Reviewed by FPMA Resource Teacher"]
[]
[{"$nulls":6},"Approved",null,"________","Denied","_______"]
[]
["         Comments: ",null,"_________________________________________________________________________________________________"]
["________________________________________________________________________________________________________________"]
["________________________________________________________________________________________________________________"]
[]
[null,"Received by Analyst:______________________",{"$nulls":5},"Date Posted:___________________"]
[]
[]
[]
["    Attach this form to appropriate documentation WITH original signatures."]
["Submit all documents to:",null,null,"Financial Planning, Monitoring and Accountability Department"]
[{"$nulls":3},"Eugene Brucker Education Center"]
[{"$nulls":3},"4100 Normal Street, Room 3209"]
[{"$nulls":3},"San Diego, CA 92103-2682"]
[]
["Retain a copy at your site in the SSC Notebook once transfer is approved"]

{"sheet":"RTBA","index":1,"n_rows":1342,"n_cols":11,"rows_kept":1342,"hidden":true}
["DeptID",null,"Long Description","RT","RT1","RT3","RT4","BA","BA 2","BA3","BA4"]
[0,{"$f":"TEXT(A2,\"0000\")","v":"0000"},"All Cost Centers Combined",null,{"$f":"IFERROR(VLOOKUP(D2,F:G,2,FALSE),\"\")","v":""},"MJ","Mary Johnson: 619-725-5611",null,{"$f":"IFERROR(VLOOKUP(H2,J:K,2,FALSE),\"\")","v":""},"BG","Bich Ha Groll: 619-725-7788"]
[1,{"$f":"TEXT(A3,\"0000\")","v":"0001"},"Elementary/Interim",null,{"$f":"IFERROR(VLOOKUP(D3,F:G,2,FALSE),\"\")","v":""},"DG","Dario Gutierrez: 619-725-7785","BT1",{"$f":"IFERROR(VLOOKUP(H3,J:K,2,FALSE),\"\")","v":""},"TJ","Tammy Jackson: 619-725-7640"]
[2,"0002","Elementary/Personnel",null,"","SJKW","Susan Weinshanker: 619-725-5614","BT1","","RC","Rita Clegg: 619-725-7644"]
[3,"0003","Adams Elementary","MJ","Mary Johnson: 619-725-5611",null,null,"BG","Bich Ha Groll: 619-725-7788","TR","Tenya Rushing: 619-725-7637"]
[4,"0004","Alcott Elementary","MJ","Mary Johnson: 619-725-5611",null,null,"TJ","Tammy Jackson: 619-725-7640","DG","Debbie Glanz: 619-725-7619"]
[5,"0005","Andersen Elementary",null,"",{"$nulls":3},"","BH","Bill Hallaran: 619-725-7631"]
[6,"0006","Adams Annex",null,"",null,null,"inactive","","SDS","Sally Dexter-Smith: 619-725-7627"]
[7,"0007","Angier Elementary","DG","Dario Gutierrez: 619-725-7785",null,null,"RC","Rita Clegg: 619-725-7644","MH","Maurice Hernandez: 619-725-7647"]
[8,"0008","Audeo",null,"",null,null,"AD","","MS","Michelle Speegle: 619-725-7634"]
[9,"0009","Audubon K-8","DG","Dario Gutierrez: 619-725-7785",null,null,"TR","Tenya Rushing: 619-725-7637","DA","Dawn Ahlers: 619-725-7621"]
[10,"0010","e3 Civic High",null,"",null,null,"AD","","PH","Paula Hall: 619-725-7639"]
[11,"0011","Baker Elementary","DG","Dario Gutierrez: 619-725-7785",null,null,"DG","Debbie Glanz: 619-725-7619","TV","Tania Valero: 619-725-7638"]
[12,"0012","Balboa Park Program",null,"",null,null,"ML","Margaret Latham: 619-725-7472","JM3","Joy Milus: 619-725-7787"]
[13,"0013","Balboa Elementary","DG","Dario Gutierrez: 619-725-7785",null,null,"DG","Debbie Glanz: 619-725-7619","JC","Jeff Clemons: 619-725-7783"]
[14,"0014","Old Town Academy K-8 Charter",null,"",null,null,"AD","","GS","Gustav Swanson: 619-725-7616"]
[15,"0015","Bandini Elementary",null,"",null,null,"inactive","","ML","Margaret Latham: 619-725-7472"]
[16,"0016","Elevate Elementary CS",null,"",null,null,"AD",""]
[17,"0017","Barnard Elementary","DG","Dario Gutierrez: 619-725-7785",null,null,"JM3","Joy Milus: 619-725-7787"]
[18,"0018","Learning Choice Academy",null,"",null,null,"AD",""]
[19,"0019","Linda Vista Annex",null,"",null,null,"inactive",""]
[21,"0021","Bay Park Elementary","MJ","Mary Johnson: 619-725-5611",null,null,"TJ","Tammy Jackson: 619-725-7640"]
[22,"0022","High Tech Elementary",null,"",null,null,"AD",""]
[23,"0023","Bayview Terrace Elementary",null,"",null,null,"inactive",""]
[24,"0024","Ingenuity Charter School",null,"",null,null,"AD",""]
[25,"0025","Beale Elementary",null,"",{"$nulls":3},""]
[26,"0026","King-Chavez Arts Academy",null,"",null,null,"AD",""]
[27,"0027","Benchley",null,"",null,null,"inactive",""]
[28,"0028","Thrive Public School",null,"",null,null,"AD",""]
[29,"0029","Bird Rock Elementary","MJ","Mary Johnson: 619-725-5611",null,null,"RC","Rita Clegg: 619-725-7644"]
[31,"0031","Birney Elementary","MJ","Mary Johnson: 619-725-5611",null,null,"TR","Tenya Rushing: 619-725-7637"]
[33,"0033","Boone Elementary","DG","Dario Gutierrez: 619-725-7785",null,null,"TR","Tenya Rushing: 619-725-7637"]
[35,"0035","Breen",null,"",{"$nulls":3},""]
[37,"0037","Brooklyn Elementary",null,"",null,null,"inactive",""]
[39,"0039","Burbank Elementary","MJ","Mary Johnson: 619-725-5611",null,null,"BG","Bich Ha Groll: 619-725-7788"]
[41,"0041","Cabrillo Elementary","DG","Dario Gutierrez: 619-725-7785",null,null,"JM3","Joy Milus: 619-725-7787"]
[43,"0043","Cadman Elementary","MJ","Mary Johnson: 619-725-5611",null,null,"TJ","Tammy Jackson: 619-725-7640"]
[44,"0044","King-Chavez Primary Academy",null,"",null,null,"AD",""]
[45,"0045","Camp Cuyamaca",null,"",{"$nulls":3},""]
[47,"0047","Camp Denver C. Fox",null,"",{"$nulls":3},""]
[49,"0049","Camp Maston",null,"",{"$nulls":3},""]
[51,"0051","Camp Palomar",null,"",{"$nulls":3},""]
[52,"0052","Jola Community Charter",null,"",null,null,"AD",""]
[55,"0055","Carson Elementary","DG","Dario Gutierrez: 619-725-7785",null,null,"RC","Rita Clegg: 619-725-7644"]
[56,"0056","Childrens Conservation Academy",null,"",null,null,"inactive",""]
[57,"0057","Carver Elementary","MJ","Mary Johnson: 619-725-5611",null,null,"MH","Maurice Hernandez: 619-725-7647"]
[58,"0058","Central/Cal-Trans Project",null,"",{"$nulls":3},""]
[59,"0059","Central Elementary","MJ","Mary Johnson: 619-725-5611",null,null,"BG","Bich Ha Groll: 619-725-7788"]
[60,"0060","Chavez Elementary","DG","Dario Gutierrez: 619-725-7785",null,null,"DG","Debbie Glanz: 619-725-7619"]
[61,"0061","Chesterton Elementary","DG","Dario Gutierrez: 619-725-7785",null,null,"RC","Rita Clegg: 619-725-7644"]
[62,"0062","Cherokee Point Elementary","MJ","Mary Johnson: 619-725-5611",null,null,"BG","Bich Ha Groll: 619-725-7788"]
[63,"0063","Chollas/Mead Elementary","DG","Dario Gutierrez: 619-725-7785",null,null,"DG","Debbie Glanz: 619-725-7619"]
[65,"0065","Clay Elementary","MJ","Mary Johnson: 619-725-5611",null,null,"MH","Maurice Hernandez: 619-725-7647"]
[66,"0066","Civita Property",null,"",null,null,"GS","Gustav Swanson: 619-725-7616"]
[67,"0067","Cleveland Elementary",null,"",{"$nulls":3},""]
[68,"0068","King-Chavez Athletics Academy",null,"",null,null,"AD",""]
[71,"0071","Crocket Site",null,"",{"$nulls":3},""]
[73,"0073","Crown Point Elementary","DG","Dario Gutierrez: 619-725-7785",null,null,"JM3","Joy Milus: 619-725-7787"]
[74,"0074","Iftin Charter",null,"",null,null,"AD",""]
[75,"0075","Cubberley Elementary","DG","Dario Gutierrez: 619-725-7785",null,null,"RC","Rita Clegg: 619-725-7644"]
[76,"0076","Magnolia Science Academy",null,"",null,null,"AD",""]
[77,"0077","Curie Elementary","DG","Dario Gutierrez: 619-725-7785",null,null,"BG","Bich Ha Groll: 619-725-7788"]
[78,"0078","Dailard Elementary","MJ","Mary Johnson: 619-725-5611",null,null,"TJ","Tammy Jackson: 619-725-7640"]
[79,"0079","Darnall E-Charter",null,"",null,null,"AD",""]
[80,"0080","Dana","DG","Dario Gutierrez: 619-725-7785",null,null,"JM3","Joy Milus: 619-725-7787"]
[82,"0082","King-Chavez Preparatory",null,"",null,null,"AD",""]
[83,{"$f":"TEXT(A67,\"0000\")","v":"0083"},"Decatur Elementary",null,{"$f":"IFERROR(VLOOKUP(D67,F:G,2,FALSE),\"\")","v":""},{"$nulls":3},{"$f":"IFERROR(VLOOKUP(H67,J:K,2,FALSE),\"\")","v":""}]
[85,"0085","Dewey Elementary","DG","Dario Gutierrez: 619-725-7785",null,null,"JM3","Joy Milus: 619-725-7787"]
[86,"0086","Dingeman Elementary","MJ","Mary Johnson: 619-725-5611",null,null,"MH","Maurice Hernandez: 619-725-7647"]
[87,"0087","Doyle Elementary","DG","Dario Gutierrez: 619-725-7785",null,null,"BG","Bich Ha Groll: 619-725-7788"]
[89,"0089","Edison Elementary","MJ","Mary Johnson: 619-725-5611",null,null,"BG","Bich Ha Groll: 619-725-7788"]
[90,"0090","Scripps Elementary","MJ","Mary Johnson: 619-725-5611",null,null,"MH","Maurice Hernandez: 619-725-7647"]
[91,"0091","Emerson/Bandini Elementary","MJ","Mary Johnson: 619-725-5611",null,null,"BG","Bich Ha Groll: 619-725-7788"]
[92,"0092","Einstein Academy",null,"",null,null,"AD",""]
[93,"0093","Encanto Elementary","DG","Dario Gutierrez: 619-725-7785",null,null,"DG","Debbie Glanz: 619-725-7619"]
[95,"0095","Euclid Elementary","MJ","Mary Johnson: 619-725-5611",null,null,"MH","Maurice Hernandez: 619-725-7647"]
[99,"0099","Farnum Center-Site Demolished",null,"",{"$nulls":3},""]
[103,"0103","Field Elementary","MJ","Mary Johnson: 619-725-5611",null,null,"MS","Michelle Speegle: 619-725-7634"]
[105,"0105","Fletcher Elementary","DG","Dario Gutierrez: 619-725-7785",null,null,"RC","Rita Clegg: 619-725-7644"]
[107,"0107","Florence Elementary","MJ","Mary Johnson: 619-725-5611",null,null,"MH","Maurice Hernandez: 619-725-7647"]
[109,"0109","Forward Elementary",null,"",{"$nulls":3},""]
[111,"0111","Foster Elementary","MJ","Mary Johnson: 619-725-5611",null,null,"TJ","Tammy Jackson: 619-725-7640"]
[113,"0113","Franklin Elementary","MJ","Mary Johnson: 619-725-5611",null,null,"BG","Bich Ha Groll: 619-725-7788"]
[115,"0115","Freese Elementary","DG","Dario Gutierrez: 619-725-7785",null,null,"TR","Tenya Rushing: 619-725-7637"]
[117,"0117","Fremont Elementary",null,"",{"$nulls":3},""]
[118,"0118","So.Ca. Connections Acad Chrtr",null,"",null,null,"AD",""]
[119,"0119","Fulton K-8","DG","Dario Gutierrez: 619-725-7785",null,null,"TR","Tenya Rushing: 619-725-7637"]
[121,"0121","Gage Elementary","MJ","Mary Johnson: 619-725-5611",null,null,"TJ","Tammy Jackson: 619-725-7640"]
[122,"0122","Gage/Adams Annex",null,"",null,null,"inactive",""]
[123,"0123","Bethune K-8","DG","Dario Gutierrez: 619-725-7785",null,null,"TR","Tenya Rushing: 619-725-7637"]
[124,"0124","Garfield Elementary","MJ","Mary Johnson: 619-725-5611",null,null,"JC","Jeff Clemons: 619-725-7783"]
[125,"0125","Zamorano Elementary","DG","Dario Gutierrez: 619-725-7785",null,null,"TR","Tenya Rushing: 619-725-7637"]
[126,"0126","City Arts Academy Charter Sch",null,"",null,null,"inactive",""]
[127,"0127","Grant K-8","MJ","Mary Johnson: 619-725-5611",null,null,"TR","Tenya Rushing: 619-725-7637"]
[128,"0128","Golden Hill K-8","MJ","Mary Johnson: 619-725-5611",null,null,"MS","Michelle Speegle: 619-725-7634"]
[129,"0129","Grantville Elementary",null,"",{"$nulls":3},""]
[130,"0130","Joyner Elementary","MJ","Mary Johnson: 619-725-5611",null,null,"BG","Bich Ha Groll: 619-725-7788"]
[131,"0131","Green Elementary","MJ","Mary Johnson: 619-725-5611",null,null,"TJ","Tammy Jackson: 619-725-7640"]
[132,"0132","Fay",null,"",null,null,"inactive",""]
[133,"0133","Salk Elementary",null,"",{"$nulls":3},""]
[134,"0134","Hage Elementary","DG","Dario Gutierrez: 619-725-7785",null,null,"DA","Dawn Ahlers: 619-725-7621"]
[135,"0135","Hamilton Elementary","MJ","Mary Johnson: 619-725-5611",null,null,"BG","Bich Ha Groll: 619-725-7788"]
[136,"0136","Hancock Elementary","DG","Dario Gutierrez: 619-725-7785",null,null,"TR","Tenya Rushing: 619-725-7637"]
[137,"0137","Rodriguez Elementary","MJ","Mary Johnson: 619-725-5611",null,null,"ML","Margaret Latham: 619-725-7472"]
[139,"0139","Hardy Elementary","MJ","Mary Johnson: 619-725-5611",null,null,"TJ","Tammy Jackson: 619-725-7640"]
[141,"0141","Hawthorne Elementary","MJ","Mary Johnson: 619-725-5611",null,null,"MS","Michelle Speegle: 619-725-7634"]
[143,"0143","Hearst Elementary","MJ","Mary Johnson: 619-725-5611",null,null,"TJ","Tammy Jackson: 619-725-7640"]
[144,"0144","Holly Drive Leadership Academy",null,"",null,null,"AD",""]
[147,"0147","Holmes Elementary","MJ","Mary Johnson: 619-725-5611",null,null,"TJ","Tammy Jackson: 619-725-7640"]
[148,"0148","Hoover Cluster 5Th Gr",null,"",{"$nulls":3},""]
[149,"0149","Horton Elementary","DG","Dario Gutierrez: 619-725-7785",null,null,"DG","Debbie Glanz: 619-725-7619"]
[150,"0150","Ibarra Elementary","MJ","Mary Johnson: 619-725-5611",null,null,"MH","Maurice Hernandez: 619-725-7647"]
[153,"0153","Fay Elementary","MJ","Mary Johnson: 619-725-5611",null,null,"MH","Maurice Hernandez: 619-725-7647"]
[155,"0155","Jefferson Elementary","MJ","Mary Johnson: 619-725-5611",null,null,"JC","Jeff Clemons: 619-725-7783"]
[156,"0156","Jerabek Elementary","MJ","Mary Johnson: 619-725-5611",null,null,"MH","Maurice Hernandez: 619-725-7647"]
[157,"0157","Johnson Elementary","DG","Dario Gutierrez: 619-725-7785",null,null,"DG","Debbie Glanz: 619-725-7619"]
[159,"0159","Jones Elementary","DG","Dario Gutierrez: 619-725-7785",null,null,"RC","Rita Clegg: 619-725-7644"]
[160,"0160","King-Chavez Acad of Excellence",null,"",null,null,"AD",""]
[161,"0161","Juarez Elementary","DG","Dario Gutierrez: 619-725-7785",null,null,"RC","Rita Clegg: 619-725-7644"]
[162,"0162","Kimbrough Elementary","MJ","Mary Johnson: 619-725-5611",null,null,"ML","Margaret Latham: 619-725-7472"]
[163,"0163","Keiller Elementary",null,"",null,null,"inactive",""]
[164,"0164","Kennedy Elementary",null,"",null,null,"inactive",""]
[165,"0165","Knox Elementary",null,"",null,null,"inactive",""]
[166,"0166","Kumeyaay Elementary","DG","Dario Gutierrez: 619-725-7785",null,null,"TR","Tenya Rushing: 619-725-7637"]
[167,"0167","Lafayette Elementary","MJ","Mary Johnson: 619-725-5611",null,null,"MS","Michelle Speegle: 619-725-7634"]
[169,"0169","La Jolla Elementary","MJ","Mary Johnson: 619-725-5611",null,null,"RC","Rita Clegg: 619-725-7644"]
[170,"0170","Language Academy","MJ","Mary Johnson: 619-725-5611",null,null,"JM3","Joy Milus: 619-725-7787"]
[171,"0171","Pacific View Leadership Elementary","DG","Dario Gutierrez: 619-725-7785",null,null,"TR","Tenya Rushing: 619-725-7637"]
[172,"0172","America's Finest",null,"",null,null,"AD",""]
[173,"0173","Linda Vista Elementary","DG","Dario Gutierrez: 619-725-7785",null,null,"RC","Rita Clegg: 619-725-7644"]
[175,{"$f":"TEXT(A131,\"0000\")","v":"0175"},"Lindbergh/Schweitzer Elem","MJ",{"$f":"IFERROR(VLOOKUP(D131,F:G,2,FALSE),\"\")","v":"Mary Johnson: 619-725-5611"},null,null,"MS",{"$f":"IFERROR(VLOOKUP(H131,J:K,2,FALSE),\"\")","v":"Michelle Speegle: 619-725-7634"}]
[176,"0176","Fanno Academy",null,"",null,null,"AD",""]
[177,"0177","Logan K-8","MJ","Mary Johnson: 619-725-5611",null,null,"MS","Michelle Speegle: 619-725-7634"]
[179,"0179","Loma Portal Elementary","DG","Dario Gutierrez: 619-725-7785",null,null,"JM3","Joy Milus: 619-725-7787"]
[181,"0181","Longfellow K-8","MJ","Mary Johnson: 619-725-5611",null,null,"JM3","Joy Milus: 619-725-7787"]
[184,"0184","Low Elementary Site",null,"",{"$nulls":3},""]
[185,"0185","Perkins K-8","MJ","Mary Johnson: 619-725-5611",null,null,"BG","Bich Ha Groll: 619-725-7788"]
[186,"0186","Department 0186 (086 error)",null,"",{"$nulls":3},""]
[187,"0187","Macdowell",null,"",{"$nulls":3},""]
[188,"0188","Macdowell Elementary",null,"",null,null,"inactive",""]
[193,"0193","Marcy Elementary",null,"",{"$nulls":3},""]
[195,"0195","Marshall Elementary","MJ","Mary Johnson: 619-725-5611",null,null,"MH","Maurice Hernandez: 619-725-7647"]
[197,"0197","Marvin Elementary","MJ","Mary Johnson: 619-725-5611",null,null,"TJ","Tammy Jackson: 619-725-7640"]
[199,"0199","Mason Elementary","DG","Dario Gutierrez: 619-725-7785",null,null,"DA","Dawn Ahlers: 619-725-7621"]
[200,"0200","Jonas Salk Elementary","DG","Dario Gutierrez: 619-725-7785",null,null,"DA","Dawn Ahlers: 619-725-7621"]
[201,"0201","Hickman Elementary","DG","Dario Gutierrez: 619-725-7785",null,null,"DA","Dawn Ahlers: 619-725-7621"]
[203,"0203","McKinley Elementary","MJ","Mary Johnson: 619-725-5611",null,null,"ML","Margaret Latham: 619-725-7472"]
[205,"0205","Mead Elementary",null,"",null,null,"inactive",""]
[206,"0206","Miller Elementary","DG","Dario Gutierrez: 619-725-7785",null,null,"TR","Tenya Rushing: 619-725-7637"]
[208,"0208","North Park Elementary",null,"",null,null,"inactive",""]
[210,"0210","Miramar Ranch Elementary","MJ","Mary Johnson: 619-725-5611",null,null,"MH","Maurice Hernandez: 619-725-7647"]
[211,"0211","Mission Bch Admin Ctr-see 5211",null,"",{"$nulls":3},""]
[212,"0212","Nubia Leadership Academy",null,"",null,null,"AD",""]
[213,"0213","Available Department",null,"",{"$nulls":3},""]
[214,"0214","Tubman Village",null,"",null,null,"AD",""]
[215,"0215","Normal Heights Elementary","MJ","Mary Johnson: 619-725-5611",null,null,"BG","Bich Ha Groll: 619-725-7788"]
[216,"0216","New School 2",null,"",{"$nulls":3},""]
[217,"0217","Ericson Elementary","DG","Dario Gutierrez: 619-725-7785",null,null,"DA","Dawn Ahlers: 619-725-7621"]
[218,"0218","Nye Elementary","DG","Dario Gutierrez: 619-725-7785",null,null,"DG","Debbie Glanz: 619-725-7619"]
[219,"0219","Sandburg Elementary","DG","Dario Gutierrez: 619-725-7785",null,null,"DA","Dawn Ahlers: 619-725-7621"]
[220,"0220","Museum School",null,"",null,null,"AD",""]
[221,"0221","Health Sciences High",null,"",null,null,"AD",""]
[222,"0222","Arroyo Paseo High",null,"",null,null,"AD",""]
[223,"0223","Oak Park Elementary","MJ","Mary Johnson: 619-725-5611",null,null,"MH","Maurice Hernandez: 619-725-7647"]
[225,"0225","Ocean Beach Elementary","DG","Dario Gutierrez: 619-725-7785",null,null,"JM3","Joy Milus: 619-725-7787"]
[227,"0227","Pacific Beach Elementary","DG","Dario Gutierrez: 619-725-7785",null,null,"JM3","Joy Milus: 619-725-7787"]
[229,"0229","Paradise Hills Elementary","DG","Dario Gutierrez: 619-725-7785",null,null,"TR","Tenya Rushing: 619-725-7637"]
[230,"0230","Rosa Parks Elementary","MJ","Mary Johnson: 619-725-5611",null,null,"BG","Bich Ha Groll: 619-725-7788"]
[231,"0231","Rosa Parks Annex 338",null,"",null,null,"inactive",""]
[232,"0232","Department 0232 (235 error)",null,"",{"$nulls":3},""]
[235,"0235","Penn Elementary","DG","Dario Gutierrez: 619-725-7785",null,null,"TR","Tenya Rushing: 619-725-7637"]
[236,"0236","Porter Elementary","DG","Dario Gutierrez: 619-725-7785",null,null,"DG","Debbie Glanz: 619-725-7619"]
[237,"0237","Perry Elementary","DG","Dario Gutierrez: 619-725-7785",null,null,"TR","Tenya Rushing: 619-725-7637"]
[238,"0238","Promise Elementary",null,"",null,null,"AD",""]
[239,"0239","Porter Elementary School",null,"",{"$nulls":3},""]
[243,"0243","Rolando Park Elementary","MJ","Mary Johnson: 619-725-5611",null,null,"MH","Maurice Hernandez: 619-725-7647"]
[247,"0247","Ross Elementary","DG","Dario Gutierrez: 619-725-7785",null,null,"RC","Rita Clegg: 619-725-7644"]
[249,"0249","Rowan Elementary","MJ","Mary Johnson: 619-725-5611",null,null,"BG","Bich Ha Groll: 619-725-7788"]
[250,"0250","Garfield Elementary 99/2000",null,"",{"$nulls":3},""]
[251,"0251","Scripps Elementary",null,"",null,null,"inactive",""]
[252,"0252","Garfield Annex 99/2000",null,"",{"$nulls":3},""]
[253,"0253","Sequoia Elementary","MJ","Mary Johnson: 619-725-5611",null,null,"MS","Michelle Speegle: 619-725-7634"]
[254,"0254","McGill School of Success",null,"",null,null,"AD",""]
[255,"0255","Sessions Elementary","DG","Dario Gutierrez: 619-725-7785",null,null,"JM3","Joy Milus: 619-725-7787"]
[256,"0256","San Diego Cooperative",null,"",null,null,"AD",""]
[259,"0259","Sherman Elementary","MJ","Mary Johnson: 619-725-5611",null,null,"MH","Maurice Hernandez: 619-725-7647"]
[260,"0260","Old Town Historical/Cult Pgm",null,"",null,null,"ML","Margaret Latham: 619-725-7472"]
[261,"0261","Silver Gate Elementary","DG","Dario Gutierrez: 619-725-7785",null,null,"JM3","Joy Milus: 619-725-7787"]
[262,"0262","Palomar/Outdoor R/H Rel Educ",null,"",null,null,"ML","Margaret Latham: 619-725-7472"]
[263,"0263","Spreckels Elementary","DG","Dario Gutierrez: 619-725-7785",null,null,"BG","Bich Ha Groll: 619-725-7788"]
[267,"0267","King Elementary",null,"",null,null,"inactive",""]
[269,"0269","Sunset View Elementary","DG","Dario Gutierrez: 619-725-7785",null,null,"JM3","Joy Milus: 619-725-7787"]
[271,"0271","Schweitzer Elementary",null,"",null,null,"inactive",""]
[274,"0274","Tierrasanta Elementary","DG","Dario Gutierrez: 619-725-7785",null,null,"TR","Tenya Rushing: 619-725-7637"]
[275,{"$f":"TEXT(A195,\"0000\")","v":"0275"},"Archive",null,{"$f":"IFERROR(VLOOKUP(D195,F:G,2,FALSE),\"\")","v":""},{"$nulls":3},{"$f":"IFERROR(VLOOKUP(H195,J:K,2,FALSE),\"\")","v":""}]
[277,"0277","Toler Elementary","MJ","Mary Johnson: 619-725-5611",null,null,"TJ","Tammy Jackson: 619-725-7640"]
[279,"0279","Torrey Pines Elementary","MJ","Mary Johnson: 619-725-5611",null,null,"RC","Rita Clegg: 619-725-7644"]
[280,"0280","KIPP Adelante",null,"",null,null,"AD",""]
[283,"0283","Valencia Park Elementary","DG","Dario Gutierrez: 619-725-7785",null,null,"DG","Debbie Glanz: 619-725-7619"]
[284,"0284","Vista Grande Elementary","DG","Dario Gutierrez: 619-725-7785",null,null,"TR","Tenya Rushing: 619-725-7637"]
[285,"0285","Walker Elementary","DG","Dario Gutierrez: 619-725-7785",null,null,"DA","Dawn Ahlers: 619-725-7621"]
[287,"0287","Washington Elementary","MJ","Mary Johnson: 619-725-5611",null,null,"JC","Jeff Clemons: 619-725-7783"]
[289,"0289","Webster Elementary","DG","Dario Gutierrez: 619-725-7785",null,null,"DG","Debbie Glanz: 619-725-7619"]
[291,"0291","Wegeforth Elementary","DG","Dario Gutierrez: 619-725-7785",null,null,"RC","Rita Clegg: 619-725-7644"]
[293,"0293","Benchley/Weinberger Elementary","MJ","Mary Johnson: 619-725-5611",null,null,"TJ","Tammy Jackson: 619-725-7640"]
[295,"0295","Whitman Elementary","MJ","Mary Johnson: 619-725-5611",null,null,"MS","Michelle Speegle: 619-725-7634"]
[296,"0296","Knox Middle","DG","Dario Gutierrez: 619-725-7785",null,null,"DG","Debbie Glanz: 619-725-7619"]
[297,"0297","Whittier K-12","DG","Dario Gutierrez: 619-725-7785",null,null,"PH","Paula Hall: 619-725-7639"]
[299,"0299","Wiggin School",null,"",null,null,"inactive",""]
[301,"0301","Secondary/Personnel",null,"",null,null,"BT1",""]
[302,"0302","Bell Middle","DG","Dario Gutierrez: 619-725-7785",null,null,"TR","Tenya Rushing: 619-725-7637"]
[303,"0303","Challenger Middle","DG","Dario Gutierrez: 619-725-7785",null,null,"DA","Dawn Ahlers: 619-725-7621"]
[304,"0304","Correia Middle","DG","Dario Gutierrez: 619-725-7785",null,null,"JM3","Joy Milus: 619-725-7787"]
[305,"0305","Einstein Academy Middle",null,"",null,null,"AD",""]
[306,"0306","High Tech Middle",null,"",null,null,"AD",""]
[307,"0307","Kroc Middle",null,"",null,null,"inactive",""]
[308,"0308","Marshall Middle","MJ","Mary Johnson: 619-725-5611",null,null,"MH","Maurice Hernandez: 619-725-7647"]
[309,"0309","Hale (closed)",null,"",null,null,"inactive",""]
[310,"0310","Creative Performing & Med Arts","MJ","Mary Johnson: 619-725-5611",null,null,"MS","Michelle Speegle: 619-725-7634"]
[311,"0311","Lewis Middle","MJ","Mary Johnson: 619-725-5611",null,null,"TJ","Tammy Jackson: 619-725-7640"]
[312,"0312","Mann Middle School","MJ","Mary Johnson: 619-725-5611",null,null,"MH","Maurice Hernandez: 619-725-7647"]
[313,"0313","Marston Middle","MJ","Mary Johnson: 619-725-5611",null,null,"TJ","Tammy Jackson: 619-725-7640"]
[314,"0314","Bandini Youth Services Center",null,"",{"$nulls":3},""]
[315,"0315","Memorial Academy",null,"",null,null,"AD",""]
[316,"0316","Montgomery Middle","DG","Dario Gutierrez: 619-725-7785",null,null,"RC","Rita Clegg: 619-725-7644"]
[317,"0317","Muirlands Middle","MJ","Mary Johnson: 619-725-5611",null,null,"RC","Rita Clegg: 619-725-7644"]
[318,"0318","SD Global Vision Middle Acad",null,"",null,null,"AD",""]
[319,"0319","O'Farrell Community",null,"",null,null,"AD",""]
[320,"0320","Pacific Beach Middle","DG","Dario Gutierrez: 619-725-7785",null,null,"JM3","Joy Milus: 619-725-7787"]
[321,"0321","Pershing Middle","MJ","Mary Johnson: 619-725-5611",null,null,"TJ","Tammy Jackson: 619-725-7640"]
[322,"0322","Clark Middle","MJ","Mary Johnson: 619-725-5611",null,null,"BG","Bich Ha Groll: 619-725-7788"]
[323,"0323","Cortez Hill Academy",null,"",null,null,"AD",""]
[324,"0324","Roosevelt International Middle","MJ","Mary Johnson: 619-725-5611",null,null,"DA","Dawn Ahlers: 619-725-7621"]
[325,"0325","Standley Middle","DG","Dario Gutierrez: 619-725-7785",null,null,"BG","Bich Ha Groll: 619-725-7788"]
[326,"0326","Taft Middle","DG","Dario Gutierrez: 619-725-7785",null,null,"RC","Rita Clegg: 619-725-7644"]
[327,"0327","De Portola Middle","DG","Dario Gutierrez: 619-725-7785",null,null,"TR","Tenya Rushing: 619-725-7637"]
[328,"0328","Wangenheim Middle","DG","Dario Gutierrez: 619-725-7785",null,null,"DA","Dawn Ahlers: 619-725-7621"]
[329,"0329","Wilson Middle","MJ","Mary Johnson: 619-725-5611",null,null,"BG","Bich Ha Groll: 619-725-7788"]
[330,"0330","Memorial Scholars & Athletes","MJ","Mary Johnson: 619-725-5611",null,null,"TR","Tenya Rushing: 619-725-7637"]
[331,"0331","ALBA","DG","Dario Gutierrez: 619-725-7785",null,null,"TJ","Tammy Jackson: 619-725-7640"]
[332,"0332","Clairemont High","MJ","Mary Johnson: 619-725-5611",null,null,"TJ","Tammy Jackson: 619-725-7640"]
[333,"0333","Connections",null,"",null,null,"inactive",""]
[334,"0334","Crawford High","MJ","Mary Johnson: 619-725-5611",null,null,"MH","Maurice Hernandez: 619-725-7647"]
[335,"0335","Gompers High",null,"",null,null,"inactive",""]
[336,"0336","Henry High","MJ","Mary Johnson: 619-725-5611",null,null,"TJ","Tammy Jackson: 619-725-7640"]
[337,"0337","Wings/You Als Sec",null,"",null,null,"inactive",""]
[338,"0338","Hoover High","MJ","Mary Johnson: 619-725-5611",null,null,"BG","Bich Ha Groll: 619-725-7788"]
[339,"0339","High Tech High",null,"",null,null,"AD",""]
[340,"0340","Kearny High",null,"",null,null,"inactive",""]
[341,"0341","Millennial Tech Middle","DG","Dario Gutierrez: 619-725-7785",null,null,"DG","Debbie Glanz: 619-725-7619"]
[342,"0342","La Jolla High","MJ","Mary Johnson: 619-725-5611",null,null,"RC","Rita Clegg: 619-725-7644"]
[343,"0343","Innovation Middle","MJ","Mary Johnson: 619-725-5611",null,null,"MS","Michelle Speegle: 619-725-7634"]
[344,"0344","Lincoln High",null,"",null,null,"inactive",""]
[345,"0345","Lincoln Youth Services Center",null,"",{"$nulls":3},""]
[346,"0346","Madison High","MJ","Mary Johnson: 619-725-5611",null,null,"MS","Michelle Speegle: 619-725-7634"]
[347,"0347","Gompers Preparatory Academy",null,"",null,null,"AD",""]
[348,"0348","Preuss School UCSD",null,"",null,null,"AD",""]
[349,"0349","Mira Mesa High","DG","Dario Gutierrez: 619-725-7785",null,null,"DA","Dawn Ahlers: 619-725-7621"]
[350,{"$f":"TEXT(A259,\"0000\")","v":"0350"},"Mission Bay High","DG",{"$f":"IFERROR(VLOOKUP(D259,F:G,2,FALSE),\"\")","v":"Dario Gutierrez: 619-725-7785"},null,null,"JM3",{"$f":"IFERROR(VLOOKUP(H259,J:K,2,FALSE),\"\")","v":"Joy Milus: 619-725-7787"}]
[351,"0351","Twain Satellite/Morse",null,"",null,null,"inactive",""]
[352,"0352","Morse High","DG","Dario Gutierrez: 619-725-7785",null,null,"TR","Tenya Rushing: 619-725-7637"]
[353,"0353","High Tech Middle Media Arts",null,"",null,null,"AD",""]
[354,"0354","Point Loma High","DG","Dario Gutierrez: 619-725-7785",null,null,"JM3","Joy Milus: 619-725-7787"]
[355,"0355","University City High","DG","Dario Gutierrez: 619-725-7785",null,null,"BG","Bich Ha Groll: 619-725-7788"]
[356,"0356","San Diego High",null,"",null,null,"inactive",""]
[357,"0357","Serra High","DG","Dario Gutierrez: 619-725-7785",null,null,"TR","Tenya Rushing: 619-725-7637"]
[358,"0358","Youth Master Chorale",null,"",{"$nulls":3},""]
[359,"0359","Scripps Ranch High","MJ","Mary Johnson: 619-725-5611",null,null,"MH","Maurice Hernandez: 619-725-7647"]
[360,"0360","Magnolia Science Academy 2",null,"",null,null,"inactive",""]
[361,"0361","Garfield High","DG","Dario Gutierrez: 619-725-7785",null,null,"BG","Bich Ha Groll: 619-725-7788"]
[362,"0362","Twain High","DG","Dario Gutierrez: 619-725-7785",null,null,"BG","Bich Ha Groll: 619-725-7788"]
[363,"0363","TRACE West",null,"",null,null,"inactive",""]
[364,"0364","Riley/New Dawn","DG","Dario Gutierrez: 619-725-7785",null,null,"TV","Tania Valero: 619-725-7638"]
[365,"0365","Keiller Leadership Academy",null,"",null,null,"AD",""]
[366,"0366","Charter School of San Diego",null,"",null,null,"AD",""]
[367,"0367","Farb Middle","DG","Dario Gutierrez: 619-725-7785",null,null,"TR","Tenya Rushing: 619-725-7637"]
[368,"0368","San Diego SCPA","DG","Dario Gutierrez: 619-725-7785",null,null,"TR","Tenya Rushing: 619-725-7637"]
[369,"0369","Muir","MJ","Mary Johnson: 619-725-5611",null,null,"TJ","Tammy Jackson: 619-725-7640"]
[370,"0370","San Diego Adult School",null,"",null,null,"DG","Debbie Glanz: 619-725-7619"]
[373,"0373","SEEC Alternative Sites",null,"",{"$nulls":3},""]
[375,"0375","Downtown Library School",null,"",null,null,"inactive",""]
[376,"0376","Urban Discovery Academy",null,"",null,null,"AD",""]
[377,"0377","Innovations Academy",null,"",null,null,"AD",""]
[378,"0378","Parentally Placed Private Schl",null,"",{"$nulls":3},""]
[379,"0379","King-Chavez Community High",null,"",null,null,"AD",""]
[380,"0380","Preschool Language Group",null,"",null,null,"inactive",""]
[382,"0382","Home & Hosp/Transition Support","DG","Dario Gutierrez: 619-725-7785",null,null,"TV","Tania Valero: 619-725-7638"]
[385,"0385","Stars",null,"",null,null,"LP",""]
[386,"0386","ILS Hospital",null,"",{"$nulls":3},""]
[388,"0388","Pacific American Academy",null,"",null,null,"AD",""]
[389,"0389","Nonpublic Schools Enrollment",null,"",{"$nulls":3},""]
[390,"0390","Magnolia Science Academy 3",null,"",null,null,"inactive",""]
[392,"0392","TRACE Center City",null,"",null,null,"TV","Tania Valero: 619-725-7638"]
[393,"0393","TRACE East",null,"",null,null,"TV","Tania Valero: 619-725-7638"]
[394,"0394","Trace - Mesa",null,"",null,null,"TV","Tania Valero: 619-725-7638"]
[395,"0395","Mt. Everest Academy","DG","Dario Gutierrez: 619-725-7785",null,null,"DG","Debbie Glanz: 619-725-7619"]
[396,"0396","Garfield High School/Ind Study",null,"",null,null,"inactive",""]
[397,"0397","Twain Satellite/Marston",null,"",null,null,"inactive",""]
[398,"0398","Twain Main Campus",null,"",null,null,"inactive",""]
[399,"0399","You/C.A.S.",null,"",null,null,"inactive",""]
[400,"0400","Ocean Discovery",null,"",{"$nulls":3},""]
[418,"0418","Adult Learning Center",null,"",null,null,"TV","Tania Valero: 619-725-7638"]
[432,"0432","Learning Center North",null,"",null,null,"inactive",""]
[436,"0436","Spec Ed Learning Centers",null,"",null,null,"inactive",""]
[438,"0438","New Dawn",null,"",null,null,"TV","Tania Valero: 619-725-7638"]
[439,"0439","Del Sol Academy",null,"",null,null,"inactive",""]
[441,"0441","TRACE Martin Luther King",null,"",null,null,"TV","Tania Valero: 619-725-7638"]
[442,"0442","TRACE Linda Vista Rec Ctr",null,"",null,null,"TV","Tania Valero: 619-725-7638"]
[443,"0443","TRACE Mira Mesa Senior Ctr",null,"",null,null,"TV","Tania Valero: 619-725-7638"]
[444,"0444","TRACE Gompers",null,"",null,null,"inactive",""]
[445,"0445","TRACE Ray & Joan Kroc Ctr",null,"",null,null,"TV","Tania Valero: 619-725-7638"]
[448,"0448","TRACE MV (Macy's Hm Store)",null,"",null,null,"inactive",""]
[474,"0474","TRACE Tierrasanta",null,"",null,null,"TV","Tania Valero: 619-725-7638"]
[475,"0475","TRACE Liberty Station",null,"",null,null,"TV","Tania Valero: 619-725-7638"]
[479,"0479","TRACE","DG","Dario Gutierrez: 619-725-7785",null,null,"TV","Tania Valero: 619-725-7638"]
[480,"0480","Center for Positive Change",null,"",null,null,"inactive",""]
[482,"0482","TRACE ECC",null,"",null,null,"TV","Tania Valero: 619-725-7638"]
[483,"0483","New Dawn Diploma/Mesa",null,"",null,null,"PH","Paula Hall: 619-725-7639"]
[484,"0484","TRACE Miramar",null,"",null,null,"TV","Tania Valero: 619-725-7638"]
[485,"0485","TRACE South",null,"",null,null,"TV","Tania Valero: 619-725-7638"]
[487,"0487","TRACE PB Center",null,"",null,null,"TV","Tania Valero: 619-725-7638"]
[489,"0489","TRACE Embarcadero",null,"",null,null,"TV","Tania Valero: 619-725-7638"]
[490,{"$f":"TEXT(A323,\"0000\")","v":"0490"},"TRACE SDSU",null,{"$f":"IFERROR(VLOOKUP(D323,F:G,2,FALSE),\"\")","v":""},null,null,"TV",{"$f":"IFERROR(VLOOKUP(H323,J:K,2,FALSE),\"\")","v":"Tania Valero: 619-725-7638"}]
[500,"0500","San Diego Metro Career & Tech","DG","Dario Gutierrez: 619-725-7785",null,null,"DG","Debbie Glanz: 619-725-7619"]
[501,"0501","Attendance Intervention Center",null,"",null,null,"inactive",""]
[502,"0502","Star Academy",null,"",null,null,"inactive",""]
[503,"0503","East Village High","DG","Dario Gutierrez: 619-725-7785",null,null,"DG","Debbie Glanz: 619-725-7619"]
[504,"0504","iHigh Virtual Academy","DG","Dario Gutierrez: 619-725-7785",null,null,"MS","Michelle Speegle: 619-725-7634"]
[510,"0510","Crawford High Ed Complex",null,"",{"$nulls":3},""]
[511,"0511","Invention & Design Edu Academy",null,"",{"$nulls":3},""]
[512,"0512","Multimedia Visual Arts",null,"",{"$nulls":3},""]
[513,"0513","Health,Fitness&Medical Science",null,"",{"$nulls":3},""]
[514,"0514","School of Law & Business",null,"",{"$nulls":3},""]
[520,"0520","Kearny High Ed Complex",null,"",{"$nulls":3},""]
[521,"0521","Digital Media,Comm, & Design",null,"",{"$nulls":3},""]
[522,"0522","Health,Environm Science & Tech",null,"",{"$nulls":3},""]
[523,"0523","Global Ldrshp & Internat Busin",null,"",{"$nulls":3},""]
[524,"0524","Stanley E. Foster Constr Tech",null,"",{"$nulls":3},""]
[580,"0580","San Diego High Ed Complex",null,"",{"$nulls":3},""]
[581,"0581","School of Internationa Studies",null,"",{"$nulls":3},""]
[582,"0582","Learn,Explore,Achieve,Discover",null,"",{"$nulls":3},""]
[583,"0583","Comm,Investigation in a Multi",null,"",{"$nulls":3},""]
[584,"0584","School of Business",null,"",{"$nulls":3},""]
[585,"0585","Media,Visual & Perform Arts",null,"",{"$nulls":3},""]
[586,"0586","School of Science & Technology",null,"",{"$nulls":3},""]
[635,"0635","Children's Day Treatment",null,"",null,null,"TV","Tania Valero: 619-725-7638"]
[636,"0636","Harborside",null,"",null,null,"inactive",""]
[637,"0637","Marian High School",null,"",null,null,"inactive",""]
[638,"0638","Hillcrest School",null,"",null,null,"PH","Paula Hall: 619-725-7639"]
[648,"0648","Reaching Forth Christian Acad",null,"",null,null,"inactive",""]
[655,"0655","Cornerstone Christian",null,"",null,null,"inactive",""]
[657,"0657","Grace Lutheran",null,"",null,null,"inactive",""]
[659,"0659","Reformation Lutheran",null,"",null,null,"HS",""]
[660,"0660","Childrens Child Care Ctr",null,"",null,null,"inactive",""]
[668,"0668","Waldorf School Of Sd",null,"",null,null,"HS",""]
[672,"0672","Alba Com Day Schl-Barrio Logan",null,"",{"$nulls":3},""]
[673,"0673","Alba Com Day Schl-Chollas",null,"",{"$nulls":3},""]
[674,"0674","Alba Com Day Schl-Lnda Vsta",null,"",{"$nulls":3},""]
[675,"0675","TRACE University",null,"",null,null,"TV","Tania Valero: 619-725-7638"]
[676,"0676","Alba Com Day Schl-Skyline",null,"",{"$nulls":3},""]
[677,"0677","Fairbrook Elementary",null,"",{"$nulls":3},""]
[681,"0681","Marcy/Adolescent Day Treatment",null,"",null,null,"TV","Tania Valero: 619-725-7638"]
[683,"0683","Diagnostic Learning Center",null,"",null,null,"PH","Paula Hall: 619-725-7639"]
[687,"0687","La Jolla Learning Institute",null,"",null,null,"inactive",""]
[705,"0705","Polinski (LCI)",null,"",null,null,"inactive",""]
[706,"0706","Comp Adolscnt Treat Cntr",null,"",null,null,"inactive",""]
[707,"0707","Vista SD Resdntl Treat Ctr",null,"",{"$nulls":3},""]
[708,"0708","Randolph Leadership Academy",null,"",null,null,"inactive",""]
[709,"0709","Cabrillo (LCI)",null,"",{"$nulls":3},""]
[711,"0711","St. Vincent De Paul Center",null,"",null,null,"inactive",""]
[712,"0712","High Tech Elementary Explorer",null,"",null,null,"AD",""]
[713,"0713","Taylor Academy",null,"",{"$nulls":3},""]
[714,"0714","Garfield HSDP",null,"",null,null,"DG","Debbie Glanz: 619-725-7619"]
[715,"0715","Madison HSDP",null,"",null,null,"DG","Debbie Glanz: 619-725-7619"]
[716,"0716","Twain-Main/HSDP",null,"",null,null,"inactive",""]
[719,"0719","Mira Mesa HSDP",null,"",null,null,"DG","Debbie Glanz: 619-725-7619"]
[721,"0721","Henry HSDP",null,"",null,null,"inactive",""]
[722,"0722","Hoover HSDP",null,"",null,null,"DG","Debbie Glanz: 619-725-7619"]
[723,"0723","Kearny HSDP",null,"",null,null,"inactive",""]
[724,"0724","Lincoln HSDP",null,"",null,null,"inactive",""]
[725,"0725","ALBA HSDP",null,"",null,null,"DG","Debbie Glanz: 619-725-7619"]
[726,"0726","Mission Bay HSDP",null,"",null,null,"inactive",""]
[727,"0727","Morse HSDP",null,"",null,null,"inactive",""]
[728,"0728","Point Loma HSDP",null,"",null,null,"inactive",""]
[729,"0729","San Diego HSDP",null,"",null,null,"inactive",""]
[731,"0731","Emmanuel Arts",null,"",null,null,"HS",""]
[737,{"$f":"TEXT(A387,\"0000\")","v":"0737"},"Christ The Cornerstone Luth",null,{"$f":"IFERROR(VLOOKUP(D387,F:G,2,FALSE),\"\")","v":""},null,null,"HS",{"$f":"IFERROR(VLOOKUP(H387,J:K,2,FALSE),\"\")","v":""}]
[738,"0738","The Bridge",null,"",null,null,"inactive",""]
[739,"0739","The Creative Learning Academy",null,"",null,null,"HS",""]
[740,"0740","Torah High Schools ofSan Diego",null,"",null,null,"HS",""]
[741,"0741","S.T.E.P.S.",null,"",null,null,"inactive",""]
[742,"0742","Clairemont Mesa Christian",null,"",null,null,"inactive",""]
[743,"0743","School Age Learning Adventure",null,"",null,null,"HS",""]
[744,"0744","Casa de San Juan",null,"",null,null,"inactive",""]
[745,"0745","OZ South",null,"",null,null,"inactive",""]
[746,"0746","County Island School",null,"",{"$nulls":3},""]
[747,"0747","Gompers Middle",null,"",null,null,"inactive",""]
[748,"0748","LCI K-12",null,"",null,null,"inactive",""]
[750,"0750","Mercy Hospital",null,"",null,null,"HS",""]
[751,"0751","Mesa Vista Hospital",null,"",null,null,"inactive",""]
[752,"0752","Door Of Hope",null,"",null,null,"HS",""]
[753,"0753","High Tech Media Arts",null,"",null,null,"inactive",""]
[754,"0754","Childs Primary School",null,"",null,null,"HS",""]
[755,"0755","Unified Day School (LCI)",null,"",null,null,"TV","Tania Valero: 619-725-7638"]
[757,"0757","S.T.E.P.S. (Elementary)",null,"",null,null,"inactive",""]
[758,"0758","Childrens Workshop",null,"",null,null,"HS",""]
[759,"0759","Urban Skills Center",null,"",null,null,"HS",""]
[761,"0761","Good Shepherd Catholic",null,"",null,null,"HS",""]
[762,"0762","Soille SD Hebrew Day School",null,"",null,null,"HS",""]
[763,"0763","Beth Isreal Day School",null,"",null,null,"inactive",""]
[764,"0764","Calvary Christian",null,"",null,null,"inactive",""]
[765,"0765","Community Prepatory",null,"",null,null,"inactive",""]
[766,"0766","Gillispie School, The",null,"",null,null,"HS",""]
[767,"0767","Mt. Erie Christian Acad",null,"",null,null,"HS",""]
[768,"0768","Kwachiiyoa (Ixcalli) Chrtr",null,"",null,null,"inactive",""]
[769,"0769","Stein Education Center",null,"",null,null,"HS",""]
[770,"0770","Springall Academy",null,"",null,null,"HS",""]
[771,"0771","City School",null,"",null,null,"inactive",""]
[772,"0772","Scripps Montessori",null,"",null,null,"HS",""]
[773,"0773","St. Paul's Lutheran",null,"",null,null,"HS",""]
[774,"0774","St. Martin Academy",null,"",null,null,"HS",""]
[775,"0775","Winston School",null,"",null,null,"inactive",""]
[776,"0776","Notre Dame Academy",null,"",null,null,"HS",""]
[777,"0777","Crawford HSDP",null,"",null,null,"DG","Debbie Glanz: 619-725-7619"]
[778,"0778","St John Of The Cross",null,"",null,null,"HS",""]
[780,"0780","Chabad Hebrew Academy",null,"",null,null,"HS",""]
[781,"0781","Youth Opportunity Alt Sec Sch",null,"",null,null,"inactive",""]
[782,"0782","Clairemont Christian School",null,"",null,null,"HS",""]
[783,"0783","High Tech High Media Arts",null,"",null,null,"AD",""]
[784,"0784","Nativity Prep Academy",null,"",null,null,"HS",""]
[785,"0785","High Tech High International",null,"",null,null,"AD",""]
[786,"0786","Iftin University Prep High",null,"",null,null,"AD",""]
[787,"0787","Sojourner Truth Lrng Acad Chrt",null,"",null,null,"inactive",""]
[788,"0788","Evangeline Roberts Institute",null,"",null,null,"AD",""]
[789,"0789","SD Global Vision Academy",null,"",null,null,"AD",""]
[790,"0790","Coleman Tech Charter High",null,"",null,null,"AD",""]
[791,"0791","LCI Instruction",null,"",null,null,"inactive",""]
[792,"0792","City Heights Prep",null,"",null,null,"AD",""]
[793,"0793","TRACE Seniors",null,"",null,null,"TV","Tania Valero: 619-725-7638"]
[794,"0794","Epiphany Prep Charter School",null,"",null,null,"AD",""]
[795,"0795","SD Cooperative Charter 2",null,"",null,null,"AD",""]
[796,"0796","Kavod Elementary Charter",null,"",null,null,"AD",""]
[797,"0797","Health Sciences Middle School",null,"",null,null,"AD",""]
[798,"0798","Empower Charter School",null,"",null,null,"AD",""]
[799,"0799","Laurel Preparatory Academy",null,"",null,null,"AD",""]
[834,"0834","Bayview Childrens Center",null,"",null,null,"MS","Michelle Speegle: 619-725-7634"]
[835,"0835","Brooklyn Childrens Center",null,"",null,null,"MS","Michelle Speegle: 619-725-7634"]
[836,"0836","Dewey Childrens Center",null,"",null,null,"MS","Michelle Speegle: 619-725-7634"]
[837,"0837","Dewey Extended Day Center",null,"",null,null,"inactive",""]
[838,"0838","Euclid Childrens Center",null,"",null,null,"MS","Michelle Speegle: 619-725-7634"]
[839,{"$f":"TEXT(A451,\"0000\")","v":"0839"},"Florence Childrens Center",null,{"$f":"IFERROR(VLOOKUP(D451,F:G,2,FALSE),\"\")","v":""},null,null,"MS",{"$f":"IFERROR(VLOOKUP(H451,J:K,2,FALSE),\"\")","v":"Michelle Speegle: 619-725-7634"}]
[840,"0840","Garfield Childrens Center",null,"",null,null,"MS","Michelle Speegle: 619-725-7634"]
[841,"0841","Florence Extended Day Center",null,"",null,null,"inactive",""]
[842,"0842","Hawthorne Childrens Center",null,"",null,null,"inactive",""]
[844,"0844","Jefferson Childrens Center",null,"",null,null,"MS","Michelle Speegle: 619-725-7634"]
[846,"0846","Kennedy Childrens Center",null,"",null,null,"MS","Michelle Speegle: 619-725-7634"]
[848,"0848","Burbank Childrens Center",null,"",null,null,"MS","Michelle Speegle: 619-725-7634"]
[850,"0850","Logan Child Development Center",null,"",null,null,"MS","Michelle Speegle: 619-725-7634"]
[851,"0851","Miller Extended Day Center",null,"",{"$nulls":3},""]
[852,"0852","Los Altos Childrens Center",null,"",null,null,"MS","Michelle Speegle: 619-725-7634"]
[854,"0854","Montezuma Childrens Center",null,"",null,null,"MS","Michelle Speegle: 619-725-7634"]
[855,"0855","Miller Childrens Center",null,"",null,null,"MS","Michelle Speegle: 619-725-7634"]
[856,"0856","Rowan Childrens Center",null,"",null,null,"inactive",""]
[857,"0857","Sandburg Childrens Center",null,"",null,null,"MS","Michelle Speegle: 619-725-7634"]
[858,"0858","Colonel Salomon Child Center",null,"",null,null,"MS","Michelle Speegle: 619-725-7634"]
[859,"0859","Walker Childrens Center",null,"",null,null,"MS","Michelle Speegle: 619-725-7634"]
[860,"0860","Wegeforth Childrens Center",null,"",null,null,"MS","Michelle Speegle: 619-725-7634"]
[861,"0861","Wegeforth Extended Day Center",null,"",{"$nulls":3},""]
[862,"0862","Whittier Childrens Center",null,"",null,null,"MS","Michelle Speegle: 619-725-7634"]
[863,"0863","Bay Point Preschool",null,"",null,null,"MS","Michelle Speegle: 619-725-7634"]
[865,"0865","Burbank Child Care Magnet",null,"",null,null,"inactive",""]
[874,"0874","Bay Park Childrens Center",null,"",null,null,"inactive",""]
[875,"0875","Mead Child Care Magnet",null,"",{"$nulls":3},""]
[879,"0879","Carson Childrens Center",null,"",null,null,"MS","Michelle Speegle: 619-725-7634"]
[881,"0881","Crown Point Childrens Center",null,"",null,null,"inactive",""]
[882,"0882","Field Childrens Center",null,"",null,null,"MS","Michelle Speegle: 619-725-7634"]
[883,"0883","Fletcher Childrens Center",null,"",null,null,"MS","Michelle Speegle: 619-725-7634"]
[884,"0884","De Anza Childrens Center",null,"",null,null,"MS","Michelle Speegle: 619-725-7634"]
[885,"0885","Paradise Valley",null,"",{"$nulls":3},""]
[889,"0889","Lincoln High Infants Center",null,"",{"$nulls":3},""]
[890,"0890","Mead Childrens Center",null,"",null,null,"MS","Michelle Speegle: 619-725-7634"]
[891,"0891","Ocean Beach Child Care Magnet",null,"",{"$nulls":3},""]
[892,"0892","Oak Park Childrens Center",null,"",null,null,"inactive",""]
[893,"0893","Garfield Infant Center",null,"",null,null,"inactive",""]
[894,"0894","Ocean Beach Childrens Center",null,"",null,null,"MS","Michelle Speegle: 619-725-7634"]
[896,"0896","Ross Childrens Center",null,"",null,null,"MS","Michelle Speegle: 619-725-7634"]
[897,"0897","San Diego High Infants Ctr",null,"",{"$nulls":3},""]
[898,"0898","King Childrens Center",null,"",null,null,"inactive",""]
[901,"0901","Academy Of Our Lady Of Peace",null,"",null,null,"HS",""]
[902,"0902","Childrens School",null,"",null,null,"HS",""]
[903,"0903","Bishops School",null,"",null,null,"HS",""]
[904,"0904","Blessed Sacrament",null,"",null,null,"HS",""]
[905,"0905","City Tree Christian",null,"",null,null,"HS",""]
[906,"0906","Francis Parker School",null,"",null,null,"HS",""]
[907,"0907","Devereux-Clark Adolescent Ctr",null,"",null,null,"inactive",""]
[908,"0908","La Jolla Country Day School",null,"",null,null,"HS",""]
[909,"0909","Nazareth Elementary",null,"",null,null,"HS",""]
[910,"0910","Our Ladys",null,"",null,null,"HS",""]
[911,"0911","Instr For Effective Educ",null,"",null,null,"inactive",""]
[912,"0912","Our Lady Sacred Heart",null,"",null,null,"HS",""]
[913,"0913","Lutheran High School Of Sd",null,"",null,null,"HS",""]
[914,"0914","Sacred Heart Academy",null,"",null,null,"HS",""]
[915,"0915","All Hollows Academy",null,"",null,null,"HS",""]
[916,"0916","School Of Madeleine",null,"",null,null,"HS",""]
[917,"0917","St Charles Boromeo Academy",null,"",null,null,"HS",""]
[918,"0918","St. Didacus Parsh School",null,"",null,null,"HS",""]
[919,"0919","St. Columba",null,"",null,null,"HS",""]
[920,"0920","Marjorie Cook Ed Ctr",null,"",null,null,"HS",""]
[921,"0921","Pioneer Day School",null,"",null,null,"PH","Paula Hall: 619-725-7639"]
[922,"0922","St. Jude Academy",null,"",null,null,"HS",""]
[923,"0923","St. Michael Academy",null,"",null,null,"HS",""]
[924,"0924","St. Patrick's Elementary",null,"",null,null,"HS",""]
[925,"0925","San Diego French-Americh Schoo",null,"",null,null,"HS",""]
[926,"0926","Maria Montessori",null,"",null,null,"HS",""]
[927,{"$f":"TEXT(A515,\"0000\")","v":"0927"},"Islamic School Of Sd",null,{"$f":"IFERROR(VLOOKUP(D515,F:G,2,FALSE),\"\")","v":""},null,null,"HS",{"$f":"IFERROR(VLOOKUP(H515,J:K,2,FALSE),\"\")","v":""}]
[928,"0928","Childrens Convalescent Hosp",null,"",null,null,"inactive",""]
[929,"0929","UCSD CAPS",null,"",null,null,"PH","Paula Hall: 619-725-7639"]
[930,"0930","St. Augustine School",null,"",null,null,"HS",""]
[931,"0931","USD High School",null,"",null,null,"inactive",""]
[932,"0932","SD Center for Children Academy",null,"",null,null,"HS",""]
[933,"0933","St. Rita's School",null,"",null,null,"HS",""]
[934,"0934","St. Therese Academy",null,"",null,null,"HS",""]
[935,"0935","St. Vincent De Paul",null,"",null,null,"HS",""]
[936,"0936","National University Virtual HS",null,"",null,null,"HS",""]
[937,"0937","Stella Maris Academy",null,"",null,null,"HS",""]
[938,"0938","San Diego Jewish Academy K-10",null,"",null,null,"inactive",""]
[939,"0939","Aseltine School",null,"",null,null,"HS",""]
[940,"0940","San Diego House Of Hope",null,"",null,null,"inactive",""]
[941,"0941","Holy Family",null,"",null,null,"HS",""]
[942,"0942","San Diego Jewish Academy K-5",null,"",null,null,"inactive",""]
[943,"0943","Excelsior Academy",null,"",null,null,"HS",""]
[944,"0944","All Saints Episcopal",null,"",null,null,"inactive",""]
[945,"0945","Mira Mesa Christian School",null,"",null,null,"HS",""]
[946,"0946","Banyan Tree Foundations Acad",null,"",null,null,"HS",""]
[947,"0947","Diocese Cooperative",null,"",null,null,"HS",""]
[948,"0948","B.T.Chrenshaw Christian School",null,"",null,null,"HS",""]
[949,"0949","Delphi Academy of San Diego",null,"",null,null,"HS",""]
[950,"0950","Christian Acad of Chula Vista",null,"",null,null,"HS",""]
[951,"0951","St. Pius X",null,"",null,null,"HS",""]
[952,"0952","Christian Creative Learng Acad",null,"",null,null,"HS",""]
[953,"0953","Joan Kroc Head Start",null,"",null,null,"MS","Michelle Speegle: 619-725-7634"]
[954,"0954","Urban Village Headstart",null,"",null,null,"inactive",""]
[955,"0955","Balboa Head Start",null,"",null,null,"MS","Michelle Speegle: 619-725-7634"]
[956,"0956","Southwestern Christian",null,"",null,null,"HS",""]
[957,"0957","The Learning Academy",null,"",null,null,"HS",""]
[958,"0958","Heartland Christian Homeschl",null,"",null,null,"HS",""]
[959,"0959","The Rock Academy",null,"",null,null,"HS",""]
[960,"0960","Calvary Chapal-La Mesa",null,"",null,null,"HS",""]
[961,"0961","Shepherd of the Hills Lutheran",null,"",null,null,"HS",""]
[962,"0962","Cathedral High School",null,"",null,null,"HS",""]
[963,"0963","Horizon Christian Elementary",null,"",null,null,"HS",""]
[964,"0964","Horizon Christian Jr/Sr",null,"",null,null,"HS",""]
[965,"0965","Faith Community",null,"",null,null,"HS",""]
[966,"0966","Christian Elementary",null,"",null,null,"HS",""]
[967,"0967","San Diego Academy",null,"",null,null,"HS",""]
[968,"0968","So Cal Yeshiva High School",null,"",null,null,"HS",""]
[969,"0969","Mater-Dei Catholic High School",null,"",null,null,"HS",""]
[970,"0970","Christ Lutheran-La Mesa",null,"",null,null,"HS",""]
[972,"0972","Our Lady of Grace",null,"",null,null,"HS",""]
[973,"0973","Ahmad Lashad",null,"",null,null,"HS",""]
[974,"0974","Mt Helix Academy",null,"",null,null,"HS",""]
[975,"0975","Arch Academy",null,"",null,null,"HS",""]
[976,"0976","Tabernacle Christian Academy",null,"",null,null,"HS",""]
[977,"0977","Emmaus Today Chrisitian Montes",null,"",null,null,"HS",""]
[978,"0978","Leeway Sudbury School",null,"",null,null,"HS",""]
[979,"0979","Berean Bible Baptist Academy",null,"",null,null,"HS",""]
[980,"0980","Beta-Selam Academy",null,"",null,null,"HS",""]
[1111,"1111","Default Department (for HCM)",null,"",{"$nulls":3},""]
[3637,"3637","Lincoln High","DG","Dario Gutierrez: 619-725-7785",null,null,"DG","Debbie Glanz: 619-725-7619"]
[3648,"3648","Lincoln Social Justice",null,"",null,null,"inactive",""]
[3660,"3660","Lincoln Arts",null,"",null,null,"inactive",""]
[3674,"3674","Lincoln Science & Engineering",null,"",null,null,"inactive",""]
[3676,"3676","Lincoln Public Safety",null,"",null,null,"inactive",""]
[3701,"3701","Crawford High Education Comple",null,"",null,null,"inactive",""]
[3702,"3702","Crawford IDEA",null,"",null,null,"inactive",""]
[3703,"3703","Crawford Multimedia & Vis Arts",null,"",null,null,"inactive",""]
[3704,"3704","Crawford CHAMPS",null,"",null,null,"inactive",""]
[3705,"3705","Crawford Law and Business",null,"",null,null,"inactive",""]
[3713,{"$f":"TEXT(A579,\"0000\")","v":"3713"},"Mann School of Expedition",null,{"$f":"IFERROR(VLOOKUP(D579,F:G,2,FALSE),\"\")","v":""},null,null,"inactive",{"$f":"IFERROR(VLOOKUP(H579,J:K,2,FALSE),\"\")","v":""}]
[3717,"3717","Mann School of Exploration",null,"",null,null,"inactive",""]
[3718,"3718","Mann School of Expression",null,"",null,null,"inactive",""]
[3732,"3732","Kearny High Education Complex","DG","Dario Gutierrez: 619-725-7785",null,null,"RC","Rita Clegg: 619-725-7644"]
[3733,"3733","Kearny Digital Media & Design","DG","Dario Gutierrez: 619-725-7785",null,null,"RC","Rita Clegg: 619-725-7644"]
[3734,"3734","Kearny SCT","DG","Dario Gutierrez: 619-725-7785",null,null,"RC","Rita Clegg: 619-725-7644"]
[3735,"3735","Kearny School of College Connections","DG","Dario Gutierrez: 619-725-7785",null,null,"RC","Rita Clegg: 619-725-7644"]
[3736,"3736","Kearny Eng, Innov & Design","DG","Dario Gutierrez: 619-725-7785",null,null,"RC","Rita Clegg: 619-725-7644"]
[3738,"3738","Mann Complex/Not used after al",null,"",null,null,"inactive",""]
[3743,"3743","San Diego High Ed Complex","MJ","Mary Johnson: 619-725-5611",null,null,"DG","Debbie Glanz: 619-725-7619"]
[3744,"3744","San Diego Int'l Studies","MJ","Mary Johnson: 619-725-5611",null,null,"DG","Debbie Glanz: 619-725-7619"]
[3745,"3745","San Diego LEADS",null,"",null,null,"inactive",""]
[3746,"3746","San Diego CIMA",null,"",null,null,"inactive",""]
[3749,"3749","San Diego Business","MJ","Mary Johnson: 619-725-5611",null,null,"DG","Debbie Glanz: 619-725-7619"]
[3750,"3750","San Diego MVP Arts",null,"",null,null,"EM-close",""]
[3753,"3753","San Diego Science & Technology","MJ","Mary Johnson: 619-725-5611",null,null,"DG","Debbie Glanz: 619-725-7619"]
[5006,"5006","Adams Elementary Annex",null,"",{"$nulls":3},""]
[5019,"5019","Linda Vista Annex",null,"",null,null,"inactive",""]
[5100,"5100","Director of Special Education",null,"",null,null,"LP",""]
[5101,"5101","Area 1 Site SE Administrator",null,"",null,null,"LP",""]
[5102,"5102","Area 2 Site SE Administrator",null,"",null,null,"LP",""]
[5103,"5103","Area 3 Site SE Administrator",null,"",null,null,"LP",""]
[5104,"5104","Assistive Technology",null,"",null,null,"PH","Paula Hall: 619-725-7639"]
[5105,"5105","Area 5 Site SE Administrator",null,"",null,null,"LP",""]
[5106,"5106","Translations",null,"",null,null,"LP",""]
[5108,"5108","Specialized Settings",null,"",null,null,"LP",""]
[5109,"5109","Vision Therapy",null,"",null,null,"PH","Paula Hall: 619-725-7639"]
[5110,"5110","Special Ed Nursing",null,"",null,null,"TV","Tania Valero: 619-725-7638"]
[5114,"5114","Area 4 Site SE Administrator",null,"",null,null,"LP",""]
[5116,"5116","Area 6 Site SE Administrator",null,"",null,null,"LP",""]
[5193,"5193","Marcy Site",null,"",{"$nulls":3},""]
[5204,"5204","K/6 Summer School Office/Mead",null,"",{"$nulls":3},""]
[5211,"5211","Mission Beach Center",null,"",{"$nulls":3},""]
[5226,"5226","Ocean Discovery",null,"",null,null,"BG2",""]
[5239,"5239","Revere Development Center",null,"",{"$nulls":3},""]
[5240,"5240","Budget Dev & Position Mgmt",null,"",null,null,"ML","Margaret Latham: 619-725-7472"]
[5241,"5241","Financial Planning & Develop",null,"",null,null,"ML","Margaret Latham: 619-725-7472"]
[5260,"5260","Treasurer",null,"",null,null,"inactive",""]
[5262,"5262","Budget Operations-Business",null,"",null,null,"inactive",""]
[5264,"5264","Cash Management",null,"",null,null,"inactive",""]
[5265,"5265","Stevenson Admin Ctr",null,"",{"$nulls":3},""]
[5299,"5299","Wiggin Center",null,"",null,null,"BG2",""]
[5301,"5301","Personnel/Secondary",null,"",null,null,"inactive",""]
[5305,"5305","Resv Mid School CCTR",null,"",{"$nulls":3},""]
[5309,"5309","Hale Construction",null,"",null,null,"inactive",""]
[5330,"5330","Secondary/Interim",null,"",null,null,"BT1",""]
[5343,"5343","JROTC Office",null,"",null,null,"MH","Maurice Hernandez: 619-725-7647"]
[5360,"5360","Classified - Human Resources",null,"",null,null,"BT1",""]
[5361,"5361","TB Reimbursement Dept",null,"",null,null,"ML","Margaret Latham: 619-725-7472"]
[5370,"5370","Gifted & Talented Dept Admin",null,"",null,null,"MH","Maurice Hernandez: 619-725-7647"]
[5371,"5371","Placement & Appeals",null,"",null,null,"GY",""]
[5372,"5372","Counseling & Guidance",null,"",null,null,"HS",""]
[5373,"5373","Special Ed/ECSE",null,"",null,null,"PH","Paula Hall: 619-725-7639"]
[5374,"5374","Special Ed Business Office",null,"",null,null,"TV","Tania Valero: 619-725-7638"]
[5375,"5375","Career Development Counseling",null,"",null,null,"inactive",""]
[5376,"5376","Guidance Svcs/Dept Admin",null,"",{"$nulls":3},""]
[5377,"5377","Special Ed Svcs/Ot & Pt",null,"",null,null,"PH","Paula Hall: 619-725-7639"]
[5378,"5378","Psychology",null,"",null,null,"PH","Paula Hall: 619-725-7639"]
[5379,"5379","Special Ed High Incidents Prog",null,"",null,null,"PH","Paula Hall: 619-725-7639"]
[5380,"5380","Speech  & Hearing",null,"",null,null,"PH","Paula Hall: 619-725-7639"]
[5381,"5381","Adapted Physical Education",null,"",null,null,"PH","Paula Hall: 619-725-7639"]
[5383,"5383","Physically/Impaired",null,"",null,null,"PH","Paula Hall: 619-725-7639"]
[5384,"5384","Visually Impaired",null,"",null,null,"PH","Paula Hall: 619-725-7639"]
[5386,"5386","ILS-PACE-TRACE-Employability",null,"",null,null,"PH","Paula Hall: 619-725-7639"]
[5387,{"$f":"TEXT(A643,\"0000\")","v":"5387"},"Low Incidence Programs",null,{"$f":"IFERROR(VLOOKUP(D643,F:G,2,FALSE),\"\")","v":""},null,null,"PH",{"$f":"IFERROR(VLOOKUP(H643,J:K,2,FALSE),\"\")","v":"Paula Hall: 619-725-7639"}]
[5388,"5388","Deaf & Hard Of Hearing",null,"",null,null,"PH","Paula Hall: 619-725-7639"]
[5389,"5389","Nonpublic Schools",null,"",null,null,"LP",""]
[5390,"5390","Advanced Studies",null,"",null,null,"MH","Maurice Hernandez: 619-725-7647"]
[5391,"5391","DHH Interpreter/Translator",null,"",null,null,"PH","Paula Hall: 619-725-7639"]
[5392,"5392","SD South Medical Therapy Unit",null,"",null,null,"inactive",""]
[5400,"5400","Nursing and Wellness",null,"",null,null,"GY",""]
[5401,"5401","Student Support Services",null,"",null,null,"inactive",""]
[5402,"5402","LCI",null,"",null,null,"PH","Paula Hall: 619-725-7639"]
[5403,"5403","Counseling And Guidance Grants",null,"",null,null,"HS",""]
[5404,"5404","Clinic Services",null,"",null,null,"GY",""]
[5405,"5405","Medi-Cal Collaborative",null,"",null,null,"TV","Tania Valero: 619-725-7638"]
[5406,"5406","Special Ed Team - B Lin/Mor",null,"",{"$nulls":3},""]
[5407,"5407","Substance Use Prevention",null,"",null,null,"inactive",""]
[5408,"5408","Special Ed C - MRM/SCR/KEA/SER",null,"",{"$nulls":3},""]
[5409,"5409","Americans W Disab Act 504",null,"",null,null,"LP",""]
[5410,"5410","Career and Transition Services",null,"",null,null,"inactive",""]
[5411,"5411","Student Suppt & Spec Ed",null,"",{"$nulls":3},""]
[5412,"5412","Planning Dvpmt Eval Rpt/Archiv",null,"",{"$nulls":3},""]
[5413,"5413","Related & Specializd Services",null,"",null,null,"PH","Paula Hall: 619-725-7639"]
[5414,"5414","Materials Development",null,"",null,null,"inactive",""]
[5415,"5415","Special Ed/LEP Programs",null,"",{"$nulls":3},""]
[5416,"5416","Compliance & Training",null,"",null,null,"PH","Paula Hall: 619-725-7639"]
[5417,"5417","Due Process & Mediations",null,"",null,null,"LP",""]
[5418,"5418","Enrollment Center",null,"",null,null,"inactive",""]
[5419,"5419","Mental Hlth Resource Ctr",null,"",null,null,"TV","Tania Valero: 619-725-7638"]
[5420,"5420","Special Ed Team D-HEN/HOO/CFD",null,"",{"$nulls":3},""]
[5421,"5421","Assistive Technology",null,"",{"$nulls":3},""]
[5422,"5422","English Tutoring Com Based",null,"",null,null,"inactive",""]
[5423,"5423","ED - LCI",null,"",null,null,"inactive",""]
[5424,"5424","SpEd Team E-CLT/LJ/MDS/MB/UCH",null,"",{"$nulls":3},""]
[5425,"5425","Cty Hgts Pilot Pgm-Admin",null,"",null,null,"inactive",""]
[5426,"5426","Metro Program/ED",null,"",{"$nulls":3},""]
[5427,"5427","Adult Ed/High Schl Dept",null,"",null,null,"inactive",""]
[5428,"5428","Adult Ed/Parent Education",null,"",null,null,"inactive",""]
[5429,"5429","Adult Ed/Vocational Ed",null,"",null,null,"inactive",""]
[5430,"5430","Encore & Data Reporting",null,"",null,null,"TV","Tania Valero: 619-725-7638"]
[5431,"5431","Behavior Support Services",null,"",null,null,"LP",""]
[5433,"5433","Spec Ed Pgms Coordination",null,"",null,null,"LP",""]
[5434,"5434","Educational Technology",null,"",null,null,"LP",""]
[5435,"5435","Spec Ed Adpt Equipment",null,"",{"$nulls":3},""]
[5437,"5437","School & Parent Support Svcs",null,"",null,null,"PH","Paula Hall: 619-725-7639"]
[5438,"5438","Parentally Placed Pvt Sch Stud",null,"",null,null,"LP",""]
[5439,"5439","Quality Assurance",null,"",null,null,"ML","Margaret Latham: 619-725-7472"]
[5440,"5440","Off of School Support Services",null,"",null,null,"ML","Margaret Latham: 619-725-7472"]
[5441,"5441","Federal and Special Programs",null,"",null,null,"inactive",""]
[5442,"5442","Mathematics",null,"",null,null,"ML","Margaret Latham: 619-725-7472"]
[5443,"5443","Social Studies",null,"",null,null,"ML","Margaret Latham: 619-725-7472"]
[5444,"5444","Language Arts",null,"",null,null,"inactive",""]
[5445,"5445","Science",null,"",null,null,"ML","Margaret Latham: 619-725-7472"]
[5446,"5446","Visual & Performing Arts",null,"",null,null,"LP",""]
[5447,"5447","Spec Ed Exec Director",null,"",null,null,"LP",""]
[5448,"5448","Student Services",null,"",null,null,"LP",""]
[5449,"5449","CCTE/Off Site",null,"",null,null,"inactive",""]
[5450,"5450","Hire-A-Youth",null,"",null,null,"ML","Margaret Latham: 619-725-7472"]
[5451,"5451","College, Career & Tech Ed",null,"",null,null,"MH","Maurice Hernandez: 619-725-7647"]
[5452,"5452","Sch To Career/Indus Educ",null,"",null,null,"inactive",""]
[5453,"5453","Sch To Career/Business Ed",null,"",null,null,"inactive",""]
[5454,"5454","Sch To Career",null,"",null,null,"inactive",""]
[5455,"5455","Sch To Career/Cnsmr/Fam Stdy",null,"",null,null,"inactive",""]
[5456,"5456","Instr Media/Sim Svcs Contra",null,"",null,null,"inactive",""]
[5457,"5457","P.E. and Health",null,"",null,null,"RC","Rita Clegg: 619-725-7644"]
[5458,"5458","Instructional Rescrs & Matls",null,"",null,null,"LP",""]
[5459,"5459","Office of Teaching & Learning",null,"",null,null,"inactive",""]
[5460,{"$f":"TEXT(A707,\"0000\")","v":"5460"},"IMC Svcs To Schools",null,{"$f":"IFERROR(VLOOKUP(D707,F:G,2,FALSE),\"\")","v":""},null,null,"inactive",{"$f":"IFERROR(VLOOKUP(H707,J:K,2,FALSE),\"\")","v":""}]
[5461,"5461","IMC Instr Media Svcs",null,"",null,null,"inactive",""]
[5462,"5462","Adult Ed/Department",null,"",null,null,"inactive",""]
[5463,"5463","Block Grant/Adult Ed",null,"",{"$nulls":3},""]
[5464,"5464","Ed Clinics (Delivery Only)",null,"",{"$nulls":3},""]
[5465,"5465","Instr Media/Mp/Contra",null,"",{"$nulls":3},""]
[5466,"5466","IMC Cen Cataloging",null,"",null,null,"inactive",""]
[5467,"5467","Textbook Long Range",null,"",{"$nulls":3},""]
[5468,"5468","Instr Mat Eval Ctr",null,"",null,null,"inactive",""]
[5469,"5469","Second Language/ Staff Dev",null,"",{"$nulls":3},""]
[5470,"5470","Office of Language Acquisition",null,"",null,null,"JM3","Joy Milus: 619-725-7787"]
[5471,"5471","Home Avenue Headstart",null,"",null,null,"inactive",""]
[5472,"5472","Assmnt/Research/Rprtng Admin",null,"",{"$nulls":3},""]
[5473,"5473","Assessment Services Dept",null,"",null,null,"HS",""]
[5474,"5474","Monitoring and Accountability",null,"",null,null,"inactive",""]
[5475,"5475","Testng, Eval Rsrch & Comp Dept",null,"",{"$nulls":3},""]
[5476,"5476","Data Analysis & Reporting",null,"",null,null,"HS",""]
[5477,"5477","Clark Foundation Mgmt",null,"",{"$nulls":3},""]
[5478,"5478","High School Reform",null,"",null,null,"inactive",""]
[5479,"5479","District Relations",null,"",null,null,"ML-close",""]
[5480,"5480","Chief of Information Technolgy",null,"",null,null,"inactive",""]
[5481,"5481","Facilities Planning & Const.",null,"",null,null,"BG2",""]
[5482,"5482","PPO FPC Transfer",null,"",null,null,"BG2",""]
[5483,"5483","Youth Advocacy",null,"",null,null,"LP",""]
[5484,"5484","Research & Development",null,"",null,null,"ML","Margaret Latham: 619-725-7472"]
[5486,"5486","Management Info Systems",null,"",{"$nulls":3},""]
[5487,"5487","Spec Ed State Monitor/Archive",null,"",null,null,"inactive",""]
[5488,"5488","Audiology/Speech Lang Ctr",null,"",null,null,"inactive",""]
[5489,"5489","Facilities Community Support",null,"",{"$nulls":3},""]
[5490,"5490","Accountability Office",null,"",null,null,"inactive",""]
[5491,"5491","Monitoring&AccountabilityRptg",null,"",null,null,"inactive",""]
[5492,"5492","Program Monitoring",null,"",null,null,"inactive",""]
[5493,"5493","Ballard Parent Center",null,"",null,null,"GY",""]
[5494,"5494","Instructional Facilities Plan",null,"",null,null,"GS","Gustav Swanson: 619-725-7616"]
[5495,"5495","Private School Services",null,"",null,null,"PH-close",""]
[5496,"5496","Research and Evaluation Div",null,"",null,null,"inactive",""]
[5497,"5497","Accountability Department",null,"",null,null,"inactive",""]
[5498,"5498","Real Estate Department",null,"",null,null,"GS","Gustav Swanson: 619-725-7616"]
[5499,"5499","Reserve Cost Center",null,"",null,null,"inactive",""]
[5500,"5500","Instructional Data Support",null,"",null,null,"HS",""]
[5501,"5501","Wilson Family Resource Center",null,"",null,null,"inactive",""]
[5502,"5502","Leadership Meeting",null,"",{"$nulls":3},""]
[5503,"5503","Elem Bilingual Ed Cred Alt",null,"",{"$nulls":3},""]
[5504,"5504","Center For Collaborative Act",null,"",{"$nulls":3},""]
[5505,"5505","Inventory Adjustment",null,"",null,null,"ShC",""]
[5506,"5506","Human Resource Svcs Division",null,"",{"$nulls":3},""]
[5507,"5507","Employee Services",null,"",null,null,"inactive",""]
[5508,"5508","Human Resources",null,"",null,null,"ML","Margaret Latham: 619-725-7472"]
[5509,"5509","Classif/Comp Dept",null,"",{"$nulls":3},""]
[5510,"5510","Board Of Education",null,"",null,null,"LP",""]
[5511,"5511","Superintendents Ofcs",null,"",null,null,"LP",""]
[5512,"5512","Parent & Community Involvement",null,"",null,null,"inactive",""]
[5513,"5513","Internal Audit",null,"",null,null,"ML","Margaret Latham: 619-725-7472"]
[5514,"5514","Leadership",null,"",null,null,"inactive",""]
[5515,"5515","Legal Services",null,"",null,null,"LP",""]
[5516,"5516","Beginning Teacher Support",null,"",null,null,"inactive",""]
[5517,"5517","Restructuring",null,"",{"$nulls":3},""]
[5518,"5518","Legislative Programs Dept",null,"",null,null,"inactive",""]
[5519,"5519","New Beginnings Abatements",null,"",{"$nulls":3},""]
[5520,"5520","Labor Relations",null,"",null,null,"ML","Margaret Latham: 619-725-7472"]
[5521,"5521","Risk Mgmt-Return to Work Prog",null,"",null,null,"HS",""]
[5522,"5522","Ofc of Chief Financial Officer",null,"",null,null,"ML","Margaret Latham: 619-725-7472"]
[5523,"5523","HR-Tran Assign: Non-Indust Inj",null,"",null,null,"inactive",""]
[5524,"5524","Office of Resource Development",null,"",null,null,"inactive",""]
[5525,{"$f":"TEXT(A771,\"0000\")","v":"5525"},"Controller's Office",null,{"$f":"IFERROR(VLOOKUP(D771,F:G,2,FALSE),\"\")","v":""},null,null,"ML",{"$f":"IFERROR(VLOOKUP(H771,J:K,2,FALSE),\"\")","v":"Margaret Latham: 619-725-7472"}]
[5526,"5526","Fin Plan Monitor & Account",null,"",null,null,"ML","Margaret Latham: 619-725-7472"]
[5527,"5527","Fiscal Control",null,"",null,null,"ML","Margaret Latham: 619-725-7472"]
[5528,"5528","Financial Accounting",null,"",null,null,"ML","Margaret Latham: 619-725-7472"]
[5529,"5529","Accounts Payable",null,"",null,null,"ML","Margaret Latham: 619-725-7472"]
[5530,"5530","Applications",null,"",null,null,"inactive",""]
[5531,"5531","Attendance",null,"",null,null,"inactive",""]
[5532,"5532","Magnet Program Office",null,"",null,null,"LP",""]
[5533,"5533","Neighborhd Schls & Enrlmnt Ops",null,"",null,null,"GY",""]
[5534,"5534","Race/Human Relations& Advocacy",null,"",null,null,"GY",""]
[5535,"5535","Latinos Latinas Ach More Acad",null,"",null,null,"ML","Margaret Latham: 619-725-7472"]
[5536,"5536","Prof Dev Unit",null,"",null,null,"inactive",""]
[5537,"5537","Utilities Management",null,"",null,null,"GS","Gustav Swanson: 619-725-7616"]
[5538,"5538","Info & Technology Support Svcs",null,"",null,null,"LP",""]
[5539,"5539","Extended Lrng Oppr Dept",null,"",null,null,"JC","Jeff Clemons: 619-725-7783"]
[5540,"5540","Ofcs Of Technology & Spec Proj",null,"",null,null,"inactive",""]
[5541,"5541","Communications",null,"",null,null,"GY",""]
[5542,"5542","Community Relations",null,"",null,null,"inactive",""]
[5543,"5543","Parent Svcs & Charter Schools",null,"",null,null,"PH","Paula Hall: 619-725-7639"]
[5544,"5544","Payroll",null,"",null,null,"ML","Margaret Latham: 619-725-7472"]
[5545,"5545","School Of Choice Program",null,"",{"$nulls":3},""]
[5546,"5546","Facilities Administrations",null,"",null,null,"inactive",""]
[5547,"5547","Teacher Prep & Induction Dept",null,"",null,null,"ML","Margaret Latham: 619-725-7472"]
[5548,"5548","Auxiliary Services",null,"",null,null,"GS","Gustav Swanson: 619-725-7616"]
[5549,"5549","Chief of Staff",null,"",null,null,"LP",""]
[5550,"5550","Facilities Asset Management",null,"",null,null,"inactive",""]
[5551,"5551","Real Property Development",null,"",null,null,"inactive",""]
[5552,"5552","Strategic Sourcing Department",null,"",null,null,"GS","Gustav Swanson: 619-725-7616"]
[5553,"5553","Risk Management",null,"",null,null,"HS",""]
[5554,"5554","Materiel Control",null,"",null,null,"ML","Margaret Latham: 619-725-7472"]
[5555,"5555","Printing Shop Transfer",null,"",null,null,"GS","Gustav Swanson: 619-725-7616"]
[5556,"5556","Printing Services",null,"",null,null,"GS","Gustav Swanson: 619-725-7616"]
[5557,"5557","Mail Services",null,"",null,null,"GS","Gustav Swanson: 619-725-7616"]
[5558,"5558","Safety & Environmental",null,"",null,null,"GS","Gustav Swanson: 619-725-7616"]
[5559,"5559","Camp Elliott",null,"",{"$nulls":3},""]
[5560,"5560","Facilities Planning",null,"",{"$nulls":3},""]
[5561,"5561","Ofc of Chief Adminstr Officer",null,"",null,null,"inactive",""]
[5562,"5562","Office Assist Superintendent",null,"",null,null,"inactive",""]
[5563,"5563","Leadership & Learning",null,"",null,null,"SK",""]
[5564,"5564","San Diego Reads",null,"",null,null,"inactive",""]
[5565,"5565","Charter Schools",null,"",null,null,"ML","Margaret Latham: 619-725-7472"]
[5566,"5566","Off of School Innovtn & Choice",null,"",null,null,"inactive",""]
[5567,"5567","Counselors / Formula",null,"",null,null,"HS",""]
[5568,"5568","Wellness - Nurses",null,"",null,null,"inactive",""]
[5569,"5569","Research Policy",null,"",{"$nulls":3},""]
[5570,"5570","School Services-Unrestricted",null,"",null,null,"VH",""]
[5571,"5571","Area 1 Superintendent",null,"",null,null,"ML","Margaret Latham: 619-725-7472"]
[5572,"5572","Area 2 Superintendent",null,"",null,null,"ML","Margaret Latham: 619-725-7472"]
[5573,"5573","Area 3 Superintendent",null,"",null,null,"ML","Margaret Latham: 619-725-7472"]
[5574,"5574","Area 4 Superintendent",null,"",null,null,"ML","Margaret Latham: 619-725-7472"]
[5575,"5575","Area 5 Superintendent",null,"",null,null,"ML","Margaret Latham: 619-725-7472"]
[5576,"5576","Area 6 Superintendent",null,"",null,null,"ML","Margaret Latham: 619-725-7472"]
[5577,"5577","Area 7 Superintendent",null,"",null,null,"inactive",""]
[5578,"5578","Area 8 Superintendent",null,"",null,null,"inactive",""]
[5579,"5579","Area9 Superintendent",null,"",null,null,"inactive",""]
[5580,"5580","Title I SES",null,"",null,null,"HS",""]
[5581,"5581","Communic & Comm Rel Div",null,"",{"$nulls":3},""]
[5582,"5582","Translation Department",null,"",null,null,"GY",""]
[5583,"5583","Sch Svs Area 3 Technology Team",null,"",{"$nulls":3},""]
[5584,"5584","HIV and AID's Education",null,"",null,null,"RC","Rita Clegg: 619-725-7644"]
[5585,"5585","Video Svcs Dept",null,"",null,null,"inactive",""]
[5586,"5586","Student Records Center",null,"",null,null,"inactive",""]
[5587,"5587","Sandapp Office",null,"",null,null,"GY",""]
[5588,"5588","Special Ed/Ifl Programs",null,"",{"$nulls":3},""]
[5589,{"$f":"TEXT(A835,\"0000\")","v":"5589"},"Instructional Leader 9 & 10",null,{"$f":"IFERROR(VLOOKUP(D835,F:G,2,FALSE),\"\")","v":""},null,null,"inactive",{"$f":"IFERROR(VLOOKUP(H835,J:K,2,FALSE),\"\")","v":""}]
[5590,"5590","Athletics",null,"",null,null,"RC","Rita Clegg: 619-725-7644"]
[5591,"5591","Certificated Employees On Loan",null,"",null,null,"ML","Margaret Latham: 619-725-7472"]
[5592,"5592","Classified Employees On Loan",null,"",null,null,"ML","Margaret Latham: 619-725-7472"]
[5593,"5593","Office of Secondary Schools",null,"",null,null,"GY",""]
[5594,"5594","School Services Unit IV",null,"",null,null,"inactive",""]
[5595,"5595","Districtwide - Restricted",null,"",null,null,"VH",""]
[5596,"5596","Special Projects",null,"",null,null,"ML","Margaret Latham: 619-725-7472"]
[5597,"5597","Board Services",null,"",null,null,"inactive",""]
[5598,"5598","Government Relations",null,"",null,null,"ML","Margaret Latham: 619-725-7472"]
[5599,"5599","Indirect Cost Billed Services",null,"",null,null,"KB",""]
[5600,"5600","Custodial Services",null,"",null,null,"GS","Gustav Swanson: 619-725-7616"]
[5601,"5601","Burbank Area",null,"",null,null,"inactive",""]
[5602,"5602","Student Services Department",null,"",null,null,"inactive",""]
[5603,"5603","Charter School Office",null,"",null,null,"inactive",""]
[5604,"5604","Schl Attendance Review Bd SARB",null,"",null,null,"ML","Margaret Latham: 619-725-7472"]
[5605,"5605","School Police Services",null,"",null,null,"GS","Gustav Swanson: 619-725-7616"]
[5606,"5606","Office of Sec Schl Innovation",null,"",null,null,"inactive",""]
[5607,"5607","Livescan",null,"",null,null,"GS","Gustav Swanson: 619-725-7616"]
[5608,"5608","Ethics Program",null,"",null,null,"inactive",""]
[5609,"5609","PPO Transfer",null,"",null,null,"BG2",""]
[5610,"5610","Maintenance Unit",null,"",null,null,"BG2",""]
[5611,"5611","Expansion Of Linc HS/Prop I",null,"",{"$nulls":3},""]
[5612,"5612","Deferred Maintenance",null,"",null,null,"inactive",""]
[5613,"5613","Hwy 52 Property",null,"",null,null,"inactive",""]
[5614,"5614","Office Depot",null,"",null,null,"inactive",""]
[5615,"5615","Dana Admin Offices",null,"",null,null,"inactive",""]
[5616,"5616","Pacific Beach Admin Offices",null,"",null,null,"inactive",""]
[5617,"5617","IMC Admin Offices",null,"",null,null,"inactive",""]
[5618,"5618","Mission Beach Admin Ofcs",null,"",null,null,"inactive",""]
[5619,"5619","Irving Ave Admin Offices",null,"",{"$nulls":3},""]
[5620,"5620","Distribution Svcs Section",null,"",null,null,"GS","Gustav Swanson: 619-725-7616"]
[5621,"5621","IMC Distribution",null,"",null,null,"inactive",""]
[5622,"5622","Warehousing Unit",null,"",{"$nulls":3},""]
[5623,"5623","Warehousing Unit/IMC",null,"",{"$nulls":3},""]
[5624,"5624","Undesignated Area Elem Schl B",null,"",null,null,"inactive",""]
[5625,"5625","Mira Mesa Whse/Prop Y",null,"",{"$nulls":3},""]
[5626,"5626","Brooklyn/Kimbrough/Prop MM",null,"",null,null,"inactive",""]
[5627,"5627","King/Logan/Perkins/Prop MM",null,"",null,null,"inactive",""]
[5628,"5628","Sherman/Prop MM",null,"",null,null,"inactive",""]
[5629,"5629","Kennedy/Knox/Prop MM",null,"",null,null,"inactive",""]
[5630,"5630","Employee Benefits",null,"",null,null,"ML","Margaret Latham: 619-725-7472"]
[5631,"5631","Mason Hage Area",null,"",null,null,"inactive",""]
[5632,"5632","Fringe Benefits/Retirees",null,"",null,null,"GS","Gustav Swanson: 619-725-7616"]
[5633,"5633","Off of Business Supp Srvcs",null,"",null,null,"GS","Gustav Swanson: 619-725-7616"]
[5634,"5634","Employee Paid Benefits",null,"",null,null,"inactive",""]
[5635,"5635","Quality Neighborhood Schools",null,"",null,null,"inactive",""]
[5636,"5636","Strategic Sourcing Office",null,"",null,null,"GS","Gustav Swanson: 619-725-7616"]
[5637,"5637","PPO Stockroom",null,"",null,null,"inactive",""]
[5638,"5638","Drop Out Prevention",null,"",null,null,"LP",""]
[5639,"5639","San Diego Cold Storage",null,"",{"$nulls":3},""]
[5640,"5640","Glenn R. Brodrick Field",null,"",{"$nulls":3},""]
[5641,"5641","Clearing Account",null,"",null,null,"inactive",""]
[5650,"5650","Pupil Transportation Dept",null,"",null,null,"SK",""]
[5651,"5651","Fleet Maintenance",null,"",null,null,"inactive",""]
[5652,"5652","Pupil Transportation Training",null,"",null,null,"inactive",""]
[5653,"5653","Rebudgets/Regular H-To-S Trans",null,"",{"$nulls":3},""]
[5654,"5654","Transportation Highland BaseII",null,"",{"$nulls":3},""]
[5655,"5655","New Bridge School",null,"",null,null,"PH","Paula Hall: 619-725-7639"]
[5656,"5656","Master Plan/Home-To-Schl Trans",null,"",{"$nulls":3},""]
[5657,"5657","ARCH Academy",null,"",null,null,"PH","Paula Hall: 619-725-7639"]
[5658,"5658","Bus Replacement",null,"",null,null,"inactive",""]
[5659,"5659","Foundations Academy",null,"",null,null,"PH","Paula Hall: 619-725-7639"]
[5660,"5660","Children & Youth in Transition",null,"",null,null,"TV","Tania Valero: 619-725-7638"]
[5661,{"$f":"TEXT(A899,\"0000\")","v":"5661"},"Balboa Elementary/Expansion",null,{"$f":"IFERROR(VLOOKUP(D899,F:G,2,FALSE),\"\")","v":""},{"$nulls":3},{"$f":"IFERROR(VLOOKUP(H899,J:K,2,FALSE),\"\")","v":""}]
[5662,"5662","Hoover/Crawford Elem",null,"",{"$nulls":3},""]
[5663,"5663","San Diego Area/Kimbrough",null,"",{"$nulls":3},""]
[5664,"5664","Hoover/Crawford Middle",null,"",{"$nulls":3},""]
[5665,"5665","Balboa Area/Chavez",null,"",null,null,"inactive",""]
[5666,"5666","Scripps Ranch Area",null,"",null,null,"inactive",""]
[5667,"5667","Out of Selpa",null,"",null,null,"TV","Tania Valero: 619-725-7638"]
[5668,"5668","Special Ed Ombudsperson",null,"",null,null,"ML","Margaret Latham: 619-725-7472"]
[5678,"5678","Garfield/Remodel",null,"",{"$nulls":3},""]
[5679,"5679","Garfield High Move/Startup",null,"",{"$nulls":3},""]
[5680,"5680","Capital Outlay",null,"",{"$nulls":3},""]
[5681,"5681","Cap Outlay/Reserves For Legal",null,"",{"$nulls":3},""]
[5682,"5682","ICOC/Citizens Oversite Comm",null,"",null,null,"GS","Gustav Swanson: 619-725-7616"]
[5684,"5684","Capital Outlay/Districtwide",null,"",null,null,"inactive",""]
[5685,"5685","Landscaping Services",null,"",null,null,"GS","Gustav Swanson: 619-725-7616"]
[5686,"5686","PPO Support Services",null,"",null,null,"BG2",""]
[5687,"5687","PPO Project Transfers",null,"",null,null,"inactive",""]
[5688,"5688","Education Center",null,"",null,null,"GS","Gustav Swanson: 619-725-7616"]
[5689,"5689","Board Of Ed Redistricting",null,"",{"$nulls":3},""]
[5690,"5690","02-03 Reductions",null,"",{"$nulls":3},""]
[5691,"5691","Master Plan/Spec Ed Pgms",null,"",{"$nulls":3},""]
[5692,"5692","Integration Pgms/ZZ Only",null,"",{"$nulls":3},""]
[5693,"5693","Community Svcs Pgm/ZZ Only",null,"",{"$nulls":3},""]
[5694,"5694","Adams/Franklin Elem/Prop MM",null,"",null,null,"inactive",""]
[5695,"5695","Central Elem/Prop MM",null,"",null,null,"inactive",""]
[5696,"5696","Parks/Edison/Ham Elem/Prop MM",null,"",null,null,"inactive",""]
[5697,"5697","Euclid Elem/Prop MM",null,"",null,null,"inactive",""]
[5698,"5698","Jackson/Marshall Elem/Prop MM",null,"",null,null,"inactive",""]
[5699,"5699","Adult Ed/SDCCD",null,"",{"$nulls":3},""]
[5700,"5700","Debt Services",null,"",{"$nulls":3},""]
[5701,"5701","Printing Svcs/N Annex",null,"",{"$nulls":3},""]
[5702,"5702","Early Ret Retirement Annuity",null,"",null,null,"inactive",""]
[5703,"5703","Educational Clinic/Centre Cit",null,"",{"$nulls":3},""]
[5704,"5704","Educational Clinic Office",null,"",{"$nulls":3},""]
[5705,"5705","Childrens Ctr/Local Resources",null,"",{"$nulls":3},""]
[5706,"5706","On-Line Learning",null,"",null,null,"LP",""]
[5707,"5707","Chief Public Info Officer",null,"",null,null,"GY",""]
[5709,"5709","Medicare Selection Dist",null,"",{"$nulls":3},""]
[5710,"5710","Outgoing Transfers",null,"",null,null,"ShC",""]
[5717,"5717","Reserve For Sal Negotiation",null,"",{"$nulls":3},""]
[5718,"5718","Dup Site-Inactivated",null,"",{"$nulls":3},""]
[5720,"5720","Reserves",null,"",null,null,"inactive",""]
[5725,"5725","SD County Dept Of Ed",null,"",{"$nulls":3},""]
[5730,"5730","Ending Balance",null,"",null,null,"inactive",""]
[5732,"5732","Madison/District 85/86",null,"",{"$nulls":3},""]
[5733,"5733","Kumeyaay Elem/Prop Y",null,"",{"$nulls":3},""]
[5734,"5734","Hage Elementary Site",null,"",{"$nulls":3},""]
[5735,"5735","Nye Elementary Site",null,"",{"$nulls":3},""]
[5736,"5736","Scripps Ranch 2 Hi Schl Site",null,"",{"$nulls":3},""]
[5738,"5738","Dup Site-Inactivated",null,"",{"$nulls":3},""]
[5739,"5739","Calif Lit Project",null,"",{"$nulls":3},""]
[5744,"5744","Miramar Ranch North/Prop MM",null,"",null,null,"inactive",""]
[5745,"5745","Scripps Ranch #4 Elementary",null,"",null,null,"inactive",""]
[5747,"5747","Bay Terrace Scpa",null,"",null,null,"inactive",""]
[5748,"5748","Scripps Ranch #3 Middle",null,"",{"$nulls":3},""]
[5749,"5749","Bandini Elementary/Prop Y",null,"",{"$nulls":3},""]
[5756,"5756","Balboa Stadium",null,"",null,null,"GS","Gustav Swanson: 619-725-7616"]
[5760,"5760","Estimated Carryover",null,"",{"$nulls":3},""]
[5766,"5766","Parent University",null,"",null,null,"GY",""]
[5767,"5767","Parent Academic Liaison",null,"",null,null,"GY",""]
[5779,"5779","Litigation/Settlement Costs",null,"",null,null,"LP",""]
[5786,"5786","Revere Administration",null,"",null,null,"inactive",""]
[5788,"5788","San Diego Reading Clinic",null,"",{"$nulls":3},""]
[5789,"5789","Instr Media Cntr Lib Cat",null,"",{"$nulls":3},""]
[5790,{"$f":"TEXT(A963,\"0000\")","v":"5790"},"Central Reorg Reserves",null,{"$f":"IFERROR(VLOOKUP(D963,F:G,2,FALSE),\"\")","v":""},{"$nulls":3},{"$f":"IFERROR(VLOOKUP(H963,J:K,2,FALSE),\"\")","v":""}]
[5792,"5792","Utilities & Communications Pmt",null,"",null,null,"inactive",""]
[5794,"5794","Ninth District PTA/Budget Ofcs",null,"",{"$nulls":3},""]
[5795,"5795","Districtwide-Budget Office Use",null,"",null,null,"GY",""]
[5796,"5796","Schedule 2",null,"",null,null,"inactive",""]
[5797,"5797","Schedule 3",null,"",null,null,"inactive",""]
[5798,"5798","Projected Deficit",null,"",null,null,"inactive",""]
[5799,"5799","Budget  Dev Office Only",null,"",null,null,"KL",""]
[5800,"5800","Bond Interest & Redemption",null,"",{"$nulls":3},""]
[5801,"5801","Elem Bldg/Emergency Repairs",null,"",{"$nulls":3},""]
[5802,"5802","Budget Office Only (524)",null,"",{"$nulls":3},""]
[5805,"5805","SSP/Loma Portal",null,"",{"$nulls":3},""]
[5806,"5806","State School Building Fund",null,"",{"$nulls":3},""]
[5809,"5809","Corporate Operation Fund",null,"",{"$nulls":3},""]
[5810,"5810","Retirement Office",null,"",{"$nulls":3},""]
[5812,"5812","Achieve/Acctblty Support Ctr",null,"",{"$nulls":3},""]
[5814,"5814","Stores Revolving Fund",null,"",{"$nulls":3},""]
[5815,"5815","SSP/Mid City 1",null,"",{"$nulls":3},""]
[5816,"5816","SSP/Empl Dev Dept",null,"",{"$nulls":3},""]
[5817,"5817","SSP/Mira Mesa Harmonium",null,"",{"$nulls":3},""]
[5818,"5818","SSP/UTC",null,"",{"$nulls":3},""]
[5819,"5819","SSP/Head Start Prnt/Chld 1",null,"",{"$nulls":3},""]
[5820,"5820","Development Center",null,"",{"$nulls":3},""]
[5830,"5830","CDC Program Substitutes",null,"",null,null,"MS","Michelle Speegle: 619-725-7634"]
[5831,"5831","Child Development Pgm Ofcs",null,"",null,null,"MS","Michelle Speegle: 619-725-7634"]
[5832,"5832","Child Dev Resource Ctr./Hawtho",null,"",null,null,"inactive",""]
[5833,"5833","SSP/North Park 3",null,"",{"$nulls":3},""]
[5843,"5843","SSP/Mid City 2",null,"",{"$nulls":3},""]
[5845,"5845","SSP/Magna Carta 2",null,"",{"$nulls":3},""]
[5847,"5847","SSP/Head Start Prnt/Chld 2",null,"",{"$nulls":3},""]
[5849,"5849","SSP/Magna Carta 3",null,"",{"$nulls":3},""]
[5850,"5850","SSP/Hold 18",null,"",{"$nulls":3},""]
[5853,"5853","SSP/Hold 19",null,"",{"$nulls":3},""]
[5863,"5863","SSP/Hold-4/CW",null,"",{"$nulls":3},""]
[5864,"5864","SSP/Hold-5/CW",null,"",{"$nulls":3},""]
[5866,"5866","SSP/Ed Cult Complex",null,"",{"$nulls":3},""]
[5867,"5867","SSP/Encanto B&G Club",null,"",{"$nulls":3},""]
[5868,"5868","SSP/Clairement B&G Club",null,"",{"$nulls":3},""]
[5869,"5869","SSP/Horton Plaza",null,"",{"$nulls":3},""]
[5872,"5872","SSP/North Park #1",null,"",{"$nulls":3},""]
[5873,"5873","SSP/North Park #2",null,"",{"$nulls":3},""]
[5876,"5876","SSP/Access #2",null,"",{"$nulls":3},""]
[5877,"5877","SSP/Centro De Exito #2",null,"",{"$nulls":3},""]
[5878,"5878","SSP/Hold-1/CW",null,"",{"$nulls":3},""]
[5880,"5880","SSP/Hold-6/CW",null,"",{"$nulls":3},""]
[5886,"5886","SSP/Access #1",null,"",{"$nulls":3},""]
[5887,"5887","SSP/City Beach",null,"",{"$nulls":3},""]
[5888,"5888","SSP/Magna Carta #1",null,"",{"$nulls":3},""]
[5895,"5895","SSP/Hold-9/CW",null,"",{"$nulls":3},""]
[5899,"5899","SSP/Hold-7/CW",null,"",{"$nulls":3},""]
[5900,"5900","NCLB Private School Svcs",null,"",null,null,"HS",""]
[5921,"5921","Prior Year Rebudgets",null,"",null,null,"inactive",""]
[5925,"5925","Special Ed Intern Programs",null,"",null,null,"inactive",""]
[5927,"5927","District Intern Support Prog",null,"",null,null,"inactive",""]
[5936,"5936","Boys & Girls Aid Society",null,"",{"$nulls":3},""]
[5946,"5946","SDUSD Council Of PTAs",null,"",{"$nulls":3},""]
[5947,"5947","Schl Imprvmnt Pgm/Bandini",null,"",{"$nulls":3},""]
[5948,"5948","Gompers East",null,"",{"$nulls":3},""]
[5949,"5949","CETA Youth Employment",null,"",{"$nulls":3},""]
[5950,"5950","Probation Dept",null,"",{"$nulls":3},""]
[5951,"5951","A/V Cat Svcs",null,"",{"$nulls":3},""]
[5952,"5952","Integration Service Center",null,"",{"$nulls":3},""]
[5953,"5953","Teacher Corps/Bandini Ctr",null,"",{"$nulls":3},""]
[5955,"5955","Follow Thru/Juan Bandini Ctr",null,"",{"$nulls":3},""]
[5956,{"$f":"TEXT(A1027,\"0000\")","v":"5956"},"Guidance Clinic/Bandini Ctr",null,{"$f":"IFERROR(VLOOKUP(D1027,F:G,2,FALSE),\"\")","v":""},{"$nulls":3},{"$f":"IFERROR(VLOOKUP(H1027,J:K,2,FALSE),\"\")","v":""}]
[5957,"5957","Prog Plng/Dev-Annex 4",null,"",{"$nulls":3},""]
[5958,"5958","Prog Plng/Dev-Annex 3",null,"",{"$nulls":3},""]
[5959,"5959","Professional Library",null,"",{"$nulls":3},""]
[5960,"5960","IMC Equipment Pool",null,"",{"$nulls":3},""]
[5961,"5961","Elem Reinforcement Reading",null,"",{"$nulls":3},""]
[5962,"5962","Carpenter Shop",null,"",{"$nulls":3},""]
[5963,"5963","Electrical Shop",null,"",{"$nulls":3},""]
[5964,"5964","Garage/Kearny",null,"",{"$nulls":3},""]
[5965,"5965","Grounds Dept",null,"",{"$nulls":3},""]
[5966,"5966","Receiving & Dist Section",null,"",{"$nulls":3},""]
[5967,"5967","Maintenance Unit-Delivery",null,"",{"$nulls":3},""]
[5968,"5968","Irving Garage",null,"",null,null,"GS","Gustav Swanson: 619-725-7616"]
[5969,"5969","Plumbing & Heating Shop",null,"",{"$nulls":3},""]
[5970,"5970","Maintenance & Oper Ctr",null,"",{"$nulls":3},""]
[5971,"5971","Typewriter Shop",null,"",{"$nulls":3},""]
[5972,"5972","Plant Operations Unit-Delivery",null,"",{"$nulls":3},""]
[5973,"5973","Equip Pool In Repair",null,"",{"$nulls":3},""]
[5974,"5974","Music Programs",null,"",{"$nulls":3},""]
[5975,"5975","DWA Tiger Team",null,"",{"$nulls":3},""]
[5976,"5976","SDUSD (Salvage)",null,"",{"$nulls":3},""]
[5977,"5977","Elementary Cataloging",null,"",{"$nulls":3},""]
[5978,"5978","General Cataloging",null,"",{"$nulls":3},""]
[5979,"5979","Gifted (IMC)",null,"",{"$nulls":3},""]
[5980,"5980","Race/Human Relations",null,"",{"$nulls":3},""]
[5981,"5981","Materials Develop Prod Fac",null,"",{"$nulls":3},""]
[5982,"5982","Stores/Equipment Warehouse",null,"",{"$nulls":3},""]
[5983,"5983","Supply Center",null,"",{"$nulls":3},""]
[5984,"5984","PH Programs/Twain",null,"",{"$nulls":3},""]
[5985,"5985","Bilingual Tchr Team/Bird Rock",null,"",{"$nulls":3},""]
[5986,"5986","Program Development",null,"",{"$nulls":3},""]
[5987,"5987","R.O.P. Office",null,"",{"$nulls":3},""]
[5988,"5988","Hrly Nclsrm College Staff",null,"",{"$nulls":3},""]
[5989,"5989","Hrly Short Term Assign",null,"",{"$nulls":3},""]
[5990,"5990","Receiving Annex/Equip Pool",null,"",{"$nulls":3},""]
[5991,"5991","Curric Matrls Distrib Facility",null,"",{"$nulls":3},""]
[5992,"5992","Education Center-Delivery",null,"",{"$nulls":3},""]
[5993,"5993","Off School Site",null,"",{"$nulls":3},""]
[5994,"5994","Title VII Pgm/Bandini",null,"",{"$nulls":3},""]
[5995,"5995","SDUSD Rehabilitation Center",null,"",{"$nulls":3},""]
[5996,"5996","Instr Media Center",null,"",{"$nulls":3},""]
[5997,"5997","Integration Pgm Lrng Ctr Equip",null,"",{"$nulls":3},""]
[5998,"5998","Unassigned Labor Pool",null,"",null,null,"ML","Margaret Latham: 619-725-7472"]
[5999,"5999","Leave Of Absence",null,"",{"$nulls":3},""]
[8125,"8125","Zamorano Prep Kitchen",null,"",{"$nulls":3},""]
[8302,"8302","Bell Prep Kitchen",null,"",null,null,"DA","Dawn Ahlers: 619-725-7621"]
[8304,"8304","Correia Prep Kitchen",null,"",null,null,"inactive",""]
[8307,"8307","Kroc Prep Kitchen",null,"",null,null,"DA","Dawn Ahlers: 619-725-7621"]
[8312,"8312","Mann Prep Kitchen",null,"",null,null,"DA","Dawn Ahlers: 619-725-7621"]
[8313,"8313","Marston Prep Kitchen",null,"",null,null,"DA","Dawn Ahlers: 619-725-7621"]
[8316,"8316","Montgomery Prep Kitchen",null,"",null,null,"DA","Dawn Ahlers: 619-725-7621"]
[8319,"8319","O'Farrell Prep Kitchen",null,"",null,null,"DA","Dawn Ahlers: 619-725-7621"]
[8321,"8321","Pershing Prep Kitchen",null,"",null,null,"DA","Dawn Ahlers: 619-725-7621"]
[8322,"8322","Clark Prep Kitchen",null,"",null,null,"DA","Dawn Ahlers: 619-725-7621"]
[8329,"8329","Wilson Prep Kitchen",null,"",null,null,"DA","Dawn Ahlers: 619-725-7621"]
[8334,"8334","Crawford Prep Kitchen",null,"",{"$nulls":3},""]
[8335,"8335","Gompers Prep Kitchen",null,"",null,null,"DA","Dawn Ahlers: 619-725-7621"]
[8338,"8338","Hoover Prep Kitchen",null,"",null,null,"DA","Dawn Ahlers: 619-725-7621"]
[8342,"8342","La Jolla Prep Kitchen",null,"",{"$nulls":3},""]
[8346,"8346","Madison Prep Kitchen",null,"",{"$nulls":3},""]
[8349,"8349","Mira Mesa Prep Kitchen",null,"",null,null,"DA","Dawn Ahlers: 619-725-7621"]
[8350,"8350","Mission Bay Prep Kitchen",null,"",null,null,"DA","Dawn Ahlers: 619-725-7621"]
[8352,"8352","Morse Prep Kitchen",null,"",null,null,"DA","Dawn Ahlers: 619-725-7621"]
[8355,"8355","University City Prep Kitchen",null,"",null,null,"DA","Dawn Ahlers: 619-725-7621"]
[8356,{"$f":"TEXT(A1091,\"0000\")","v":"8356"},"San Diego HS Cafeteria",null,{"$f":"IFERROR(VLOOKUP(D1091,F:G,2,FALSE),\"\")","v":""},null,null,"DA",{"$f":"IFERROR(VLOOKUP(H1091,J:K,2,FALSE),\"\")","v":"Dawn Ahlers: 619-725-7621"}]
[8357,"8357","Serra Prep Kitchen",null,"",null,null,"DA","Dawn Ahlers: 619-725-7621"]
[8359,"8359","Scripps Prep Kitchen",null,"",null,null,"DA","Dawn Ahlers: 619-725-7621"]
[8368,"8368","SCPA Prep Kitchen",null,"",null,null,"DA","Dawn Ahlers: 619-725-7621"]
[8604,"8604","Food Service - Summer School",null,"",null,null,"inactive",""]
[8637,"8637","Lincoln Prep Kitchen",null,"",null,null,"DA","Dawn Ahlers: 619-725-7621"]
[8641,"8641","Cajon Valley Food Svcs",null,"",{"$nulls":3},""]
[8642,"8642","Grossmont Food Svcs",null,"",{"$nulls":3},""]
[8643,"8643","Santee Food Svcs",null,"",{"$nulls":3},""]
[8644,"8644","Birney Anex Food Svcs",null,"",{"$nulls":3},""]
[8645,"8645","Poway Food Svcs",null,"",{"$nulls":3},""]
[8646,"8646","Escondido Food Svcs",null,"",{"$nulls":3},""]
[8647,"8647","San Marcos Food Svcs",null,"",{"$nulls":3},""]
[8649,"8649","Sandco Food Svcs",null,"",{"$nulls":3},""]
[8669,"8669","Food Svcs/Lewis Test Kitchen",null,"",{"$nulls":3},""]
[8670,"8670","Food Services/District",null,"",null,null,"DA","Dawn Ahlers: 619-725-7621"]
[8671,"8671","Food Services Supply Ctr",null,"",null,null,"inactive",""]
[8701,"8701","Crawford Prep Kitchen",null,"",null,null,"DA","Dawn Ahlers: 619-725-7621"]
[8803,"8803","Dist Food Prdt Dist Ctr",null,"",null,null,"inactive",""]
[8804,"8804","Catering/Food Services",null,"",null,null,"DA","Dawn Ahlers: 619-725-7621"]
[8807,"8807","Food Svcs Relief Workers",null,"",{"$nulls":3},""]
[8808,"8808","Cafeteria Dept",null,"",null,null,"DA","Dawn Ahlers: 619-725-7621"]
[8811,"8811","Cafeteria Van Drivers",null,"",null,null,"DA","Dawn Ahlers: 619-725-7621"]
[8813,"8813","Cafeteria BBQ Crew",null,"",null,null,"DA","Dawn Ahlers: 619-725-7621"]
[8821,"8821","San Diego HS - ASB",null,"",null,null,"inactive",""]
[8822,"8822","University City Student Store",null,"",null,null,"inactive",""]
[8823,"8823","Scripps Ranch Student Store",null,"",null,null,"inactive",""]
[8824,"8824","Henry Student Store",null,"",null,null,"inactive",""]
[8825,"8825","Pt Loma Student Store",null,"",null,null,"inactive",""]
[8826,"8826","Hoover Student Store",null,"",{"$nulls":3},""]
[8827,"8827","Gompers Student Store",null,"",{"$nulls":3},""]
[8828,"8828","Madison Student Store",null,"",null,null,"inactive",""]
[8829,"8829","Serra Student Store",null,"",{"$nulls":3},""]
[9003,"9003","Adams",null,"",null,null,"BG2",""]
[9004,"9004","Alcott",null,"",null,null,"BG2",""]
[9005,"9005","Anderson",null,"",null,null,"BG2",""]
[9007,"9007","Angier",null,"",null,null,"BG2",""]
[9008,"9008","Audeo New Property",null,"",null,null,"BG2",""]
[9009,"9009","Audubon",null,"",null,null,"BG2",""]
[9011,"9011","Baker",null,"",null,null,"BG2",""]
[9013,"9013","Balboa",null,"",null,null,"BG2",""]
[9015,"9015","Bandini",null,"",null,null,"BG2",""]
[9017,"9017","Barnard",null,"",null,null,"BG2",""]
[9019,"9019","Linda Vista Annex",null,"",null,null,"BG2",""]
[9021,"9021","Bay Park",null,"",null,null,"BG2",""]
[9023,"9023","Bayview Terrace",null,"",null,null,"BG2",""]
[9027,"9027","Benchley",null,"",null,null,"BG2",""]
[9029,"9029","Bird Rock",null,"",null,null,"BG2",""]
[9031,"9031","Birney",null,"",null,null,"BG2",""]
[9033,"9033","Boone",null,"",null,null,"BG2",""]
[9037,"9037","Brooklyn",null,"",null,null,"BG2",""]
[9039,"9039","Burbank",null,"",null,null,"BG2",""]
[9040,"9040","Miramar Area New Twin Schools",null,"",null,null,"BG2",""]
[9041,"9041","Cabrillo",null,"",null,null,"BG2",""]
[9043,"9043","Cadman",null,"",null,null,"BG2",""]
[9055,"9055","Carson",null,"",null,null,"BG2",""]
[9057,"9057","Carver",null,"",null,null,"BG2",""]
[9059,"9059","Central",null,"",null,null,"BG2",""]
[9060,"9060","Chavez",null,"",null,null,"BG2",""]
[9061,"9061","Chesterton",null,"",null,null,"BG2",""]
[9062,"9062","Cherokee Point",null,"",null,null,"BG2",""]
[9063,"9063","Chollas",null,"",null,null,"BG2",""]
[9064,"9064","New Mead",null,"",null,null,"BG2",""]
[9065,"9065","Clay",null,"",null,null,"BG2",""]
[9067,{"$f":"TEXT(A1155,\"0000\")","v":"9067"},"Cleveland",null,{"$f":"IFERROR(VLOOKUP(D1155,F:G,2,FALSE),\"\")","v":""},null,null,"BG2",{"$f":"IFERROR(VLOOKUP(H1155,J:K,2,FALSE),\"\")","v":""}]
[9073,"9073","Crown Point",null,"",null,null,"BG2",""]
[9075,"9075","Cubberly",null,"",null,null,"BG2",""]
[9077,"9077","Curie",null,"",null,null,"BG2",""]
[9078,"9078","Dailard",null,"",null,null,"BG2",""]
[9079,"9079","Darnall E-Campus",null,"",null,null,"BG2",""]
[9080,"9080","Dana",null,"",null,null,"BG2",""]
[9083,"9083","Decatur",null,"",null,null,"BG2",""]
[9085,"9085","Dewey",null,"",null,null,"BG2",""]
[9086,"9086","Dingeman",null,"",null,null,"BG2",""]
[9087,"9087","Doyle",null,"",null,null,"BG2",""]
[9089,"9089","Edison",null,"",null,null,"BG2",""]
[9090,"9090","Spring Canyon Site",null,"",null,null,"BG2",""]
[9091,"9091","Emerson",null,"",null,null,"BG2",""]
[9093,"9093","Encanto",null,"",null,null,"BG2",""]
[9095,"9095","Euclid",null,"",null,null,"BG2",""]
[9103,"9103","Field",null,"",null,null,"BG2",""]
[9105,"9105","Fletcher",null,"",null,null,"BG2",""]
[9107,"9107","Florence",null,"",null,null,"BG2",""]
[9109,"9109","Forward",null,"",null,null,"BG2",""]
[9111,"9111","Foster",null,"",null,null,"BG2",""]
[9113,"9113","Franklin",null,"",null,null,"BG2",""]
[9115,"9115","Freese",null,"",null,null,"BG2",""]
[9117,"9117","Fremont",null,"",null,null,"BG2",""]
[9119,"9119","Fulton",null,"",null,null,"BG2",""]
[9121,"9121","Gage",null,"",null,null,"BG2",""]
[9123,"9123","Bethune",null,"",null,null,"BG2",""]
[9124,"9124","Garfield",null,"",null,null,"BG2",""]
[9125,"9125","Zamarano",null,"",null,null,"BG2",""]
[9127,"9127","Grant",null,"",null,null,"BG2",""]
[9128,"9128","Golden Hill",null,"",null,null,"BG2",""]
[9129,"9129","Grantville",null,"",null,null,"BG2",""]
[9130,"9130","Joyner",null,"",null,null,"BG2",""]
[9131,"9131","Green",null,"",null,null,"BG2",""]
[9132,"9132","Fay",null,"",null,null,"BG2",""]
[9134,"9134","Hage",null,"",null,null,"BG2",""]
[9135,"9135","Hamilton",null,"",null,null,"BG2",""]
[9136,"9136","Hancock",null,"",null,null,"BG2",""]
[9137,"9137","Rodriguez",null,"",null,null,"BG2",""]
[9139,"9139","Hardy",null,"",null,null,"BG2",""]
[9141,"9141","Hawthorne",null,"",null,null,"BG2",""]
[9143,"9143","Hearst",null,"",null,null,"BG2",""]
[9147,"9147","Holmes",null,"",null,null,"BG2",""]
[9149,"9149","Horton",null,"",null,null,"BG2",""]
[9150,"9150","Ibarra",null,"",null,null,"BG2",""]
[9153,"9153","Jackson",null,"",null,null,"BG2",""]
[9155,"9155","Jefferson",null,"",null,null,"BG2",""]
[9156,"9156","Jerabek",null,"",null,null,"BG2",""]
[9157,"9157","Johnson",null,"",null,null,"BG2",""]
[9159,"9159","Jones",null,"",null,null,"BG2",""]
[9161,"9161","Juarez",null,"",null,null,"BG2",""]
[9162,"9162","Kimbrough",null,"",null,null,"BG2",""]
[9165,"9165","Knox",null,"",null,null,"BG2",""]
[9166,"9166","Kumeyaay",null,"",null,null,"BG2",""]
[9167,"9167","Lafayette",null,"",null,null,"BG2",""]
[9169,"9169","La Jolla",null,"",null,null,"BG2",""]
[9170,"9170","Language Acad",null,"",null,null,"BG2",""]
[9171,"9171","Lee",null,"",null,null,"BG2",""]
[9173,"9173","Linda Vista",null,"",null,null,"BG2",""]
[9175,"9175","Lindbergh/Schweitzer",null,"",null,null,"BG2",""]
[9177,"9177","Logan",null,"",null,null,"BG2",""]
[9179,"9179","Loma Portal",null,"",null,null,"BG2",""]
[9181,"9181","Longfellow",null,"",null,null,"BG2",""]
[9185,"9185","Perkins",null,"",null,null,"BG2",""]
[9188,{"$f":"TEXT(A1219,\"0000\")","v":"9188"},"MacDowell",null,{"$f":"IFERROR(VLOOKUP(D1219,F:G,2,FALSE),\"\")","v":""},null,null,"BG2",{"$f":"IFERROR(VLOOKUP(H1219,J:K,2,FALSE),\"\")","v":""}]
[9193,"9193","Marcy",null,"",null,null,"BG2",""]
[9195,"9195","Marshall",null,"",null,null,"BG2",""]
[9197,"9197","Marvin",null,"",null,null,"BG2",""]
[9199,"9199","Mason",null,"",null,null,"BG2",""]
[9200,"9200","Jonas Salk Elementary",null,"",null,null,"BG2",""]
[9201,"9201","Hickman",null,"",null,null,"BG2",""]
[9203,"9203","McKinley",null,"",null,null,"BG2",""]
[9205,"9205","Old Mead",null,"",null,null,"BG2",""]
[9206,"9206","Miller",null,"",null,null,"BG2",""]
[9208,"9208","North Park",null,"",null,null,"BG2",""]
[9210,"9210","Miramar Ranch",null,"",null,null,"BG2",""]
[9211,"9211","Mission Beach",null,"",null,null,"inactive",""]
[9214,"9214","Harriet Tubman Village",null,"",null,null,"BG2",""]
[9215,"9215","Normal Heights",null,"",null,null,"BG2",""]
[9217,"9217","Ericson",null,"",null,null,"BG2",""]
[9218,"9218","Nye",null,"",null,null,"BG2",""]
[9219,"9219","Sandburg",null,"",null,null,"BG2",""]
[9223,"9223","Oak Park",null,"",null,null,"BG2",""]
[9225,"9225","Ocean Beach",null,"",null,null,"BG2",""]
[9226,"9226","Ocean Discovery",null,"",null,null,"BG2",""]
[9227,"9227","Pacific Beach",null,"",null,null,"BG2",""]
[9229,"9229","Paradise Hills",null,"",null,null,"BG2",""]
[9230,"9230","Rosa Parks",null,"",null,null,"BG2",""]
[9235,"9235","Penn",null,"",null,null,"BG2",""]
[9236,"9236","Porter",null,"",null,null,"BG2",""]
[9237,"9237","Perry",null,"",null,null,"BG2",""]
[9239,"9239","Revere Center",null,"",null,null,"BG2",""]
[9243,"9243","Rolando Park",null,"",null,null,"BG2",""]
[9247,"9247","Ross",null,"",null,null,"BG2",""]
[9249,"9249","Rowan",null,"",null,null,"BG2",""]
[9251,"9251","Scripps",null,"",null,null,"BG2",""]
[9253,"9253","Sequoia",null,"",null,null,"BG2",""]
[9255,"9255","Sessions",null,"",null,null,"BG2",""]
[9259,"9259","Sherman",null,"",null,null,"BG2",""]
[9261,"9261","Silver Gate",null,"",null,null,"BG2",""]
[9263,"9263","Spreckels",null,"",null,null,"BG2",""]
[9265,"9265","Stevenson",null,"",null,null,"BG2",""]
[9267,"9267","King",null,"",null,null,"BG2",""]
[9269,"9269","Sunset View",null,"",null,null,"BG2",""]
[9274,"9274","Tierransanta",null,"",null,null,"BG2",""]
[9277,"9277","Toler",null,"",null,null,"BG2",""]
[9279,"9279","Torrey Pines",null,"",null,null,"BG2",""]
[9283,"9283","Valencia Park",null,"",null,null,"BG2",""]
[9284,"9284","Vista Grande",null,"",null,null,"BG2",""]
[9285,"9285","Walker",null,"",null,null,"BG2",""]
[9287,"9287","Washington",null,"",null,null,"BG2",""]
[9289,"9289","Webster",null,"",null,null,"BG2",""]
[9291,"9291","Wegeforth",null,"",null,null,"BG2",""]
[9293,"9293","Benchley/Weinberger",null,"",null,null,"BG2",""]
[9295,"9295","Whitman",null,"",null,null,"BG2",""]
[9297,"9297","Whittier",null,"",null,null,"BG2",""]
[9299,"9299","Wiggins",null,"",null,null,"BG2",""]
[9302,"9302","Bell",null,"",null,null,"BG2",""]
[9303,"9303","Challenger",null,"",null,null,"BG2",""]
[9304,"9304","Correia",null,"",null,null,"BG2",""]
[9307,"9307","Kroc",null,"",null,null,"BG2",""]
[9308,"9308","E.B. Scripps",null,"",null,null,"BG2",""]
[9309,"9309","Hale",null,"",null,null,"inactive",""]
[9311,"9311","Lewis",null,"",null,null,"BG2",""]
[9312,"9312","Mann",null,"",null,null,"BG2",""]
[9313,"9313","Marston",null,"",null,null,"BG2",""]
[9315,"9315","Memorial",null,"",null,null,"BG2",""]
[9316,"9316","Montgomery",null,"",null,null,"BG2",""]
[9317,{"$f":"TEXT(A1283,\"0000\")","v":"9317"},"Muirlands",null,{"$f":"IFERROR(VLOOKUP(D1283,F:G,2,FALSE),\"\")","v":""},null,null,"BG2",{"$f":"IFERROR(VLOOKUP(H1283,J:K,2,FALSE),\"\")","v":""}]
[9319,"9319","O'Farrell Community",null,"",null,null,"BG2",""]
[9320,"9320","Pacific Beach MS",null,"",null,null,"BG2",""]
[9321,"9321","Pershing",null,"",null,null,"BG2",""]
[9322,"9322","Clark",null,"",null,null,"BG2",""]
[9324,"9324","Roosevelt",null,"",null,null,"BG2",""]
[9325,"9325","Standley",null,"",null,null,"BG2",""]
[9326,"9326","Taft",null,"",null,null,"BG2",""]
[9327,"9327","De Portola",null,"",null,null,"BG2",""]
[9328,"9328","Wangenheim",null,"",null,null,"BG2",""]
[9329,"9329","Wilson",null,"",null,null,"BG2",""]
[9331,"9331","ALBA High",null,"",null,null,"inactive",""]
[9332,"9332","Clairemont",null,"",null,null,"BG2",""]
[9334,"9334","Crawford",null,"",null,null,"BG2",""]
[9335,"9335","Gompers West",null,"",null,null,"BG2",""]
[9336,"9336","Henry",null,"",null,null,"BG2",""]
[9338,"9338","Hoover",null,"",null,null,"BG2",""]
[9340,"9340","Kearny",null,"",null,null,"BG2",""]
[9341,"9341","Gompers East",null,"",null,null,"BG2",""]
[9342,"9342","La Jolla HS",null,"",null,null,"BG2",""]
[9344,"9344","Lincoln",null,"",null,null,"BG2",""]
[9346,"9346","Madison",null,"",null,null,"BG2",""]
[9349,"9349","Mira Mesa",null,"",null,null,"BG2",""]
[9350,"9350","Mission Bay",null,"",null,null,"BG2",""]
[9351,"9351","Twain at Morse HS",null,"",null,null,"BG2",""]
[9352,"9352","Morse",null,"",null,null,"BG2",""]
[9354,"9354","Point Loma",null,"",null,null,"BG2",""]
[9355,"9355","University City",null,"",null,null,"BG2",""]
[9356,"9356","San Diego",null,"",null,null,"BG2",""]
[9357,"9357","Serra",null,"",null,null,"BG2",""]
[9359,"9359","Scripps Ranch",null,"",null,null,"BG2",""]
[9361,"9361","Garfield HS",null,"",null,null,"BG2",""]
[9362,"9362","Twain Main Jr/Sr High",null,"",null,null,"BG2",""]
[9364,"9364","Riley",null,"",null,null,"BG2",""]
[9365,"9365","Keiller",null,"",null,null,"BG2",""]
[9367,"9367","Farb",null,"",null,null,"BG2",""]
[9368,"9368","SCPA",null,"",null,null,"BG2",""]
[9369,"9369","John Muir School",null,"",null,null,"BG2",""]
[9370,"9370","Marshall MS",null,"",null,null,"BG2",""]
[9375,"9375","Downtown Library School",null,"",null,null,"BG2",""]
[9380,"9380","Scripps (E.B.)",null,"",{"$nulls":3},""]
[9402,"9402","Marcy Ave Complex",null,"",null,null,"BG2",""]
[9481,"9481","Facilities Construction",null,"",null,null,"BG2",""]
[9552,"9552","Supply Center",null,"",null,null,"BG2",""]
[9609,"9609","Physical Plant Ops Transfer",null,"",null,null,"BG2",""]
[9610,"9610","Physical Plant Operations",null,"",null,null,"BG2",""]
[9650,"9650","Transportation Center",null,"",null,null,"BG2",""]
[9677,"9677","Fairbrook Site",null,"",null,null,"BG2",""]
[9834,"9834","Bayview CDC",null,"",null,null,"BG2",""]
[9835,"9835","Brooklyn CDC",null,"",null,null,"BG2",""]
[9846,"9846","Kennedy CDC",null,"",null,null,"BG2",""]
[9863,"9863","Bay Point Preschool",null,"",null,null,"BG2",""]
[9905,"9905","OCILE - Camp Palomar",null,"",null,null,"BG2",""]
[9907,"9907","Bay Terraces #11",null,"",null,null,"BG2",""]
[9908,"9908","Camp Elliot Elementary #3",null,"",null,null,"BG2",""]
[9909,"9909","Camp Elliott Jr HS #2",null,"",null,null,"BG2",""]
[9910,"9910","Irving Site",null,"",null,null,"BG2",""]
[9912,"9912","Serra Elementary",null,"",null,null,"BG2",""]
[9992,"9992","Education Center",null,"",null,null,"BG2",""]
[9996,"9996","Instructional Media Center",null,"",null,null,"BG2",""]

{"sheet":"AC","index":2,"n_rows":2335,"n_cols":4,"rows_kept":2335,"hidden":true}
["Account","Account","Long Descr"]
["0000",{"$f":"VALUE(A2)","v":0}]
["0341",341,"SD Millennial Tech Magnet"]
["1000",1000,"Certificated Salaries"]
["1100",1100,"Teachers'  Salaries"]
["1101",1101,"Teacher/Childrens Center","Spsa"]
["1103",1103,"Teacher/Clsrm/Preschool","1.  Strategies to meet ELA/Math/ELD goals (Maximizing Instructional Time)"]
["1107",1107,"Classroom Teacher","1.  Strategies to meet ELA/Math/ELD goals (Maximizing Instructional Time)"]
["1109",1109,"Pull/Out Push In","2.  Strategies to meet ELA/Math/ELD goals (Closing the Gap)"]
["1113",1113,"Teacher/Clsrm/GATE","3.  Strategies to meet ELA/Math/ELD goals (Professional Development)"]
["1114",1114,"Enrollment Reserve","4.  Strategies to meet graduation/promotion rates (Social/Emotional Supports)"]
["1118",1118,"Prep Time Teacher Allocation","5.  Strategies to meet parent engagement goals"]
["1128",1128,"Resource Specialist","5.  Strategies to meet parent engagement goals"]
["1132",1132,"Master/Lead Teacher","5.  Strategies to meet parent engagement goals"]
["1136",1136,"Lv of Absence NonPay Status","5.  Strategies to meet parent engagement goals"]
["1147",1147,"Clsrm Cert Salry Undist Contra","5.  Strategies to meet parent engagement goals"]
["1150",1150,"Teacher Asst/Clsrm/Hrly","LCFF Intervention Supports"]
["1151",1151,"Teacher/Childrens Ctr/Hrly","LCFF Intervention Supports"]
["1152",1152,"Extended Day Pay Per Unit","LCFF Intervention Supports"]
["1153",1153,"Tchr/Clsrm/Preschool/Hrly","LCFF Intervention Supports"]
["1154",1154,"Enrollment Reserve","LCFF Intervention Supports"]
["1157",1157,"Classroom Teacher Hrly","LCFF Intervention Supports"]
["1158",1158,"Techer/Clsrm/Ext Day/ROTC","LCFF Intervention Supports"]
["1159",1159,"PullOut/Push in Hrly","1.  Strategies to meet ELA/Math/ELD goals (Maximizing Instructional Time)"]
["1160",1160,"Student Teacher Supv","1.  Strategies to meet ELA/Math/ELD goals (Maximizing Instructional Time)"]
["1161",1161,"Sub In Lieu of Overformula","1.  Strategies to meet ELA/Math/ELD goals (Maximizing Instructional Time)"]
["1162",1162,"Short Term Leave Visiting Tchr","2.  Strategies to meet ELA/Math/ELD goals (Closing the Gap)"]
["1163",1163,"Long Term Leave Visiting Tchr","2.  Strategies to meet ELA/Math/ELD goals (Closing the Gap)"]
["1164",1164,"Teacher/ClsrmSuper/Hrly","2.  Strategies to meet ELA/Math/ELD goals (Closing the Gap)"]
["1165",1165,"Jury & Berevmnt Visiting Tchr","5.  Strategies to meet parent engagement goals"]
["1168",1168,"Tchr/Elem/PrepTime/Hrly","5.  Strategies to meet parent engagement goals"]
["1170",1170,"Prof&Curriclm DevHrlyClsrmTchr","5.  Strategies to meet parent engagement goals"]
["1171",1171,"Hourly Tutorial Assignment","LCFF Intervention Supports"]
["1178",1178,"Resource Specialist Hrly","LCFF Intervention Supports"]
["1182",1182,"Master Lead Tchr/Hrly","LCFF Intervention Supports"]
["1186",1186,"Other Cert/Ret/Consultant/Cl","1.  Strategies to meet ELA/Math/ELD goals (Maximizing Instructional Time)"]
["1187",1187,"Adult Ed/Hrly","1.  Strategies to meet ELA/Math/ELD goals (Maximizing Instructional Time)"]
["1189",1189,"Retired Clsrm Teacher Hrly","2.  Strategies to meet ELA/Math/ELD goals (Closing the Gap)"]
["1192",1192,"Prof&Curriclm Dev Vist Tchr","2.  Strategies to meet ELA/Math/ELD goals (Closing the Gap)"]
["1197",1197,"Clsrm Cert Hrly Undist/Contra","3.  Strategies to meet ELA/Math/ELD goals (Professional Development)"]
["1200",1200,"Certificated Pupil Support Sal","3.  Strategies to meet ELA/Math/ELD goals (Professional Development)"]
["1201",1201,"Librarian","4.  Strategies to meet graduation/promotion rates (Social/Emotional Supports)"]
["1202",1202,"Principal/Special Assign/Cert","4.  Strategies to meet graduation/promotion rates (Social/Emotional Supports)"]
["1203",1203,"Vice-Principal/School Site","5.  Strategies to meet parent engagement goals"]
["1204",1204,"Vice Principal/Spec Assign/Cer","LCFF Intervention Supports"]
["1206",1206,"OCILE Administrator","LCFF Intervention Supports"]
["1208",1208,"Charter School Admin/Cert","LCFF Intervention Supports"]
["1210",1210,"Counselor","1.  Strategies to meet ELA/Math/ELD goals (Maximizing Instructional Time)"]
["1220",1220,"Psychologist","1.  Strategies to meet ELA/Math/ELD goals (Maximizing Instructional Time)"]
["1230",1230,"Audiologist/Audiometrist","1.  Strategies to meet ELA/Math/ELD goals (Maximizing Instructional Time)"]
["1240",1240,"Nurse","1.  Strategies to meet ELA/Math/ELD goals (Maximizing Instructional Time)"]
["1251",1251,"Librarian Hrly","1.  Strategies to meet ELA/Math/ELD goals (Maximizing Instructional Time)"]
["1253",1253,"Vice-Principal/Sch. Site/Hrly","1.  Strategies to meet ELA/Math/ELD goals (Maximizing Instructional Time)"]
["1258",1258,"Charter School/Admin/Hrly","2.  Strategies to meet ELA/Math/ELD goals (Closing the Gap)"]
["1260",1260,"Counselor Hrly","3.  Strategies to meet ELA/Math/ELD goals (Professional Development)"]
["1262",1262,"Nurse/Counslr/Psychologist Sub","3.  Strategies to meet ELA/Math/ELD goals (Professional Development)"]
["1270",1270,"Psychologist Hrly","4.  Strategies to meet graduation/promotion rates (Social/Emotional Supports)"]
["1280",1280,"Audiologist/Audiometrist Hrly","4.  Strategies to meet graduation/promotion rates (Social/Emotional Supports)"]
["1290",1290,"Nurse Hrly","5.  Strategies to meet parent engagement goals"]
["1300",1300,"Cert Super and Admin Sal","5.  Strategies to meet parent engagement goals"]
["1301",1301,"Superintendent","5.  Strategies to meet parent engagement goals"]
["1302",1302,"Chief SIO/Depty Superintdnt","LCFF Intervention Supports"]
["1303",1303,"Coordinator/Cert","LCFF Intervention Supports"]
["1305",1305,"Chief/Exec/Dir/Admin (Rep)","LCFF Intervention Supports"]
["1306",1306,"Chief/Exec/Dir/Admin(Non-Rep)","LCFF Intervention Supports"]
["1307",{"$f":"VALUE(A66)","v":1307},"Assistant Director/Cert","LCFF Intervention Supports"]
["1308",1308,"School Principal","1.  Strategies to meet ELA/Math/ELD goals (Maximizing Instructional Time)"]
["1309",1309,"Vice-Principal","2.  Strategies to meet ELA/Math/ELD goals (Closing the Gap)"]
["1311",1311,"Manager","2.  Strategies to meet ELA/Math/ELD goals (Closing the Gap)"]
["1313",1313,"Other Admin Cert","2.  Strategies to meet ELA/Math/ELD goals (Closing the Gap)"]
["1315",1315,"Admin On Special Assignment","4.  Strategies to meet graduation/promotion rates (Social/Emotional Supports)"]
["1321",1321,"Director","5.  Strategies to meet parent engagement goals"]
["1358",1358,"Principal Hrly","5.  Strategies to meet parent engagement goals"]
["1359",1359,"Vice-Principal Hrly","5.  Strategies to meet parent engagement goals"]
["1361",1361,"Manager/Admin Hrly","LCFF Intervention Supports"]
["1363",1363,"Administrator/Cert/Hrl","LCFF Intervention Supports"]
["1365",1365,"Admin/Spec Assign/Hrly","LCFF Intervention Supports"]
["1386",1386,"Retired Admin Hrly","LCFF Intervention Supports"]
["1401",1401,"Librarian/Cert","LCFF Intervention Supports"]
["1451",1451,"Librarian/Cert/Hrly","LCFF Intervention Supports"]
["1462",1462,"Librarian/Temp Subst","1.  Strategies to meet ELA/Math/ELD goals (Maximizing Instructional Time)"]
["1501",1501,"Counselor/Cert","1.  Strategies to meet ELA/Math/ELD goals (Maximizing Instructional Time)"]
["1502",1502,"Dist Counselor/Elem/Cert","3.  Strategies to meet ELA/Math/ELD goals (Professional Development)"]
["1503",1503,"Head Counselor/Cert","3.  Strategies to meet ELA/Math/ELD goals (Professional Development)"]
["1507",1507,"Psychologist/Cert","3.  Strategies to meet ELA/Math/ELD goals (Professional Development)"]
["1509",1509,"Psychologist Intern","4.  Strategies to meet graduation/promotion rates (Social/Emotional Supports)"]
["1551",1551,"Counselor/Cert/Hrly","5.  Strategies to meet parent engagement goals"]
["1553",1553,"Head Counselor/Cert/Hourly","5.  Strategies to meet parent engagement goals"]
["1557",1557,"Psychologist/Cert/Hourly","5.  Strategies to meet parent engagement goals"]
["1559",1559,"Psychologist Intern/Hourly","LCFF Intervention Supports"]
["1562",1562,"Counselor/Psychologist Subst","LCFF Intervention Supports"]
["1579",1579,"Diagnostic Resource Tchr/Hrly","LCFF Intervention Supports"]
["1603",1603,"Audiologist/Cert","LCFF Intervention Supports"]
["1605",1605,"Audiometrist/Cert","LCFF Intervention Supports"]
["1609",1609,"Nurse/Cert","LCFF Intervention Supports"]
["1653",1653,"Audiologist/Cert/Hrly","2.  Strategies to meet ELA/Math/ELD goals (Closing the Gap)"]
["1655",1655,"Audiometrist/Cert/Hourly","5.  Strategies to meet parent engagement goals"]
["1659",1659,"Nurse/Cert/Hrly","5.  Strategies to meet parent engagement goals"]
["1660",1660,"Nurse/Subst/Cert/Temp.","LCFF Intervention Supports"]
["1801",1801,"Executive Director","LCFF Intervention Supports"]
["1806",1806,"Human Resrc Admin Cert","LCFF Intervention Supports"]
["1808",1808,"Chancellor Of Instruction","3.  Strategies to meet ELA/Math/ELD goals (Professional Development)"]
["1809",1809,"Deputy Superintendent","3.  Strategies to meet ELA/Math/ELD goals (Professional Development)"]
["1812",1812,"Assistant Superintendents","LCFF Intervention Supports"]
["1862",1862,"Instruc Ldrs/Hrly","LCFF Intervention Supports"]
["1900",1900,"Other Certificated Salaries","LCFF Intervention Supports"]
["1901",1901,"Principal/Special Asssign/Cert","LCFF Intervention Supports"]
["1904",1904,"Site Staff Developers","1.  Strategies to meet ELA/Math/ELD goals (Maximizing Instructional Time)"]
["1906",1906,"Certified Transition Worker","1.  Strategies to meet ELA/Math/ELD goals (Maximizing Instructional Time)"]
["1907",1907,"Non Clsrm Teacher","1.  Strategies to meet ELA/Math/ELD goals (Maximizing Instructional Time)"]
["1908",1908,"Intern Support Provider","1.  Strategies to meet ELA/Math/ELD goals (Maximizing Instructional Time)"]
["1910",1910,"Program Specialist","1.  Strategies to meet ELA/Math/ELD goals (Maximizing Instructional Time)"]
["1911",1911,"Vice Principal/Spec Assign/Cer","1.  Strategies to meet ELA/Math/ELD goals (Maximizing Instructional Time)"]
["1915",1915,"Admin On Special Assignment","1.  Strategies to meet ELA/Math/ELD goals (Maximizing Instructional Time)"]
["1916",1916,"District Employee On Loan","1.  Strategies to meet ELA/Math/ELD goals (Maximizing Instructional Time)"]
["1929",1929,"Diagnostic Resource Teacher","1.  Strategies to meet ELA/Math/ELD goals (Maximizing Instructional Time)"]
["1955",1955,"Teacher/Non-Clsrm/Hrly","1.  Strategies to meet ELA/Math/ELD goals (Maximizing Instructional Time)"]
["1957",1957,"Non Clsrm Tchr Hrly","2.  Strategies to meet ELA/Math/ELD goals (Closing the Gap)"]
["1958",1958,"Other Cert Pers/Hrly","2.  Strategies to meet ELA/Math/ELD goals (Closing the Gap)"]
["1960",1960,"Pgm Specialist/Hrly","3.  Strategies to meet ELA/Math/ELD goals (Professional Development)"]
["1964",1964,"Site Staff Developer/N-C/Cert/","5.  Strategies to meet parent engagement goals"]
["1965",1965,"Admin/Spec Assign/Hrly","5.  Strategies to meet parent engagement goals"]
["1971",1971,"NonClsrm Prof&Curriclm DevHrly","5.  Strategies to meet parent engagement goals"]
["1973",1973,"NonClsrm Cert Prof Dev/Hrly","1.  Strategies to meet ELA/Math/ELD goals (Maximizing Instructional Time)"]
["1975",1975,"Inservice Trainer Hrly","1.  Strategies to meet ELA/Math/ELD goals (Maximizing Instructional Time)"]
["1979",1979,"Diagnostic Resource Tchr Hrly","2.  Strategies to meet ELA/Math/ELD goals (Closing the Gap)"]
["1986",1986,"Retired NonClsrm Tchr Hrly","2.  Strategies to meet ELA/Math/ELD goals (Closing the Gap)"]
["1992",1992,"Certificated Stipend","2.  Strategies to meet ELA/Math/ELD goals (Closing the Gap)"]
["1997",1997,"No Clsrm/Cert  Salaries Contra","3.  Strategies to meet ELA/Math/ELD goals (Professional Development)"]
["1998",{"$f":"VALUE(A130)","v":1998},"Undistr Cert Salary","5.  Strategies to meet parent engagement goals"]
["2000",2000,"Classified Salaries","5.  Strategies to meet parent engagement goals"]
["2100",2100,"Instructional Aide Salaries","5.  Strategies to meet parent engagement goals"]
["2101",2101,"Classroom PARAS","LCFF Intervention Supports"]
["2104",2104,"Special Ed Technician Clsrm","LCFF Intervention Supports"]
["2109",2109,"Instructn Asst Individual Inst","LCFF Intervention Supports"]
["2112",2112,"Special Ed Instr Behavior Tech","LCFF Intervention Supports"]
["2115",2115,"Behavior Support Specialist","LCFF Intervention Supports"]
["2116",2116,"Rehabilitation Specialist","1.  Strategies to meet ELA/Math/ELD goals (Maximizing Instructional Time)"]
["2117",2117,"Locker Rm Attend/Clsrm","1.  Strategies to meet ELA/Math/ELD goals (Maximizing Instructional Time)"]
["2118",2118,"Behavior Support Assistant","1.  Strategies to meet ELA/Math/ELD goals (Maximizing Instructional Time)"]
["2121",2121,"Interpreter Deaf Classroom","1.  Strategies to meet ELA/Math/ELD goals (Maximizing Instructional Time)"]
["2122",2122,"Health Svcs Outreach Asst.","2.  Strategies to meet ELA/Math/ELD goals (Closing the Gap)"]
["2123",2123,"Community Asst/Classroom","2.  Strategies to meet ELA/Math/ELD goals (Closing the Gap)"]
["2125",2125,"Braille Comp Skls Asst","2.  Strategies to meet ELA/Math/ELD goals (Closing the Gap)"]
["2126",2126,"Classroom OTBS","3.  Strategies to meet ELA/Math/ELD goals (Professional Development)"]
["2127",2127,"Childcare Activity Leader","3.  Strategies to meet ELA/Math/ELD goals (Professional Development)"]
["2128",2128,"Childcare Activity Asst","3.  Strategies to meet ELA/Math/ELD goals (Professional Development)"]
["2129",2129,"Braille Transcriber","3.  Strategies to meet ELA/Math/ELD goals (Professional Development)"]
["2132",2132,"Educational Transcriber","4.  Strategies to meet graduation/promotion rates (Social/Emotional Supports)"]
["2134",2134,"Spec Ed Tech Individualized In","4.  Strategies to meet graduation/promotion rates (Social/Emotional Supports)"]
["2147",2147,"Sch To Work Trans Asst","4.  Strategies to meet graduation/promotion rates (Social/Emotional Supports)"]
["2151",2151,"Classroom PARAS Hrly","4.  Strategies to meet graduation/promotion rates (Social/Emotional Supports)"]
["2152",2152,"Instr Asst/Bus/Hrly","5.  Strategies to meet parent engagement goals"]
["2154",2154,"Special Ed Tech Clsrm Hrly","5.  Strategies to meet parent engagement goals"]
["2156",2156,"Student Helper/Classroom/Hrly","5.  Strategies to meet parent engagement goals"]
["2158",2158,"Work Incentive Trainee","LCFF Intervention Supports"]
["2159",2159,"Instructn Assist Individual In","LCFF Intervention Supports"]
["2162",2162,"Sp Ed Instr Behavior Tech Hrly","LCFF Intervention Supports"]
["2165",2165,"Behavior Support Hrly","LCFF Intervention Supports"]
["2167",2167,"Locker Rm Attend/Clsrm/Hrly","LCFF Intervention Supports"]
["2168",2168,"Paraeducator / Substitutes","LCFF Intervention Supports"]
["2169",2169,"Classroom Assistant/Hrly/Chart","1.  Strategies to meet ELA/Math/ELD goals (Maximizing Instructional Time)"]
["2170",2170,"Behavior Support Spec/Hrly","1.  Strategies to meet ELA/Math/ELD goals (Maximizing Instructional Time)"]
["2171",2171,"Interpreter Deaf Clsrm Hrly","2.  Strategies to meet ELA/Math/ELD goals (Closing the Gap)"]
["2172",2172,"Health Svcs Outreach Asst./Hrl","2.  Strategies to meet ELA/Math/ELD goals (Closing the Gap)"]
["2173",2173,"Community Asst/Clsrm/Hrly","5.  Strategies to meet parent engagement goals"]
["2175",2175,"Braille Co Sk Asst/Hrly","5.  Strategies to meet parent engagement goals"]
["2176",2176,"Classroom OTBS Hrly","LCFF Intervention Supports"]
["2178",2178,"Child Care Act Asst/Hrly/Clsrm","LCFF Intervention Supports"]
["2179",2179,"Braille Transcriber / Hrly","LCFF Intervention Supports"]
["2182",2182,"Educational Transcriber Hourly","LCFF Intervention Supports"]
["2183",2183,"Classroom NonUnion Hrly","LCFF Intervention Supports"]
["2189",2189,"Behavior Support Asst/Hrly","1.  Strategies to meet ELA/Math/ELD goals (Maximizing Instructional Time)"]
["2192",2192,"College Student Worker/Clsrm","2.  Strategies to meet ELA/Math/ELD goals (Closing the Gap)"]
["2194",2194,"Student Intern/Hrly","2.  Strategies to meet ELA/Math/ELD goals (Closing the Gap)"]
["2196",2196,"Ret/Clsfd/Hr/Exempt/Ret Calc","5.  Strategies to meet parent engagement goals"]
["2197",2197,"Sch To Work Trans Asst/Hrly","LCFF Intervention Supports"]
["2200",2200,"Classified Support Salary","LCFF Intervention Supports"]
["2201",2201,"Custodian","LCFF Intervention Supports"]
["2202",2202,"Landscaper  Pesticide Tech","1.  Strategies to meet ELA/Math/ELD goals (Maximizing Instructional Time)"]
["2205",2205,"Maintenance OSS","2.  Strategies to meet ELA/Math/ELD goals (Closing the Gap)"]
["2206",2206,"Maintenance OTBS","2.  Strategies to meet ELA/Math/ELD goals (Closing the Gap)"]
["2207",2207,"Mechanic  Technician","2.  Strategies to meet ELA/Math/ELD goals (Closing the Gap)"]
["2208",2208,"Chief Of Staff","2.  Strategies to meet ELA/Math/ELD goals (Closing the Gap)"]
["2209",2209,"Deputy Chief of Staff","2.  Strategies to meet ELA/Math/ELD goals (Closing the Gap)"]
["2210",2210,"Operations Driver","2.  Strategies to meet ELA/Math/ELD goals (Closing the Gap)"]
["2211",2211,"Bus Driver","3.  Strategies to meet ELA/Math/ELD goals (Professional Development)"]
["2212",2212,"Bus Monitor","5.  Strategies to meet parent engagement goals"]
["2213",2213,"Other Pupil Transprt Prsnl OSS","5.  Strategies to meet parent engagement goals"]
["2215",2215,"School Police Sworn","5.  Strategies to meet parent engagement goals"]
["2216",2216,"School Police NonSworn","5.  Strategies to meet parent engagement goals"]
["2217",2217,"Campus Security Assistant","LCFF Intervention Supports"]
["2218",2218,"Controller","LCFF Intervention Supports"]
["2219",{"$f":"VALUE(A194)","v":2219},"Coordinator/Clsfd","LCFF Intervention Supports"]
["2220",2220,"Food Service Workers","LCFF Intervention Supports"]
["2222",2222,"Assist General Counsel","LCFF Intervention Supports"]
["2223",2223,"Director/Clsfd","1.  Strategies to meet ELA/Math/ELD goals (Maximizing Instructional Time)"]
["2226",2226,"Employer Outreach Specialist","2.  Strategies to meet ELA/Math/ELD goals (Closing the Gap)"]
["2228",2228,"Schools Architect/Clsfd","2.  Strategies to meet ELA/Math/ELD goals (Closing the Gap)"]
["2229",2229,"General Counsel","2.  Strategies to meet ELA/Math/ELD goals (Closing the Gap)"]
["2230",2230,"Libry  Media & Tech OTBS","2.  Strategies to meet ELA/Math/ELD goals (Closing the Gap)"]
["2231",2231,"Other Support Prsnl PARAS","5.  Strategies to meet parent engagement goals"]
["2232",2232,"Other Support Prsnl OTBS","LCFF Intervention Supports"]
["2233",2233,"Other Support Prsnl OSS","LCFF Intervention Supports"]
["2235",2235,"Health Prsnl OTBS","LCFF Intervention Supports"]
["2236",2236,"Health Prsnl PARAS","1.  Strategies to meet ELA/Math/ELD goals (Maximizing Instructional Time)"]
["2237",2237,"School Police Chief","1.  Strategies to meet ELA/Math/ELD goals (Maximizing Instructional Time)"]
["2239",2239,"Chief Business Officer","1.  Strategies to meet ELA/Math/ELD goals (Maximizing Instructional Time)"]
["2240",2240,"Charter School Adm/Clsfd","2.  Strategies to meet ELA/Math/ELD goals (Closing the Gap)"]
["2241",2241,"Classified Supervisor","2.  Strategies to meet ELA/Math/ELD goals (Closing the Gap)"]
["2242",2242,"Action Officer","2.  Strategies to meet ELA/Math/ELD goals (Closing the Gap)"]
["2243",2243,"Independent Policy Analyst","2.  Strategies to meet ELA/Math/ELD goals (Closing the Gap)"]
["2246",2246,"Deputy Chief of Staff","3.  Strategies to meet ELA/Math/ELD goals (Professional Development)"]
["2247",2247,"Deputy Superintendent","3.  Strategies to meet ELA/Math/ELD goals (Professional Development)"]
["2248",2248,"Operations Specialist","3.  Strategies to meet ELA/Math/ELD goals (Professional Development)"]
["2249",2249,"Staff Action Officer","4.  Strategies to meet graduation/promotion rates (Social/Emotional Supports)"]
["2251",2251,"Custodian Hrly","5.  Strategies to meet parent engagement goals"]
["2252",2252,"Landscape / Pesticide Hrly","5.  Strategies to meet parent engagement goals"]
["2253",2253,"Operations Substitute OSS","5.  Strategies to meet parent engagement goals"]
["2255",2255,"Maintenance OSS Hrly","5.  Strategies to meet parent engagement goals"]
["2256",2256,"Maintenance OTBS Hrly","LCFF Intervention Supports"]
["2257",2257,"Mechanic  Technician Hrly","LCFF Intervention Supports"]
["2260",2260,"Operations Driver Hrly","LCFF Intervention Supports"]
["2261",2261,"Bus Driver Hrly","LCFF Intervention Supports"]
["2262",2262,"Bus Monitor Hrly","LCFF Intervention Supports"]
["2263",2263,"Other Pupil Transpt OSS Hrly","LCFF Intervention Supports"]
["2264",2264,"Other Transpt NonUnion Hrly","1.  Strategies to meet ELA/Math/ELD goals (Maximizing Instructional Time)"]
["2265",2265,"School Police Sworn Hrly","1.  Strategies to meet ELA/Math/ELD goals (Maximizing Instructional Time)"]
["2266",2266,"School Police NonSworn Hrly","2.  Strategies to meet ELA/Math/ELD goals (Closing the Gap)"]
["2267",2267,"Campus Security Asst Hrly","2.  Strategies to meet ELA/Math/ELD goals (Closing the Gap)"]
["2269",2269,"Coordinator/Clfsd/Hrly","2.  Strategies to meet ELA/Math/ELD goals (Closing the Gap)"]
["2270",2270,"Food Service Workers Hrly","2.  Strategies to meet ELA/Math/ELD goals (Closing the Gap)"]
["2276",2276,"Employer Outreach Hrly","3.  Strategies to meet ELA/Math/ELD goals (Professional Development)"]
["2280",2280,"Libry  Media  Tech OTBS Hly","3.  Strategies to meet ELA/Math/ELD goals (Professional Development)"]
["2281",2281,"Other Support Prsnl PARAS Hrly","4.  Strategies to meet graduation/promotion rates (Social/Emotional Supports)"]
["2282",2282,"Other Support Prsnl OTBS Hrly","5.  Strategies to meet parent engagement goals"]
["2285",2285,"Health Prsnl OTBS Hrly","5.  Strategies to meet parent engagement goals"]
["2286",2286,"Health Prsnl PARAS Hrly","5.  Strategies to meet parent engagement goals"]
["2291",2291,"Clsfd Supervisor/Hrly","5.  Strategies to meet parent engagement goals"]
["2298",2298,"Operations Specialist/Hrly","LCFF Intervention Supports"]
["2300",2300,"Class Super and Admin Sal","LCFF Intervention Supports"]
["2301",2301,"Board Members","LCFF Intervention Supports"]
["2302",2302,"Deputy Sup, Business","LCFF Intervention Supports"]
["2303",2303,"Community Asst/N-C","LCFF Intervention Supports"]
["2304",2304,"Braille Typist-Classified","1.  Strategies to meet ELA/Math/ELD goals (Maximizing Instructional Time)"]
["2305",2305,"Chief/Exec/Dir/Admin (Non-Rep)","3.  Strategies to meet ELA/Math/ELD goals (Professional Development)"]
["2306",2306,"Police Management Sworn","4.  Strategies to meet graduation/promotion rates (Social/Emotional Supports)"]
["2307",2307,"Police Mgmt  Sworn (Non-Rep)","5.  Strategies to meet parent engagement goals"]
["2309",2309,"Chief/Exec/Dir/Admin (Rep)","5.  Strategies to meet parent engagement goals"]
["2310",2310,"Deputy/Admin/Asst Director","5.  Strategies to meet parent engagement goals"]
["2312",2312,"Paraeducator / Nonclassroom","LCFF Intervention Supports"]
["2314",2314,"Manager (Non-Rep)","LCFF Intervention Supports"]
["2315",2315,"Manager(Rep)","LCFF Intervention Supports"]
["2318",2318,"Health Asst","LCFF Intervention Supports"]
["2319",2319,"Supervisor/Technical Pers","LCFF Intervention Supports"]
["2320",2320,"Supervisor (Rep)","1.  Strategies to meet ELA/Math/ELD goals (Maximizing Instructional Time)"]
["2321",2321,"Operations Supervisor","2.  Strategies to meet ELA/Math/ELD goals (Closing the Gap)"]
["2323",{"$f":"VALUE(A258)","v":2323},"Supervisor (Non-Rep)","3.  Strategies to meet ELA/Math/ELD goals (Professional Development)"]
["2325",2325,"Admin Aide","4.  Strategies to meet graduation/promotion rates (Social/Emotional Supports)"]
["2328",2328,"Supt'S Staff Asst","4.  Strategies to meet graduation/promotion rates (Social/Emotional Supports)"]
["2339",2339,"Safety Coordinator","5.  Strategies to meet parent engagement goals"]
["2343",2343,"ROTC Assistant","LCFF Intervention Supports"]
["2345",2345,"Pupil Advocate/Central Office","LCFF Intervention Supports"]
["2349",2349,"Translator/Interpreter","LCFF Intervention Supports"]
["2351",2351,"Construction Mgmt  Suprv Hrly","1.  Strategies to meet ELA/Math/ELD goals (Maximizing Instructional Time)"]
["2352",2352,"Mgmt/Suprv Hrly","1.  Strategies to meet ELA/Math/ELD goals (Maximizing Instructional Time)"]
["2353",2353,"Community Asst/N-C/Hrly","2.  Strategies to meet ELA/Math/ELD goals (Closing the Gap)"]
["2354",2354,"Braille Typist-Class-Hrly","3.  Strategies to meet ELA/Math/ELD goals (Professional Development)"]
["2355",2355,"Chief/Exe/Director/Fin Hrly","3.  Strategies to meet ELA/Math/ELD goals (Professional Development)"]
["2356",2356,"Police Management Sworn Hrly","3.  Strategies to meet ELA/Math/ELD goals (Professional Development)"]
["2357",2357,"Clerical Pers/Clsfd/Hourly","4.  Strategies to meet graduation/promotion rates (Social/Emotional Supports)"]
["2358",2358,"Clerical Substitute/Clsfd/Hrly","5.  Strategies to meet parent engagement goals"]
["2362",2362,"Paraeducator Non Clsrm Hrly","5.  Strategies to meet parent engagement goals"]
["2364",2364,"Guidance Asst/Hrly","5.  Strategies to meet parent engagement goals"]
["2365",2365,"Technical Pers/Clsfd/Hourly","LCFF Intervention Supports"]
["2366",2366,"IA/Hrly/Extratime/Overtime","LCFF Intervention Supports"]
["2368",2368,"Health Asst/Hrly","LCFF Intervention Supports"]
["2371",2371,"Deaf Interp / Non-Clsrm Hrly","LCFF Intervention Supports"]
["2375",2375,"Admin Aide/Hrly","LCFF Intervention Supports"]
["2376",2376,"Confidential Personnel/Hrly","1.  Strategies to meet ELA/Math/ELD goals (Maximizing Instructional Time)"]
["2383",2383,"Prof Expert N-C Hrly","1.  Strategies to meet ELA/Math/ELD goals (Maximizing Instructional Time)"]
["2393",2393,"ROTC Asist/Hrly","2.  Strategies to meet ELA/Math/ELD goals (Closing the Gap)"]
["2395",2395,"Pupil Advocate/Central Off/Hrl","2.  Strategies to meet ELA/Math/ELD goals (Closing the Gap)"]
["2399",2399,"Translator/Interpreter/Hourly","3.  Strategies to meet ELA/Math/ELD goals (Professional Development)"]
["2400",2400,"Cleric, Tech, and  Staff Sal","4.  Strategies to meet graduation/promotion rates (Social/Emotional Supports)"]
["2401",2401,"Clerical OTBS","5.  Strategies to meet parent engagement goals"]
["2402",2402,"Clerical Confidential","LCFF Intervention Supports"]
["2403",2403,"Clerical OSS","LCFF Intervention Supports"]
["2404",2404,"Guidance/Attendance Asst","LCFF Intervention Supports"]
["2405",2405,"Technical Professional OTBS","LCFF Intervention Supports"]
["2406",2406,"Technical Confidential","LCFF Intervention Supports"]
["2407",2407,"Clerical/Tech Operations","LCFF Intervention Supports"]
["2408",2408,"Dispatcher","LCFF Intervention Supports"]
["2409",2409,"Landscaper/Clsfd","1.  Strategies to meet ELA/Math/ELD goals (Maximizing Instructional Time)"]
["2410",2410,"Technical Personnel OSS","1.  Strategies to meet ELA/Math/ELD goals (Maximizing Instructional Time)"]
["2411",2411,"Truck Driver/Clsfd","2.  Strategies to meet ELA/Math/ELD goals (Closing the Gap)"]
["2415",2415,"Children Ctrs Attendant","3.  Strategies to meet ELA/Math/ELD goals (Professional Development)"]
["2416",2416,"Pesticide Technician","3.  Strategies to meet ELA/Math/ELD goals (Professional Development)"]
["2417",2417,"Light Equip Oper","5.  Strategies to meet parent engagement goals"]
["2418",2418,"Ld Landscape Tech","LCFF Intervention Supports"]
["2419",2419,"Mail Driver/Clsfd","LCFF Intervention Supports"]
["2421",2421,"Maintenance Pers/Clsfd","LCFF Intervention Supports"]
["2423",2423,"Computer Repair Technician","1.  Strategies to meet ELA/Math/ELD goals (Maximizing Instructional Time)"]
["2432",2432,"School Police Assistant Chief","1.  Strategies to meet ELA/Math/ELD goals (Maximizing Instructional Time)"]
["2434",2434,"Schl Police Office Tech","2.  Strategies to meet ELA/Math/ELD goals (Closing the Gap)"]
["2435",2435,"School Police Lieutenant","2.  Strategies to meet ELA/Math/ELD goals (Closing the Gap)"]
["2436",2436,"School Police Officer","3.  Strategies to meet ELA/Math/ELD goals (Professional Development)"]
["2439",2439,"School Comm Svcs Officer","3.  Strategies to meet ELA/Math/ELD goals (Professional Development)"]
["2451",2451,"Clerical OTBS Hrly","5.  Strategies to meet parent engagement goals"]
["2452",2452,"Clerical Confidentl Hrly","5.  Strategies to meet parent engagement goals"]
["2453",2453,"Clerical OSS Hrly","LCFF Intervention Supports"]
["2454",2454,"Guidance/Attend Asst Hrly","LCFF Intervention Supports"]
["2455",2455,"Tech Professional OTBS Hrly","LCFF Intervention Supports"]
["2456",2456,"Clerical Substitute Hrly","LCFF Intervention Supports"]
["2457",2457,"Clerical/Tech Operations/Hrly","LCFF Intervention Supports"]
["2458",2458,"Schl Pol Dispatcher/Clsfd/Hrly","LCFF Intervention Supports"]
["2459",2459,"Landscape/Clsfd/Hourly","LCFF Intervention Supports"]
["2460",2460,"Technical Pers OSS Hrly","LCFF Intervention Supports"]
["2461",2461,"Truck Driver/Clsfd/Hourly","LCFF Intervention Supports"]
["2465",2465,"Children Ctrs Attendant/Hrly","2.  Strategies to meet ELA/Math/ELD goals (Closing the Gap)"]
["2466",2466,"Pesticide Technician/Hrly","2.  Strategies to meet ELA/Math/ELD goals (Closing the Gap)"]
["2467",{"$f":"VALUE(A322)","v":2467},"Locker Rm Attend/Nclsrm/Hrly","2.  Strategies to meet ELA/Math/ELD goals (Closing the Gap)"]
["2469",2469,"Mail Driver/Clsfd/Hourly","3.  Strategies to meet ELA/Math/ELD goals (Professional Development)"]
["2471",2471,"Maintenance Pers/Clsfd/Hourly","5.  Strategies to meet parent engagement goals"]
["2473",2473,"Computer Rep Tech/Hrly","5.  Strategies to meet parent engagement goals"]
["2482",2482,"School Police Asst Chief/Hrly","LCFF Intervention Supports"]
["2483",2483,"Sch Pol/Athletics & Spec Event","LCFF Intervention Supports"]
["2484",2484,"Schl Comm Svcs Officer/Hrly","LCFF Intervention Supports"]
["2485",2485,"School Police Lieutenant/Hrly","LCFF Intervention Supports"]
["2486",2486,"School Police Officer / Hrly","LCFF Intervention Supports"]
["2503",2503,"Food Service Clerical/Tech","LCFF Intervention Supports"]
["2505",2505,"Food Service Operations","LCFF Intervention Supports"]
["2511",2511,"Food Svcs Truck Driver/Clsfd","LCFF Intervention Supports"]
["2553",2553,"Food Svcs Mgr/Hourly","2.  Strategies to meet ELA/Math/ELD goals (Closing the Gap)"]
["2555",2555,"Food Svcs Pers/Clsfd/Hourly","2.  Strategies to meet ELA/Math/ELD goals (Closing the Gap)"]
["2601",2601,"School Bus Driver","2.  Strategies to meet ELA/Math/ELD goals (Closing the Gap)"]
["2602",2602,"Extraboard Bus Driver","4.  Strategies to meet graduation/promotion rates (Social/Emotional Supports)"]
["2605",2605,"School Bus Instructor","5.  Strategies to meet parent engagement goals"]
["2606",2606,"Bus Monitor","5.  Strategies to meet parent engagement goals"]
["2607",2607,"Transportation Supervisor","5.  Strategies to meet parent engagement goals"]
["2612",2612,"Transportation Dispatcher","5.  Strategies to meet parent engagement goals"]
["2614",2614,"Bus Monitor/SET","LCFF Intervention Supports"]
["2616",2616,"Bus Monitor/IBT","LCFF Intervention Supports"]
["2623",2623,"Transp Systems Analyst","LCFF Intervention Supports"]
["2624",2624,"Transportation Scheduler","LCFF Intervention Supports"]
["2625",2625,"Fleet Maintenance Supervisor","LCFF Intervention Supports"]
["2627",2627,"Fleet Maintenance Mechanic","LCFF Intervention Supports"]
["2631",2631,"Fleet Maintenance Shop","1.  Strategies to meet ELA/Math/ELD goals (Maximizing Instructional Time)"]
["2632",2632,"Bus Driver/Fixed Benefits","1.  Strategies to meet ELA/Math/ELD goals (Maximizing Instructional Time)"]
["2633",2633,"Bus Driver/Contra","5.  Strategies to meet parent engagement goals"]
["2651",2651,"Bus Driver / ET-OT","5.  Strategies to meet parent engagement goals"]
["2652",2652,"Bus Driver/Student/Hrly","5.  Strategies to meet parent engagement goals"]
["2654",2654,"Extraboard Driver/Hrly","LCFF Intervention Supports"]
["2655",2655,"Bus Drvr Instr Hrly","LCFF Intervention Supports"]
["2656",2656,"Bus Monitor/Hrly","LCFF Intervention Supports"]
["2657",2657,"Transportation Super/Hrly","1.  Strategies to meet ELA/Math/ELD goals (Maximizing Instructional Time)"]
["2662",2662,"Transportation Dispatcher/Hrly","2.  Strategies to meet ELA/Math/ELD goals (Closing the Gap)"]
["2664",2664,"Bus Monitor/SET-Hourly","3.  Strategies to meet ELA/Math/ELD goals (Professional Development)"]
["2671",2671,"Trans Planner/Hrly","4.  Strategies to meet graduation/promotion rates (Social/Emotional Supports)"]
["2673",2673,"Transp Systems Analyst/Hrly","5.  Strategies to meet parent engagement goals"]
["2674",2674,"Scheduler/Hrly","5.  Strategies to meet parent engagement goals"]
["2675",2675,"Transp Site Liaison/Hrly","5.  Strategies to meet parent engagement goals"]
["2676",2676,"Camp Truck Asst/Hrly","LCFF Intervention Supports"]
["2677",2677,"Fleet Maintnce Mechanic/Hrly","LCFF Intervention Supports"]
["2681",2681,"Bus Driver Trainee/Hrly","LCFF Intervention Supports"]
["2683",2683,"Fleet Mntnce Shop Pers/Hrly","LCFF Intervention Supports"]
["2701",2701,"Paraeducator / Nonclassroom","LCFF Intervention Supports"]
["2702",2702,"Mental Health Clinician Clsfd","LCFF Intervention Supports"]
["2703",2703,"Physical Therapist","LCFF Intervention Supports"]
["2704",2704,"Occupational Therapist","LCFF Intervention Supports"]
["2708",2708,"Other Classified Support","1.  Strategies to meet ELA/Math/ELD goals (Maximizing Instructional Time)"]
["2709",2709,"Occupational Therapy Asst","1.  Strategies to meet ELA/Math/ELD goals (Maximizing Instructional Time)"]
["2710",2710,"Adaptive Equipment Specialist","1.  Strategies to meet ELA/Math/ELD goals (Maximizing Instructional Time)"]
["2711",2711,"Speech Lang Path Asst.","2.  Strategies to meet ELA/Math/ELD goals (Closing the Gap)"]
["2712",2712,"Braille Transcriber","2.  Strategies to meet ELA/Math/ELD goals (Closing the Gap)"]
["2714",2714,"Guidance/Attendance Assistant","3.  Strategies to meet ELA/Math/ELD goals (Professional Development)"]
["2716",2716,"Rehabilitation Specialist","4.  Strategies to meet graduation/promotion rates (Social/Emotional Supports)"]
["2718",2718,"Health Assistant","4.  Strategies to meet graduation/promotion rates (Social/Emotional Supports)"]
["2720",2720,"Health Technician","4.  Strategies to meet graduation/promotion rates (Social/Emotional Supports)"]
["2722",2722,"Career Technician","4.  Strategies to meet graduation/promotion rates (Social/Emotional Supports)"]
["2726",2726,"Case Worker","5.  Strategies to meet parent engagement goals"]
["2745",2745,"Pupil Advocate/Site","5.  Strategies to meet parent engagement goals"]
["2747",2747,"Schl To Work Transition Asst/N","5.  Strategies to meet parent engagement goals"]
["2748",2748,"Employer Outreach Specialist","5.  Strategies to meet parent engagement goals"]
["2751",2751,"Paraeducator Non Clsrm Hrly","5.  Strategies to meet parent engagement goals"]
["2752",{"$f":"VALUE(A386)","v":2752},"Mntl Hlth Clinician Clsfd Hrly","LCFF Intervention Supports"]
["2753",2753,"Physical Therapist/Hrly","LCFF Intervention Supports"]
["2754",2754,"Occupational Therapist/Hrly","LCFF Intervention Supports"]
["2758",2758,"Other Classified Support/Hrly","LCFF Intervention Supports"]
["2759",2759,"Occupational Therapy Asst/Hrly","LCFF Intervention Supports"]
["2760",2760,"Adaptive Equipment Specialist/","LCFF Intervention Supports"]
["2762",2762,"Braille Transcriber-Hrly","LCFF Intervention Supports"]
["2764",2764,"Guidance Assistant/Hrly","LCFF Intervention Supports"]
["2766",2766,"Rehabilitation Specialist Hrly","2.  Strategies to meet ELA/Math/ELD goals (Closing the Gap)"]
["2768",2768,"Health Assistant/Hrly","3.  Strategies to meet ELA/Math/ELD goals (Professional Development)"]
["2770",2770,"Health Technician/Hrly","4.  Strategies to meet graduation/promotion rates (Social/Emotional Supports)"]
["2772",2772,"Career Technician/Hrly","5.  Strategies to meet parent engagement goals"]
["2776",2776,"Case Worker/Hrly","5.  Strategies to meet parent engagement goals"]
["2795",2795,"Pupil Advocate/Site/Hrly","5.  Strategies to meet parent engagement goals"]
["2797",2797,"Schl To Work Transition Asst/N","LCFF Intervention Supports"]
["2798",2798,"Employer Outreach Spec/Hrly","LCFF Intervention Supports"]
["2900",2900,"Other Classified Salaries","LCFF Intervention Supports"]
["2901",2901,"Classified-Long Term Leave","LCFF Intervention Supports"]
["2905",2905,"Other Nonclsrm PARAS","LCFF Intervention Supports"]
["2906",2906,"Other Nonclsrm OTBS","1.  Strategies to meet ELA/Math/ELD goals (Maximizing Instructional Time)"]
["2907",2907,"Other Nonclsrm OSS","1.  Strategies to meet ELA/Math/ELD goals (Maximizing Instructional Time)"]
["2910",2910,"Inspectors","1.  Strategies to meet ELA/Math/ELD goals (Maximizing Instructional Time)"]
["2911",2911,"Building Inspector/Clsfd","1.  Strategies to meet ELA/Math/ELD goals (Maximizing Instructional Time)"]
["2912",2912,"Landscape Inspector","1.  Strategies to meet ELA/Math/ELD goals (Maximizing Instructional Time)"]
["2913",2913,"Campus Security Assistant","1.  Strategies to meet ELA/Math/ELD goals (Maximizing Instructional Time)"]
["2915",2915,"Campus Security Assistant","1.  Strategies to meet ELA/Math/ELD goals (Maximizing Instructional Time)"]
["2951",2951,"Noon Supervision","1.  Strategies to meet ELA/Math/ELD goals (Maximizing Instructional Time)"]
["2952",2952,"Child Care Act Asst/Hrly/Noncl","1.  Strategies to meet ELA/Math/ELD goals (Maximizing Instructional Time)"]
["2953",2953,"Other Clsf Support Hrly OTBS","1.  Strategies to meet ELA/Math/ELD goals (Maximizing Instructional Time)"]
["2954",2954,"Other Clsf Support Hrly SDEA","1.  Strategies to meet ELA/Math/ELD goals (Maximizing Instructional Time)"]
["2955",2955,"Other Nonclsrm PARAS Hrly","1.  Strategies to meet ELA/Math/ELD goals (Maximizing Instructional Time)"]
["2956",2956,"Other NonClsrm OTBS Hrly","1.  Strategies to meet ELA/Math/ELD goals (Maximizing Instructional Time)"]
["2957",2957,"Other Nonclsrm OSS Hrly","3.  Strategies to meet ELA/Math/ELD goals (Professional Development)"]
["2960",2960,"Inspector Hrly","5.  Strategies to meet parent engagement goals"]
["2961",2961,"Bldg Inspector /Clsfd/ Hourly","5.  Strategies to meet parent engagement goals"]
["2962",2962,"Landscape Inspector/Hourly","1.  Strategies to meet ELA/Math/ELD goals (Maximizing Instructional Time)"]
["2963",2963,"Campus Security Assist Hrly","1.  Strategies to meet ELA/Math/ELD goals (Maximizing Instructional Time)"]
["2965",2965,"Campus Security Asst Hrly","2.  Strategies to meet ELA/Math/ELD goals (Closing the Gap)"]
["2969",2969,"Project Workability Trainee","3.  Strategies to meet ELA/Math/ELD goals (Professional Development)"]
["2972",2972,"Workshop Participt OSS Hrly","4.  Strategies to meet graduation/promotion rates (Social/Emotional Supports)"]
["2973",2973,"Workshop Participt OTBS Hrly","4.  Strategies to meet graduation/promotion rates (Social/Emotional Supports)"]
["2974",2974,"Workshop Participt PARA Hrly","5.  Strategies to meet parent engagement goals"]
["2975",2975,"Workshop Participt POA Hrly","5.  Strategies to meet parent engagement goals"]
["2986",2986,"Other Clsfd NonUnion Hrly","5.  Strategies to meet parent engagement goals"]
["2997",2997,"Classified Salaries Contra","5.  Strategies to meet parent engagement goals"]
["2998",2998,"Undistr Clsfd Salary","LCFF Intervention Supports"]
["3000",3000,"Employee Benefits","LCFF Intervention Supports"]
["3101",3101,"STRS, Certificated Positions","LCFF Intervention Supports"]
["3102",3102,"STRS, Classified Positions","LCFF Intervention Supports"]
["3111",3111,"Retirement Strs Cert Contra","LCFF Intervention Supports"]
["3112",3112,"Strs Payment","LCFF Intervention Supports"]
["3201",3201,"PERS, Certificated Positions","LCFF Intervention Supports"]
["3202",3202,"PERS, Classified Positions","LCFF Intervention Supports"]
["3211",3211,"Retirement Pers Cert Contra","LCFF Intervention Supports"]
["3222",3222,"Pers Payment","LCFF Intervention Supports"]
["3225",3225,"Retire/PERS/Sworn Officer/Cont","1.  Strategies to meet ELA/Math/ELD goals (Maximizing Instructional Time)"]
["3301",3301,"OASDI, Certificated","5.  Strategies to meet parent engagement goals"]
["3302",3302,"OASDI, Classified","LCFF Intervention Supports"]
["3401",3401,"Health & Welfare, Certificated","1.  Strategies to meet ELA/Math/ELD goals (Maximizing Instructional Time)"]
["3402",3402,"Health & Welfare, Classified","1.  Strategies to meet ELA/Math/ELD goals (Maximizing Instructional Time)"]
["3421",3421,"Vision Service Plan/Cert","2.  Strategies to meet ELA/Math/ELD goals (Closing the Gap)"]
["3431",3431,"Vision Service Plan/Clsfd","2.  Strategies to meet ELA/Math/ELD goals (Closing the Gap)"]
["3441",3441,"Dental Ins/Cert","2.  Strategies to meet ELA/Math/ELD goals (Closing the Gap)"]
["3451",3451,"Dental Ins/Clsfd","3.  Strategies to meet ELA/Math/ELD goals (Professional Development)"]
["3461",{"$f":"VALUE(A450)","v":3461},"Medical Ins/Cert","5.  Strategies to meet parent engagement goals"]
["3471",3471,"Medical Ins/Clsfd","5.  Strategies to meet parent engagement goals"]
["3501",3501,"Unemployment Insurance, Certif","5.  Strategies to meet parent engagement goals"]
["3502",3502,"Unemployment Insurance, Clsfd","LCFF Intervention Supports"]
["3601",3601,"Workers Compensation, Certif","LCFF Intervention Supports"]
["3602",3602,"Worker Compensation Classified","LCFF Intervention Supports"]
["3701",3701,"OPEB Allocated Cert","LCFF Intervention Supports"]
["3702",3702,"OPEB Allocated Class","LCFF Intervention Supports"]
["3751",3751,"OPEB Active Emps Cert","LCFF Intervention Supports"]
["3752",3752,"OPEB Active Emps Class","LCFF Intervention Supports"]
["3801",3801,"PERS Reduction, Certificated","LCFF Intervention Supports"]
["3802",3802,"PERS Reduction, Classified","LCFF Intervention Supports"]
["3825",3825,"Retire/PERS/SwornOfficer/RECAP","LCFF Intervention Supports"]
["3901",3901,"SERP Cert","LCFF Intervention Supports"]
["3902",3902,"SERP Class","LCFF Intervention Supports"]
["3921",3921,"Long Term Disability -POA only","1.  Strategies to meet ELA/Math/ELD goals (Maximizing Instructional Time)"]
["3951",3951,"Retiree Medical Benefit Cert","1.  Strategies to meet ELA/Math/ELD goals (Maximizing Instructional Time)"]
["3952",3952,"Retiree Medical Benefit Class","1.  Strategies to meet ELA/Math/ELD goals (Maximizing Instructional Time)"]
["3985",3985,"Life Insurance/Cert","1.  Strategies to meet ELA/Math/ELD goals (Maximizing Instructional Time)"]
["3995",3995,"Life Insurance/Clsfd","2.  Strategies to meet ELA/Math/ELD goals (Closing the Gap)"]
["3996",3996,"Beneftis/Contra/Classified","2.  Strategies to meet ELA/Math/ELD goals (Closing the Gap)"]
["3997",3997,"Benefits Salaries Contra","3.  Strategies to meet ELA/Math/ELD goals (Professional Development)"]
["3998",3998,"Undistr Employee Benefits","3.  Strategies to meet ELA/Math/ELD goals (Professional Development)"]
["4000",4000,"Book & Supplies","3.  Strategies to meet ELA/Math/ELD goals (Professional Development)"]
["4100",4100,"Textbooks and Core Curr Mtls","3.  Strategies to meet ELA/Math/ELD goals (Professional Development)"]
["4101",4101,"Adopted Textbks & Adopted Matl","3.  Strategies to meet ELA/Math/ELD goals (Professional Development)"]
["4200",4200,"Books and Other Reference Mtls","5.  Strategies to meet parent engagement goals"]
["4201",4201,"Library Books","5.  Strategies to meet parent engagement goals"]
["4203",4203,"Reference Books","5.  Strategies to meet parent engagement goals"]
["4211",4211,"SD Reads/Non RIF","5.  Strategies to meet parent engagement goals"]
["4300",4300,"Materials and Supplies","5.  Strategies to meet parent engagement goals"]
["4301",4301,"Supplies","LCFF Intervention Supports"]
["4302",4302,"Custodial Supplies","LCFF Intervention Supports"]
["4303",4303,"Furniture <$500","LCFF Intervention Supports"]
["4304",4304,"Inservice supplies","LCFF Intervention Supports"]
["4305",4305,"Tests In Classroom","LCFF Intervention Supports"]
["4306",4306,"Start-Up Supplies Noncapital","LCFF Intervention Supports"]
["4307",4307,"Outside Printing/Pmt Supplies","LCFF Intervention Supports"]
["4308",4308,"Paper - Supplies","LCFF Intervention Supports"]
["4310",4310,"Software Purchase","LCFF Intervention Supports"]
["4313",4313,"Student Info Systems/Supplies","1.  Strategies to meet ELA/Math/ELD goals (Maximizing Instructional Time)"]
["4315",4315,"Bldg Maintenance Supplies","1.  Strategies to meet ELA/Math/ELD goals (Maximizing Instructional Time)"]
["4316",4316,"Other Repair Supplies","2.  Strategies to meet ELA/Math/ELD goals (Closing the Gap)"]
["4320",4320,"Gasoline & Oil","2.  Strategies to meet ELA/Math/ELD goals (Closing the Gap)"]
["4321",4321,"AV  Materials","3.  Strategies to meet ELA/Math/ELD goals (Professional Development)"]
["4322",4322,"Math/Science Lab Materials","4.  Strategies to meet graduation/promotion rates (Social/Emotional Supports)"]
["4325",4325,"Library/Media Center Supplies","5.  Strategies to meet parent engagement goals"]
["4330",4330,"Inventory Adjustment","5.  Strategies to meet parent engagement goals"]
["4342",4342,"P/Y Carryover Unallocated","5.  Strategies to meet parent engagement goals"]
["4360",4360,"Instructional/Notes","5.  Strategies to meet parent engagement goals"]
["4370",4370,"Athletics Supplies","5.  Strategies to meet parent engagement goals"]
["4372",4372,"Furniture/Clsrm/<$500","LCFF Intervention Supports"]
["4374",4374,"Math/Science Lab Materials","LCFF Intervention Supports"]
["4375",4375,"SIM/New Clsrm Allocation","LCFF Intervention Supports"]
["4380",4380,"Office Depot/Contra","LCFF Intervention Supports"]
["4381",4381,"OfficeMax","LCFF Intervention Supports"]
["4390",4390,"Food Noninstructional Classroo","LCFF Intervention Supports"]
["4400",4400,"Equip Non Cap Non Assest Mod","1.  Strategies to meet ELA/Math/ELD goals (Maximizing Instructional Time)"]
["4491",4491,"Equipment Non Capitalized","3.  Strategies to meet ELA/Math/ELD goals (Professional Development)"]
["4501",4501,"Custodial Supplies","3.  Strategies to meet ELA/Math/ELD goals (Professional Development)"]
["4503",4503,"Data Processing Supplies","4.  Strategies to meet graduation/promotion rates (Social/Emotional Supports)"]
["4505",4505,"Printing Supplies Non-Clsrm","4.  Strategies to meet graduation/promotion rates (Social/Emotional Supports)"]
["4506",4506,"Career Dev Program Supplies","5.  Strategies to meet parent engagement goals"]
["4507",4507,"Food Svcs. Supplies (Exc. Food","5.  Strategies to meet parent engagement goals"]
["4509",{"$f":"VALUE(A514)","v":4509},"Landscape Supplies","5.  Strategies to meet parent engagement goals"]
["4511",4511,"Gasoline & Oil","5.  Strategies to meet parent engagement goals"]
["4513",4513,"Inventory Adjustment","LCFF Intervention Supports"]
["4514",4514,"Inservice Materials & Supplies","LCFF Intervention Supports"]
["4515",4515,"Bldg Maintenance Supplies","LCFF Intervention Supports"]
["4516",4516,"Test Supplies NonInstructional","LCFF Intervention Supports"]
["4517",4517,"Medical Supplies","LCFF Intervention Supports"]
["4519",4519,"Office Supplies","LCFF Intervention Supports"]
["4521",4521,"Recreation Supplies","1.  Strategies to meet ELA/Math/ELD goals (Maximizing Instructional Time)"]
["4523",4523,"School Police Supplies","1.  Strategies to meet ELA/Math/ELD goals (Maximizing Instructional Time)"]
["4526",4526,"Software Non-Educational","2.  Strategies to meet ELA/Math/ELD goals (Closing the Gap)"]
["4527",4527,"Safety Program Supplies","3.  Strategies to meet ELA/Math/ELD goals (Professional Development)"]
["4528",4528,"Reception Supplies","5.  Strategies to meet parent engagement goals"]
["4531",4531,"Educational Testing Matls","5.  Strategies to meet parent engagement goals"]
["4533",4533,"Obsolete Inventory (SIM Only)","LCFF Intervention Supports"]
["4534",4534,"Inventory Adjustment (SIM Only","LCFF Intervention Supports"]
["4539",4539,"Shipping","1.  Strategies to meet ELA/Math/ELD goals (Maximizing Instructional Time)"]
["4546",4546,"Health Education Materials","2.  Strategies to meet ELA/Math/ELD goals (Closing the Gap)"]
["4561",4561,"Start-Up Supplies/Noncapital","5.  Strategies to meet parent engagement goals"]
["4570",4570,"Food Noninstructional Nonclass","5.  Strategies to meet parent engagement goals"]
["4572",4572,"Furniture/Nonclsrm/<$500","5.  Strategies to meet parent engagement goals"]
["4574",4574,"Math/Science Lab Materials","LCFF Intervention Supports"]
["4590",4590,"Svcs To Sdccd/Supplies","LCFF Intervention Supports"]
["4596",4596,"Vehicle Parts Supplies","LCFF Intervention Supports"]
["4598",4598,"Undistr Materials & Supplies","LCFF Intervention Supports"]
["4601",4601,"Pupil Transportation Supplies","1.  Strategies to meet ELA/Math/ELD goals (Maximizing Instructional Time)"]
["4603",4603,"Equipment Repair/Pupil Bus","1.  Strategies to meet ELA/Math/ELD goals (Maximizing Instructional Time)"]
["4604",4604,"Fleet Consummable Liquids","2.  Strategies to meet ELA/Math/ELD goals (Closing the Gap)"]
["4605",4605,"Gasoline & Oil/Pupil Transprtn","3.  Strategies to meet ELA/Math/ELD goals (Professional Development)"]
["4606",4606,"Garage Supplies","3.  Strategies to meet ELA/Math/ELD goals (Professional Development)"]
["4607",4607,"Fleet Mtnce Tools Replacement","4.  Strategies to meet graduation/promotion rates (Social/Emotional Supports)"]
["4627",4627,"Bus Wash Supplies","4.  Strategies to meet graduation/promotion rates (Social/Emotional Supports)"]
["4700",4700,"Food Service","5.  Strategies to meet parent engagement goals"]
["4711",4711,"Food services","5.  Strategies to meet parent engagement goals"]
["4791",4791,"Food Svcs Supplies/Cafe Acct","5.  Strategies to meet parent engagement goals"]
["4795",4795,"Cost of Sales-Cafeteria Fund","LCFF Intervention Supports"]
["4997",4997,"Supplies Contra","LCFF Intervention Supports"]
["5000",5000,"Services & Other Operating","LCFF Intervention Supports"]
["5100",5100,"Contracted Svcs > $25K","LCFF Intervention Supports"]
["5101",5101,"Contract Accreditation Expense","1.  Strategies to meet ELA/Math/ELD goals (Maximizing Instructional Time)"]
["5102",5102,"Contract Ambulance","2.  Strategies to meet ELA/Math/ELD goals (Closing the Gap)"]
["5104",5104,"MentalHeath/AB3632>25k","3.  Strategies to meet ELA/Math/ELD goals (Professional Development)"]
["5105",5105,"Contracted Health Svcs","3.  Strategies to meet ELA/Math/ELD goals (Professional Development)"]
["5107",5107,"Consultant/Professional Dev","5.  Strategies to meet parent engagement goals"]
["5108",5108,"MH/Residential Treatment>25K","LCFF Intervention Supports"]
["5109",5109,"Contract Evaluation Svcs","LCFF Intervention Supports"]
["5110",5110,"SpecEd Tuition NonPubSchl>$25K","LCFF Intervention Supports"]
["5114",5114,"Cont Svc/Outdoor Ed/Student Fe","LCFF Intervention Supports"]
["5115",5115,"Contracted Trans NonPublicSchl","LCFF Intervention Supports"]
["5118",5118,"Contract Official Fees","LCFF Intervention Supports"]
["5122",5122,"Contract Tree Trimming","LCFF Intervention Supports"]
["5123",5123,"Employee Assistance Program","1.  Strategies to meet ELA/Math/ELD goals (Maximizing Instructional Time)"]
["5125",5125,"Academic League","2.  Strategies to meet ELA/Math/ELD goals (Closing the Gap)"]
["5131",5131,"Contract Services Physician","2.  Strategies to meet ELA/Math/ELD goals (Closing the Gap)"]
["5137",5137,"Contracted Student Services","3.  Strategies to meet ELA/Math/ELD goals (Professional Development)"]
["5140",5140,"Interest Anticipation Notes","4.  Strategies to meet graduation/promotion rates (Social/Emotional Supports)"]
["5150",5150,"Consultant >$25K","5.  Strategies to meet parent engagement goals"]
["5151",5151,"Contract Speech - Langu","5.  Strategies to meet parent engagement goals"]
["5153",5153,"Contract Occup Therapy","5.  Strategies to meet parent engagement goals"]
["5154",5154,"Contract Phys Therapy","5.  Strategies to meet parent engagement goals"]
["5156",5156,"Contract Vision Therapy","LCFF Intervention Supports"]
["5158",5158,"MH/Residential Treatment>25K","LCFF Intervention Supports"]
["5160",5160,"Contracted Speech Lang>$25K","LCFF Intervention Supports"]
["5161",5161,"Contracted Physcl Therapy>$25K","LCFF Intervention Supports"]
["5162",{"$f":"VALUE(A578)","v":5162},"Contracted Vision Therapy>$25K","LCFF Intervention Supports"]
["5163",5163,"Contracted Student Service>25K","LCFF Intervention Supports"]
["5165",5165,"Contracted Occup Therapy>$25K","LCFF Intervention Supports"]
["5166",5166,"Contracted Health Svcs>$25K","LCFF Intervention Supports"]
["5167",5167,"Contracted Psychologist>$25K","LCFF Intervention Supports"]
["5170",5170,"Contract Trans SchToSch>$25K","2.  Strategies to meet ELA/Math/ELD goals (Closing the Gap)"]
["5171",5171,"Contract FieldTrip NonDist>25K","2.  Strategies to meet ELA/Math/ELD goals (Closing the Gap)"]
["5172",5172,"Contract Trans HomeToSch>$25K","3.  Strategies to meet ELA/Math/ELD goals (Professional Development)tes"]
["5174",5174,"Contract Trans NonPubSchl>$25K","3.  Strategies to meet ELA/Math/ELD goals (Professional Development)tes"]
["5175",5175,"Contract Svcs City Transp>$25K","5.  Strategies to meet parent engagement goals"]
["5177",5177,"Contracted Transp Taxi>$25K","5.  Strategies to meet parent engagement goals"]
["5181",5181,"Litigation/Settlement>$25K","5.  Strategies to meet parent engagement goals"]
["5198",5198,"Other Instr Consultant/Contrac","LCFF Intervention Supports"]
["5200",5200,"Travel Conferences","LCFF Intervention Supports"]
["5202",5202,"TB Test Reimbursement","LCFF Intervention Supports"]
["5203",5203,"Auto Expense Personal Car","LCFF Intervention Supports"]
["5207",5207,"Travel Conference","LCFF Intervention Supports"]
["5208",5208,"National Bd Cert Applic Fees","LCFF Intervention Supports"]
["5209",5209,"Conference Local","1.  Strategies to meet ELA/Math/ELD goals (Maximizing Instructional Time)"]
["5300",5300,"Dues and Memberships","1.  Strategies to meet ELA/Math/ELD goals (Maximizing Instructional Time)"]
["5301",5301,"District Membership E.C. 35172","1.  Strategies to meet ELA/Math/ELD goals (Maximizing Instructional Time)"]
["5302",5302,"Dues - Other","2.  Strategies to meet ELA/Math/ELD goals (Closing the Gap)"]
["5303",5303,"Calif Interscholastic Fed Dues","3.  Strategies to meet ELA/Math/ELD goals (Professional Development)"]
["5304",5304,"CIF Entry Fees","3.  Strategies to meet ELA/Math/ELD goals (Professional Development)"]
["5305",5305,"City Athletic Conf Fees","4.  Strategies to meet graduation/promotion rates (Social/Emotional Supports)"]
["5306",5306,"Tournament Entry Fees","5.  Strategies to meet parent engagement goals"]
["5400",5400,"Insurance","5.  Strategies to meet parent engagement goals"]
["5401",5401,"Insurance Other","5.  Strategies to meet parent engagement goals"]
["5405",5405,"Self Insured H&W Paid Claims","LCFF Intervention Supports"]
["5406",5406,"Self Insured H&W plan Proc Fee","LCFF Intervention Supports"]
["5407",5407,"Workers' Comp Claims","1.  Strategies to meet ELA/Math/ELD goals (Maximizing Instructional Time)"]
["5408",5408,"Contract Workers Comp Ser","2.  Strategies to meet ELA/Math/ELD goals (Closing the Gap)"]
["5453",5453,"Boiler & Machinery Premium","3.  Strategies to meet ELA/Math/ELD goals (Professional Development)"]
["5454",5454,"Calif. Assessment (Tax)","4.  Strategies to meet graduation/promotion rates (Social/Emotional Supports)"]
["5455",5455,"Excess Insurance","5.  Strategies to meet parent engagement goals"]
["5456",5456,"Liability Ins Excess","5.  Strategies to meet parent engagement goals"]
["5457",5457,"Fire Insurance Premium","LCFF Intervention Supports"]
["5458",5458,"Mexico Insurance/Student","LCFF Intervention Supports"]
["5461",5461,"Liability/Per Prop (Self-Insur","LCFF Intervention Supports"]
["5462",5462,"Umbrella Cover/Athletics","LCFF Intervention Supports"]
["5463",5463,"General Liability Ins","1.  Strategies to meet ELA/Math/ELD goals (Maximizing Instructional Time)"]
["5464",5464,"Claims Settlement Payments","1.  Strategies to meet ELA/Math/ELD goals (Maximizing Instructional Time)"]
["5465",5465,"Self Ins Reimbursement Site","1.  Strategies to meet ELA/Math/ELD goals (Maximizing Instructional Time)"]
["5468",5468,"Professional Insurance","2.  Strategies to meet ELA/Math/ELD goals (Closing the Gap)"]
["5469",5469,"Self Ins Equip Replace Theft","2.  Strategies to meet ELA/Math/ELD goals (Closing the Gap)"]
["5470",5470,"Self Ins Fire Loss Deductible","3.  Strategies to meet ELA/Math/ELD goals (Professional Development)"]
["5471",5471,"Special Policy/Student/Field T","3.  Strategies to meet ELA/Math/ELD goals (Professional Development)"]
["5473",5473,"Intrusion Replacement","3.  Strategies to meet ELA/Math/ELD goals (Professional Development)"]
["5500",5500,"Utilities & Housedeeping Svcs","4.  Strategies to meet graduation/promotion rates (Social/Emotional Supports)"]
["5501",5501,"Electric Service","5.  Strategies to meet parent engagement goals"]
["5502",5502,"Gas & Electric Service","5.  Strategies to meet parent engagement goals"]
["5505",5505,"Gas Service","5.  Strategies to meet parent engagement goals"]
["5517",5517,"Water Service","5.  Strategies to meet parent engagement goals"]
["5518",5518,"Sewer Service","LCFF Intervention Supports"]
["5521",5521,"Water & Sewer Service","LCFF Intervention Supports"]
["5525",5525,"Lamp Upkeep/Service","LCFF Intervention Supports"]
["5526",5526,"Laundry/Dry Cleaning","LCFF Intervention Supports"]
["5527",5527,"Pest Control","1.  Strategies to meet ELA/Math/ELD goals (Maximizing Instructional Time)"]
["5528",5528,"Fire Extinguisher Service","1.  Strategies to meet ELA/Math/ELD goals (Maximizing Instructional Time)"]
["5530",5530,"Rubbish Disposal","2.  Strategies to meet ELA/Math/ELD goals (Closing the Gap)"]
["5532",5532,"Disposal Of Hazardous Waste","2.  Strategies to meet ELA/Math/ELD goals (Closing the Gap)"]
["5535",5535,"E-Rate Reimbursement","2.  Strategies to meet ELA/Math/ELD goals (Closing the Gap)"]
["5600",5600,"Rental Lease & Noncap Improvem","3.  Strategies to meet ELA/Math/ELD goals (Professional Development)"]
["5602",5602,"Student Transport/Personal Car","4.  Strategies to meet graduation/promotion rates (Social/Emotional Supports)"]
["5604",{"$f":"VALUE(A642)","v":5604},"Contract Trans/ School To Schl","4.  Strategies to meet graduation/promotion rates (Social/Emotional Supports)"]
["5605",5605,"Contract Field Trip/N-Dist Bus","4.  Strategies to meet graduation/promotion rates (Social/Emotional Supports)"]
["5607",5607,"Contract Patrol Services","5.  Strategies to meet parent engagement goals"]
["5609",5609,"Contract Trans/Home To School","LCFF Intervention Supports"]
["5610",5610,"Charter/Home-to-School","LCFF Intervention Supports"]
["5611",5611,"Charter/Fleet Maint.","LCFF Intervention Supports"]
["5612",5612,"Charter/Field Trips","1.  Strategies to meet ELA/Math/ELD goals (Maximizing Instructional Time)"]
["5613",5613,"Lease of Equipment","1.  Strategies to meet ELA/Math/ELD goals (Maximizing Instructional Time)"]
["5614",5614,"Lease of Printer/Duplicator","2.  Strategies to meet ELA/Math/ELD goals (Closing the Gap)"]
["5615",5615,"Fueling Services","2.  Strategies to meet ELA/Math/ELD goals (Closing the Gap)"]
["5616",5616,"Contract Media Services","4.  Strategies to meet graduation/promotion rates (Social/Emotional Supports)"]
["5617",5617,"Rental Of Educ Facilities","4.  Strategies to meet graduation/promotion rates (Social/Emotional Supports)"]
["5619",5619,"Rental Of Equipment","5.  Strategies to meet parent engagement goals"]
["5620",5620,"Computer Software Exp/Contract","5.  Strategies to meet parent engagement goals"]
["5621",5621,"Rental of Facilities","LCFF Intervention Supports"]
["5623",5623,"Rental Of Vehicles","LCFF Intervention Supports"]
["5624",5624,"Other Education Services","LCFF Intervention Supports"]
["5625",5625,"Transit Bus Tokens","LCFF Intervention Supports"]
["5626",5626,"Lease/Sites","1.  Strategies to meet ELA/Math/ELD goals (Maximizing Instructional Time)"]
["5627",5627,"Bus Passes","1.  Strategies to meet ELA/Math/ELD goals (Maximizing Instructional Time)"]
["5628",5628,"Rubbish Disposal Svcs/Contract","1.  Strategies to meet ELA/Math/ELD goals (Maximizing Instructional Time)"]
["5629",5629,"Rubbish Disposal Svcs/District","1.  Strategies to meet ELA/Math/ELD goals (Maximizing Instructional Time)"]
["5630",5630,"Contract Transp/Taxi","1.  Strategies to meet ELA/Math/ELD goals (Maximizing Instructional Time)"]
["5631",5631,"Contract Food Services","1.  Strategies to meet ELA/Math/ELD goals (Maximizing Instructional Time)"]
["5640",5640,"Contract Moving Expense","1.  Strategies to meet ELA/Math/ELD goals (Maximizing Instructional Time)"]
["5642",5642,"Telephone Repair","1.  Strategies to meet ELA/Math/ELD goals (Maximizing Instructional Time)"]
["5643",5643,"Contract Vehicle Repair","1.  Strategies to meet ELA/Math/ELD goals (Maximizing Instructional Time)"]
["5648",5648,"Contract Landscape","3.  Strategies to meet ELA/Math/ELD goals (Professional Development)"]
["5649",5649,"Contract Custodial Services","LCFF Intervention Supports"]
["5651",5651,"Contract Facilities Maint","LCFF Intervention Supports"]
["5652",5652,"Off Inventory Port./Oper Costs","LCFF Intervention Supports"]
["5710",5710,"Direct Costs for Xfr of Svcs","LCFF Intervention Supports"]
["5711",5711,"Interprogram Svcs/Job Cost","LCFF Intervention Supports"]
["5712",5712,"Interprogram Svs/Restricted","LCFF Intervention Supports"]
["5713",5713,"Interprogram Svcs/Video Svcs","LCFF Intervention Supports"]
["5714",5714,"Interprogram Svcs/Evaluation","LCFF Intervention Supports"]
["5715",5715,"Interprogram Svcs/Data Process","LCFF Intervention Supports"]
["5716",5716,"Interprogram Svcs/Cafeteria","LCFF Intervention Supports"]
["5717",5717,"Interprogram Svcs/Custodial","1.  Strategies to meet ELA/Math/ELD goals (Maximizing Instructional Time)"]
["5718",5718,"Interprogram Svcs/Assessment","1.  Strategies to meet ELA/Math/ELD goals (Maximizing Instructional Time)"]
["5719",5719,"Interprogram Svcs/TMC Services","2.  Strategies to meet ELA/Math/ELD goals (Closing the Gap)"]
["5720",5720,"Interprogram Svcs/Art Dept.","2.  Strategies to meet ELA/Math/ELD goals (Closing the Gap)"]
["5721",5721,"Interprogram Svcs/Duplicating","3.  Strategies to meet ELA/Math/ELD goals (Professional Development)"]
["5722",5722,"Interprogram Svcs/S.I.P.","5.  Strategies to meet parent engagement goals"]
["5723",5723,"Interprogram Svcs/Health Svcs","5.  Strategies to meet parent engagement goals"]
["5724",5724,"Interprogram Svcs/Discover Cla","5.  Strategies to meet parent engagement goals"]
["5725",5725,"Interprogram Svcs/Fleet Mainte","LCFF Intervention Supports"]
["5726",5726,"Interprogram Svcs/Postage","LCFF Intervention Supports"]
["5727",5727,"Interprogram-Esea Priv Sch-Ins","LCFF Intervention Supports"]
["5728",5728,"Interprogram/Private Schools","LCFF Intervention Supports"]
["5729",5729,"Interprogram Svcs/Eval/Achieve","1.  Strategies to meet ELA/Math/ELD goals (Maximizing Instructional Time)"]
["5730",5730,"Interprogram Svcs/Transportati","2.  Strategies to meet ELA/Math/ELD goals (Closing the Gap)"]
["5731",5731,"Interprogram/Bus Monitors","4.  Strategies to meet graduation/promotion rates (Social/Emotional Supports)"]
["5732",5732,"Interprogram Svcs/SBCP Transfe","4.  Strategies to meet graduation/promotion rates (Social/Emotional Supports)"]
["5733",5733,"Interprogram Svcs/Paper","4.  Strategies to meet graduation/promotion rates (Social/Emotional Supports)"]
["5734",5734,"Interprgm Serv/Dist. Serv.","5.  Strategies to meet parent engagement goals"]
["5735",5735,"Interprogram Svcs/Field Trip","5.  Strategies to meet parent engagement goals"]
["5740",5740,"Interprogram Svcs/Insurance","LCFF Intervention Supports"]
["5742",5742,"Interprogram Svcs/SANDAPP","LCFF Intervention Supports"]
["5743",5743,"Interprogram Svcs/Bldg Inspect","LCFF Intervention Supports"]
["5744",5744,"Interprogram Svcs.Prop MM Dist","LCFF Intervention Supports"]
["5750",5750,"Direct Costs for Interfund Svc","LCFF Intervention Supports"]
["5751",5751,"Interfund Svcs/Job Cost","LCFF Intervention Supports"]
["5762",5762,"Interfund Svcs/Restricted","LCFF Intervention Supports"]
["5763",{"$f":"VALUE(A706)","v":5763},"Interfund Svcs/Video Svcs","LCFF Intervention Supports"]
["5764",5764,"Interfund Svcs/Evaluation","LCFF Intervention Supports"]
["5765",5765,"Interfund Svcs/Data Processing","LCFF Intervention Supports"]
["5766",5766,"Interfund Svcs/Cafeteria","LCFF Intervention Supports"]
["5767",5767,"Interfund/Custodial","LCFF Intervention Supports"]
["5768",5768,"Interfund Svcs/Assessment","1.  Strategies to meet ELA/Math/ELD goals (Maximizing Instructional Time)"]
["5769",5769,"Interfund Svs/TMC Services","1.  Strategies to meet ELA/Math/ELD goals (Maximizing Instructional Time)"]
["5770",5770,"Interfund Svcs/Art Dept.","2.  Strategies to meet ELA/Math/ELD goals (Closing the Gap)"]
["5771",5771,"Interfund Svcs/Duplicating","2.  Strategies to meet ELA/Math/ELD goals (Closing the Gap)"]
["5772",5772,"Interfund Svcs/S.I.P.","2.  Strategies to meet ELA/Math/ELD goals (Closing the Gap)"]
["5773",5773,"Interfund Svcs/Health Svcs","4.  Strategies to meet graduation/promotion rates (Social/Emotional Supports)"]
["5774",5774,"Interfund Svcs/Discover Classe","4.  Strategies to meet graduation/promotion rates (Social/Emotional Supports)"]
["5775",5775,"Interfund Svcs/Fleet Maintenan","4.  Strategies to meet graduation/promotion rates (Social/Emotional Supports)"]
["5776",5776,"Interfund Svcs/Postage","5.  Strategies to meet parent engagement goals"]
["5779",5779,"Interfund Svcs/Eval/Achieve/Ac","5.  Strategies to meet parent engagement goals"]
["5780",5780,"Interfund Svcs/Transportation","5.  Strategies to meet parent engagement goals"]
["5781",5781,"Interfund Svcs/Bus Monitors","5.  Strategies to meet parent engagement goals"]
["5782",5782,"Interfund Svcs/SBCP Transfer","LCFF Intervention Supports"]
["5783",5783,"Interfund - Paper","LCFF Intervention Supports"]
["5785",5785,"Interfund Svcs/Field Trip","LCFF Intervention Supports"]
["5790",5790,"Interfund Svcs/Insurance","LCFF Intervention Supports"]
["5791",5791,"Interfund Svcs/Prop MM Distrib","LCFF Intervention Supports"]
["5792",5792,"Interfund Svcs/Charter School","LCFF Intervention Supports"]
["5793",5793,"Interfund Vscs/Bldg Inspector","LCFF Intervention Supports"]
["5794",5794,"Interfund Svcs/Prop MM Distrib","LCFF Intervention Supports"]
["5799",5799,"Interfund/Charter School","1.  Strategies to meet ELA/Math/ELD goals (Maximizing Instructional Time)"]
["5800",5800,"Consult & contract Svcs <$25K","1.  Strategies to meet ELA/Math/ELD goals (Maximizing Instructional Time)"]
["5801",5801,"Consultants <=$25K","1.  Strategies to meet ELA/Math/ELD goals (Maximizing Instructional Time)"]
["5802",5802,"Teacher Credentials","1.  Strategies to meet ELA/Math/ELD goals (Maximizing Instructional Time)"]
["5803",5803,"Employment Advertising","1.  Strategies to meet ELA/Math/ELD goals (Maximizing Instructional Time)"]
["5804",5804,"MentalHealth/AB3632<25K","2.  Strategies to meet ELA/Math/ELD goals (Closing the Gap)"]
["5805",5805,"Fingerprint Processing","2.  Strategies to meet ELA/Math/ELD goals (Closing the Gap)"]
["5806",5806,"Special Tax Assessment","2.  Strategies to meet ELA/Math/ELD goals (Closing the Gap)"]
["5808",5808,"MH/Residential Treatment<25K","3.  Strategies to meet ELA/Math/ELD goals (Professional Development)"]
["5809",5809,"Tuition for students","3.  Strategies to meet ELA/Math/ELD goals (Professional Development)"]
["5810",5810,"SpecEd Tuition NonPubSch<=$25K","3.  Strategies to meet ELA/Math/ELD goals (Professional Development)"]
["5811",5811,"Physical & Psychological Exami","4.  Strategies to meet graduation/promotion rates (Social/Emotional Supports)"]
["5812",5812,"Contract Computer Services","5.  Strategies to meet parent engagement goals"]
["5813",5813,"Printing - Outside Vendor","5.  Strategies to meet parent engagement goals"]
["5815",5815,"Advertising","5.  Strategies to meet parent engagement goals"]
["5817",5817,"Professional Publications","5.  Strategies to meet parent engagement goals"]
["5818",5818,"Plaques/Retirees","5.  Strategies to meet parent engagement goals"]
["5821",5821,"Tuition/Classified","LCFF Intervention Supports"]
["5822",5822,"Legal Advert (Exc Capital Outl","LCFF Intervention Supports"]
["5823",5823,"Litigation/Settlement Expense","LCFF Intervention Supports"]
["5824",5824,"Payment/Non-Use Of Sites","LCFF Intervention Supports"]
["5826",5826,"Audit Expense","1.  Strategies to meet ELA/Math/ELD goals (Maximizing Instructional Time)"]
["5828",5828,"Election Expense","1.  Strategies to meet ELA/Math/ELD goals (Maximizing Instructional Time)"]
["5830",5830,"Law Books & Periodicals","1.  Strategies to meet ELA/Math/ELD goals (Maximizing Instructional Time)"]
["5831",5831,"Early Retirement","1.  Strategies to meet ELA/Math/ELD goals (Maximizing Instructional Time)"]
["5832",5832,"State/Federal Relations Consul","2.  Strategies to meet ELA/Math/ELD goals (Closing the Gap)"]
["5833",5833,"Contract Clerical","2.  Strategies to meet ELA/Math/ELD goals (Closing the Gap)"]
["5835",5835,"Other Operating Expenses","2.  Strategies to meet ELA/Math/ELD goals (Closing the Gap)"]
["5838",5838,"Judgements","2.  Strategies to meet ELA/Math/ELD goals (Closing the Gap)"]
["5840",5840,"Interest Expense","2.  Strategies to meet ELA/Math/ELD goals (Closing the Gap)"]
["5841",5841,"Software License","2.  Strategies to meet ELA/Math/ELD goals (Closing the Gap)"]
["5842",5842,"License And Fees","3.  Strategies to meet ELA/Math/ELD goals (Professional Development)"]
["5845",5845,"Bad Dept Expense","3.  Strategies to meet ELA/Math/ELD goals (Professional Development)"]
["5846",5846,"Contract Vehicle Washing","5.  Strategies to meet parent engagement goals"]
["5847",5847,"Contract Financial Consult","5.  Strategies to meet parent engagement goals"]
["5851",5851,"Spec Ed Tuition/Non-Public Sch","5.  Strategies to meet parent engagement goals"]
["5852",5852,"Spec Ed Transp/Non-Public Schl","5.  Strategies to meet parent engagement goals"]
["5853",5853,"Contracted Svcs Less Than $25K","LCFF Intervention Supports"]
["5854",5854,"Contracted Vehicle Repair","LCFF Intervention Supports"]
["5855",{"$f":"VALUE(A770)","v":5855},"Fingerprint Processing","LCFF Intervention Supports"]
["5856",5856,"Workers' Comp Claims","LCFF Intervention Supports"]
["5857",5857,"Advertising","LCFF Intervention Supports"]
["5858",5858,"Contracted Services Election","1.  Strategies to meet ELA/Math/ELD goals (Maximizing Instructional Time)"]
["5859",5859,"Admission/Entry Tickets","1.  Strategies to meet ELA/Math/ELD goals (Maximizing Instructional Time)"]
["5860",5860,"Contracted Speech Lang<$25K","1.  Strategies to meet ELA/Math/ELD goals (Maximizing Instructional Time)"]
["5861",5861,"Contracted Physcl Therapy<$25K","2.  Strategies to meet ELA/Math/ELD goals (Closing the Gap)"]
["5862",5862,"Contracted Vision Therapy<$25K","2.  Strategies to meet ELA/Math/ELD goals (Closing the Gap)"]
["5863",5863,"Contracted Student Srvice<=25K","2.  Strategies to meet ELA/Math/ELD goals (Closing the Gap)"]
["5864",5864,"Physical & Psychological Exami","2.  Strategies to meet ELA/Math/ELD goals (Closing the Gap)"]
["5865",5865,"Contracted Occup Therapy<$25K","3.  Strategies to meet ELA/Math/ELD goals (Professional Development)"]
["5866",5866,"Contracted Health Svcs<$25K","3.  Strategies to meet ELA/Math/ELD goals (Professional Development)"]
["5867",5867,"Contracted Psychologist<$25K","3.  Strategies to meet ELA/Math/ELD goals (Professional Development)"]
["5870",5870,"Contracted Trans SchToSch<=25K","3.  Strategies to meet ELA/Math/ELD goals (Professional Development)"]
["5871",5871,"Contract FieldTripNonDist<=25K","4.  Strategies to meet graduation/promotion rates (Social/Emotional Supports)"]
["5872",5872,"Contracted Trans HmToSch<=$25K","4.  Strategies to meet graduation/promotion rates (Social/Emotional Supports)"]
["5873",5873,"Contracted Trans Charter","5.  Strategies to meet parent engagement goals"]
["5874",5874,"Contract Trans NonPubSch<=$25K","5.  Strategies to meet parent engagement goals"]
["5875",5875,"Transit Bus Tokens & Passes","5.  Strategies to meet parent engagement goals"]
["5876",5876,"Student Transport Personal Car","LCFF Intervention Supports"]
["5877",5877,"Contracted Transp Taxi<=$25K","LCFF Intervention Supports"]
["5878",5878,"Contracted Trans NonPublicSchl","LCFF Intervention Supports"]
["5879",5879,"Med & Dent Fund Reserve","LCFF Intervention Supports"]
["5880",5880,"Contracted Svcs Legal","LCFF Intervention Supports"]
["5881",5881,"Litigation/Settlement<$25K","LCFF Intervention Supports"]
["5892",5892,"Tution Cert","LCFF Intervention Supports"]
["5898",5898,"Offset For Budget Changes","LCFF Intervention Supports"]
["5899",5899,"Reversal 6/30 Incurred But Not","LCFF Intervention Supports"]
["5900",5900,"Communications","1.  Strategies to meet ELA/Math/ELD goals (Maximizing Instructional Time)"]
["5903",5903,"Data Com-Clearing Acct","1.  Strategies to meet ELA/Math/ELD goals (Maximizing Instructional Time)"]
["5905",5905,"Tele Site Pd-Clearing Acct","2.  Strategies to meet ELA/Math/ELD goals (Closing the Gap)"]
["5907",5907,"Cellular-Clearing Acct","2.  Strategies to meet ELA/Math/ELD goals (Closing the Gap)"]
["5912",5912,"E-Rate Reimbursement","2.  Strategies to meet ELA/Math/ELD goals (Closing the Gap)"]
["5913",5913,"Telephone Data com Lines","2.  Strategies to meet ELA/Math/ELD goals (Closing the Gap)"]
["5914",5914,"Telephone Service Request","3.  Strategies to meet ELA/Math/ELD goals (Professional Development)"]
["5915",5915,"Telephone Svc - Additional","3.  Strategies to meet ELA/Math/ELD goals (Professional Development)"]
["5916",5916,"Telephone Svc - Standard Alloc","3.  Strategies to meet ELA/Math/ELD goals (Professional Development)"]
["5917",5917,"Telephone Service Cell Phones","4.  Strategies to meet graduation/promotion rates (Social/Emotional Supports)"]
["5918",5918,"Telephone Service/Pagers","4.  Strategies to meet graduation/promotion rates (Social/Emotional Supports)"]
["5919",5919,"Alarm & Emergency Com","5.  Strategies to meet parent engagement goals"]
["5920",5920,"Postage Expense","5.  Strategies to meet parent engagement goals"]
["5921",5921,"Other Communications","5.  Strategies to meet parent engagement goals"]
["5923",5923,"Internet Services","5.  Strategies to meet parent engagement goals"]
["5997",5997,"Services Contra","5.  Strategies to meet parent engagement goals"]
["5998",5998,"Contracted Svcs - Unallocated","LCFF Intervention Supports"]
["5999",5999,"Garnishment Expense","LCFF Intervention Supports"]
["6000",6000,"Capital Outlay","LCFF Intervention Supports"]
["6100",6100,"Sites and Improvement of Sites","LCFF Intervention Supports"]
["6103",6103,"Site Acquis/Other Costs","2.  Strategies to meet ELA/Math/ELD goals (Closing the Gap)"]
["6105",6105,"Site Acquis/Reloc Allow","3.  Strategies to meet ELA/Math/ELD goals (Professional Development)"]
["6107",6107,"Site Appraisal Fees","5.  Strategies to meet parent engagement goals"]
["6109",6109,"Site Dev/Utilities Svcs","5.  Strategies to meet parent engagement goals"]
["6110",6110,"Site/Environmentl Impact Study","5.  Strategies to meet parent engagement goals"]
["6113",6113,"Demolition On New Sites","LCFF Intervention Supports"]
["6115",6115,"Site Improvement","LCFF Intervention Supports"]
["6117",6117,"Site Purchase","LCFF Intervention Supports"]
["6121",6121,"Off-Site Development","2.  Strategies to meet ELA/Math/ELD goals (Closing the Gap)"]
["6123",6123,"On-Site Development/General","3.  Strategies to meet ELA/Math/ELD goals (Professional Development)"]
["6128",6128,"Fuel Storage Tanks","5.  Strategies to meet parent engagement goals"]
["6129",6129,"Construction Testing","5.  Strategies to meet parent engagement goals"]
["6200",6200,"Bldgs and Improvement of Bldgs","5.  Strategies to meet parent engagement goals"]
["6201",6201,"Buildings/New Constr","5.  Strategies to meet parent engagement goals"]
["6203",6203,"Building Inspection Costs","LCFF Intervention Supports"]
["6204",6204,"Project Management Costs","LCFF Intervention Supports"]
["6205",{"$f":"VALUE(A834)","v":6205},"Construction Management Costs","LCFF Intervention Supports"]
["6206",6206,"Program Management Costs","LCFF Intervention Supports"]
["6207",6207,"Buildings/Improvement To","LCFF Intervention Supports"]
["6208",6208,"Building Acquisition","1.  Strategies to meet ELA/Math/ELD goals (Maximizing Instructional Time)"]
["6209",6209,"Bldg Plans/Architect Fees","3.  Strategies to meet ELA/Math/ELD goals (Professional Development)"]
["6212",6212,"Capital Fees/Other","4.  Strategies to meet graduation/promotion rates (Social/Emotional Supports)"]
["6213",6213,"Bldg Plans/DSA Fees","4.  Strategies to meet graduation/promotion rates (Social/Emotional Supports)"]
["6214",6214,"Capital Contracted Svcs/Other","5.  Strategies to meet parent engagement goals"]
["6215",6215,"Bldg Plans/Other Costs","5.  Strategies to meet parent engagement goals"]
["6218",6218,"Purchase/Trailers","LCFF Intervention Supports"]
["6219",6219,"Buildings/Other Costs","LCFF Intervention Supports"]
["6221",6221,"Bldgs/Reconstruction","LCFF Intervention Supports"]
["6222",6222,"Undistributed Interest","LCFF Intervention Supports"]
["6223",6223,"Construction Legal Settlement","LCFF Intervention Supports"]
["6225",6225,"Buildings/Undistributed","LCFF Intervention Supports"]
["6242",6242,"Lease/Portables","LCFF Intervention Supports"]
["6243",6243,"Portable Classrooms/Purchase","LCFF Intervention Supports"]
["6245",6245,"Playground Equipment","LCFF Intervention Supports"]
["6248",6248,"Prop MM Portable Repair","LCFF Intervention Supports"]
["6249",6249,"Portable Moves","LCFF Intervention Supports"]
["6250",6250,"Interim Housing","1.  Strategies to meet ELA/Math/ELD goals (Maximizing Instructional Time)"]
["6300",6300,"Books/Media for New  Libraries","1.  Strategies to meet ELA/Math/ELD goals (Maximizing Instructional Time)"]
["6321",6321,"Library Matls New Schl/Maj Exp","1.  Strategies to meet ELA/Math/ELD goals (Maximizing Instructional Time)"]
["6400",6400,"Equipment","1.  Strategies to meet ELA/Math/ELD goals (Maximizing Instructional Time)"]
["6412",6412,"SIS Hardware/Software","1.  Strategies to meet ELA/Math/ELD goals (Maximizing Instructional Time)"]
["6421",6421,"Library Equip/Furniture (Capit","2.  Strategies to meet ELA/Math/ELD goals (Closing the Gap)"]
["6431",6431,"Food Svcs Equip (Cap)","3.  Strategies to meet ELA/Math/ELD goals (Professional Development)"]
["6455",6455,"Permanent Equip (Lease Purchas","4.  Strategies to meet graduation/promotion rates (Social/Emotional Supports)"]
["6488",6488,"Lease/Office Equipment","4.  Strategies to meet graduation/promotion rates (Social/Emotional Supports)"]
["6489",6489,"Vehicles/Replacement","4.  Strategies to meet graduation/promotion rates (Social/Emotional Supports)"]
["6491",6491,"Permanent Equipment (Capital)","5.  Strategies to meet parent engagement goals"]
["6492",6492,"Equipment/Telephone System","5.  Strategies to meet parent engagement goals"]
["6494",6494,"Data Systems Equipment","5.  Strategies to meet parent engagement goals"]
["6495",6495,"Vehicles, New (Cap)","5.  Strategies to meet parent engagement goals"]
["6497",6497,"Capital Expenditure Contra","LCFF Intervention Supports"]
["6498",6498,"Improvement to Dist Vehicles","LCFF Intervention Supports"]
["6500",6500,"Equipment Replacement","LCFF Intervention Supports"]
["6505",6505,"Equip Replacement/Clsrm Equip","LCFF Intervention Supports"]
["6517",6517,"Equip Replacement/Pupil Bus","LCFF Intervention Supports"]
["6519",6519,"Equip Replacement","LCFF Intervention Supports"]
["6528",6528,"Equip Repl/EDP Hardware","LCFF Intervention Supports"]
["6533",6533,"Capital Equip/Replace/Theft","1.  Strategies to meet ELA/Math/ELD goals (Maximizing Instructional Time)"]
["6900",6900,"Depreciation Expense","1.  Strategies to meet ELA/Math/ELD goals (Maximizing Instructional Time)"]
["6998",6998,"Capital Outlay - Unallocated","1.  Strategies to meet ELA/Math/ELD goals (Maximizing Instructional Time)"]
["7000",7000,"Other Outgo","2.  Strategies to meet ELA/Math/ELD goals (Closing the Gap)"]
["7130",7130,"State Special Schools","3.  Strategies to meet ELA/Math/ELD goals (Professional Development)"]
["7140",7140,"Account 7140","4.  Strategies to meet graduation/promotion rates (Social/Emotional Supports)"]
["7141",7141,"Tuition, Exc Cost To Districts","5.  Strategies to meet parent engagement goals"]
["7142",7142,"Tuition, Excess Costs To COE","5.  Strategies to meet parent engagement goals"]
["7143",7143,"Tuition, Exc Costs to JOA","LCFF Intervention Supports"]
["7211",7211,"TOP-Through Revenues to Dist","LCFF Intervention Supports"]
["7212",7212,"TOP-Through Revenues to COE","LCFF Intervention Supports"]
["7213",7213,"TOP-Through Revenues to JPA's","LCFF Intervention Supports"]
["7221",7221,"Xfers of Appor to Districts","1.  Strategies to meet ELA/Math/ELD goals (Maximizing Instructional Time)"]
["7222",7222,"Xfers of Appor to COE","1.  Strategies to meet ELA/Math/ELD goals (Maximizing Instructional Time)"]
["7223",7223,"Xfers of Appor to JPA's","2.  Strategies to meet ELA/Math/ELD goals (Closing the Gap)"]
["7242",7242,"Account 7242","3.  Strategies to meet ELA/Math/ELD goals (Professional Development)"]
["7280",7280,"Xfers of Prop Tax for Charter","4.  Strategies to meet graduation/promotion rates (Social/Emotional Supports)"]
["7281",7281,"All Other Transfers to Dist","5.  Strategies to meet parent engagement goals"]
["7282",7282,"All Other Transfers To County","5.  Strategies to meet parent engagement goals"]
["7283",7283,"All Other Transfers to JPA's","5.  Strategies to meet parent engagement goals"]
["7299",7299,"Other Transfers Out to Others","LCFF Intervention Supports"]
["7310",7310,"Indirect Cost / Interprogram","LCFF Intervention Supports"]
["7344",7344,"Indirect Cost Prior Year","LCFF Intervention Supports"]
["7350",{"$f":"VALUE(A898)","v":7350},"Indirect Cost / Interfund","LCFF Intervention Supports"]
["7355",7355,"Indirect/Interfund - Prior Yrs","LCFF Intervention Supports"]
["7370",7370,"Transfers of Dir Support Costs","LCFF Intervention Supports"]
["7432",7432,"State School Bldg Fund Pymt","1.  Strategies to meet ELA/Math/ELD goals (Maximizing Instructional Time)"]
["7433",7433,"Bond Redemptions","1.  Strategies to meet ELA/Math/ELD goals (Maximizing Instructional Time)"]
["7434",7434,"Bond Interest Serv Chrgs","2.  Strategies to meet ELA/Math/ELD goals (Closing the Gap)"]
["7435",7435,"Repay of Proceeds from Bonds","3.  Strategies to meet ELA/Math/ELD goals (Professional Development)"]
["7436",7436,"Payments for Acqui of Property","4.  Strategies to meet graduation/promotion rates (Social/Emotional Supports)"]
["7438",7438,"Debt Service Interest","4.  Strategies to meet graduation/promotion rates (Social/Emotional Supports)"]
["7439",7439,"Other Debt Serv Pymts","4.  Strategies to meet graduation/promotion rates (Social/Emotional Supports)"]
["7611",7611,"General to Child Development","5.  Strategies to meet parent engagement goals"]
["7612",7612,"General and Special Reserve","5.  Strategies to meet parent engagement goals"]
["7613",7613,"State Bldg to All Other Funds","LCFF Intervention Supports"]
["7614",7614,"Bond Int and Redemp to General","LCFF Intervention Supports"]
["7615",7615,"From Gnrl, Spcl Res, and Bldg","LCFF Intervention Supports"]
["7616",7616,"General to Cafeteria","LCFF Intervention Supports"]
["7617",7617,"Para/Medical Bene Fund","1.  Strategies to meet ELA/Math/ELD goals (Maximizing Instructional Time)"]
["7619",7619,"Other Interfund Transfers Out","1.  Strategies to meet ELA/Math/ELD goals (Maximizing Instructional Time)"]
["7621",7621,"OSS/Medical Bene Fund","1.  Strategies to meet ELA/Math/ELD goals (Maximizing Instructional Time)"]
["7622",7622,"OTBS/Medical Bene Fund","2.  Strategies to meet ELA/Math/ELD goals (Closing the Gap)"]
["7623",7623,"POA/Medical Bene Fund","2.  Strategies to meet ELA/Math/ELD goals (Closing the Gap)"]
["7625",7625,"AASD Medical Benefit Fund","2.  Strategies to meet ELA/Math/ELD goals (Closing the Gap)"]
["7626",7626,"GF To Liability Ins Fund","2.  Strategies to meet ELA/Math/ELD goals (Closing the Gap)"]
["7627",7627,"GF To Property Ins Fund","3.  Strategies to meet ELA/Math/ELD goals (Professional Development)"]
["7632",7632,"State School Building Repay","4.  Strategies to meet graduation/promotion rates (Social/Emotional Supports)"]
["7639",7639,"Other Debt Service - Principal","5.  Strategies to meet parent engagement goals"]
["7641",7641,"Long Term Loan Repayment","5.  Strategies to meet parent engagement goals"]
["7651",7651,"Xfers from Reorganized Dist","5.  Strategies to meet parent engagement goals"]
["7662",7662,"Market Exchange Reserve","5.  Strategies to meet parent engagement goals"]
["7699",7699,"All Other Financing Uses","LCFF Intervention Supports"]
["7998",7998,"Other Outlay - Obsolete","LCFF Intervention Supports"]
["8011",8011,"Revenue Limit State Aid - Cy","LCFF Intervention Supports"]
["8012",8012,"Education Protection Account","LCFF Intervention Supports"]
["8015",8015,"Chrtr Schl Gen Pur Ent-St Aid","1.  Strategies to meet ELA/Math/ELD goals (Maximizing Instructional Time)"]
["8019",8019,"Revenue Limit State Aid - Py","1.  Strategies to meet ELA/Math/ELD goals (Maximizing Instructional Time)"]
["8021",8021,"Homeowners Exemption","1.  Strategies to meet ELA/Math/ELD goals (Maximizing Instructional Time)"]
["8022",8022,"Timber Yield Tax","2.  Strategies to meet ELA/Math/ELD goals (Closing the Gap)"]
["8029",8029,"Oth Subventions/In-Lieu Taxes","2.  Strategies to meet ELA/Math/ELD goals (Closing the Gap)"]
["8041",8041,"Secured Rolls Tax","2.  Strategies to meet ELA/Math/ELD goals (Closing the Gap)"]
["8042",8042,"Unsecured Roll Taxes","2.  Strategies to meet ELA/Math/ELD goals (Closing the Gap)"]
["8043",8043,"Prior Years Taxes","2.  Strategies to meet ELA/Math/ELD goals (Closing the Gap)"]
["8044",8044,"Supplemental Taxes","2.  Strategies to meet ELA/Math/ELD goals (Closing the Gap)"]
["8045",8045,"Ed Rev Augmentation Fund-Eraf","2.  Strategies to meet ELA/Math/ELD goals (Closing the Gap)"]
["8046",8046,"Supl Ed Rev Agmnt Fund-SERAF","2.  Strategies to meet ELA/Math/ELD goals (Closing the Gap)"]
["8047",8047,"Community Redevelopment Funds","2.  Strategies to meet ELA/Math/ELD goals (Closing the Gap)"]
["8048",8048,"Penalties/Interest-Delinq Tax","2.  Strategies to meet ELA/Math/ELD goals (Closing the Gap)"]
["8070",8070,"Receipts from County BOS","2.  Strategies to meet ELA/Math/ELD goals (Closing the Gap)"]
["8081",8081,"Royalties and Bonuses","3.  Strategies to meet ELA/Math/ELD goals (Professional Development)"]
["8082",8082,"Other In-Lieu Taxes","3.  Strategies to meet ELA/Math/ELD goals (Professional Development)"]
["8089",8089,"Less: Non-Rev Limit (50%) Adj","3.  Strategies to meet ELA/Math/ELD goals (Professional Development)"]
["8091",8091,"Rev Limit Transfers-Current Yr","3.  Strategies to meet ELA/Math/ELD goals (Professional Development)"]
["8092",8092,"PERS Reduction Transfer","3.  Strategies to meet ELA/Math/ELD goals (Professional Development)"]
["8096",8096,"Trsfr to Chrtr Schl Lieu of Pr","3.  Strategies to meet ELA/Math/ELD goals (Professional Development)"]
["8097",8097,"Property Taxes Transfers","3.  Strategies to meet ELA/Math/ELD goals (Professional Development)"]
["8099",8099,"Rev Limit Transfers-Prior Year","3.  Strategies to meet ELA/Math/ELD goals (Professional Development)"]
["8110",8110,"Maint/Oper (Public Law 81-874)","4.  Strategies to meet graduation/promotion rates (Social/Emotional Supports)"]
["8181",8181,"Special Education-Entitlement","5.  Strategies to meet parent engagement goals"]
["8182",8182,"Special Education-Discre Grant","5.  Strategies to meet parent engagement goals"]
["8220",8220,"Child Nutrition Pgms - Federal","5.  Strategies to meet parent engagement goals"]
["8260",8260,"Forest Reserve Funds","LCFF Intervention Supports"]
["8270",8270,"Flood Control Funds","LCFF Intervention Supports"]
["8280",8280,"US Wildlife Reserve Funds","LCFF Intervention Supports"]
["8281",8281,"FEMA","LCFF Intervention Supports"]
["8285",8285,"Interagency Cont Between LEA'S","LCFF Intervention Supports"]
["8287",{"$f":"VALUE(A962)","v":8287},"Pass-Thru Rev From Fed Sources","LCFF Intervention Supports"]
["8290",8290,"All Other Federal Revenue","1.  Strategies to meet ELA/Math/ELD goals (Maximizing Instructional Time)"]
["8311",8311,"Other State Apportionments-Cy","2.  Strategies to meet ELA/Math/ELD goals (Closing the Gap)"]
["8319",8319,"Other State Apportionments-Py","5.  Strategies to meet parent engagement goals"]
["8425",8425,"Year-Round School Incentive","LCFF Intervention Supports"]
["8434",8434,"Class Size Reduction, Gr K-3","LCFF Intervention Supports"]
["8435",8435,"Class Size Reduction, Gr 9-12","LCFF Intervention Supports"]
["8480",8480,"Chrtr Schl Categorical Blk Grt","LCFF Intervention Supports"]
["8520",8520,"Child Nutrition Pgms - State","1.  Strategies to meet ELA/Math/ELD goals (Maximizing Instructional Time)"]
["8530",8530,"Child Development Apports","2.  Strategies to meet ELA/Math/ELD goals (Closing the Gap)"]
["8540",8540,"Deferred Maintenance Allowance","3.  Strategies to meet ELA/Math/ELD goals (Professional Development)"]
["8545",8545,"School Facilities Apports","4.  Strategies to meet graduation/promotion rates (Social/Emotional Supports)"]
["8550",8550,"Mandated Cost Reimbursements","5.  Strategies to meet parent engagement goals"]
["8560",8560,"State Lottery Revenue","5.  Strategies to meet parent engagement goals"]
["8571",8571,"Voted Indebt Levies/Homeowners","LCFF Intervention Supports"]
["8572",8572,"Other Subventions/In-Lieu Tax","LCFF Intervention Supports"]
["8575",8575,"ORL, Homeowners Exemption","1.  Strategies to meet ELA/Math/ELD goals (Maximizing Instructional Time)"]
["8576",8576,"ORL, Other Subeventions","1.  Strategies to meet ELA/Math/ELD goals (Maximizing Instructional Time)"]
["8587",8587,"Pass-Thru Rev From St Sources","1.  Strategies to meet ELA/Math/ELD goals (Maximizing Instructional Time)"]
["8590",8590,"All Other State Revenues","2.  Strategies to meet ELA/Math/ELD goals (Closing the Gap)"]
["8591",8591,"Charter School Cat Block Grant","2.  Strategies to meet ELA/Math/ELD goals (Closing the Gap)"]
["8611",8611,"Voted Indebt Levies/Secured","2.  Strategies to meet ELA/Math/ELD goals (Closing the Gap)"]
["8612",8612,"Voted Indebt Levies/Unsecured","5.  Strategies to meet parent engagement goals"]
["8613",8613,"Voted Indebt Levies/Prior Year","5.  Strategies to meet parent engagement goals"]
["8614",8614,"Voted Indebt Levies/Supl Tax","LCFF Intervention Supports"]
["8615",8615,"ORL, Secured Roll","LCFF Intervention Supports"]
["8616",8616,"ORL, Unsecured Roll","1.  Strategies to meet ELA/Math/ELD goals (Maximizing Instructional Time)"]
["8617",8617,"ORL, Prior Years Taxes","1.  Strategies to meet ELA/Math/ELD goals (Maximizing Instructional Time)"]
["8618",8618,"ORL, Supplemental Taxes","2.  Strategies to meet ELA/Math/ELD goals (Closing the Gap)"]
["8621",8621,"Parcel Taxes","2.  Strategies to meet ELA/Math/ELD goals (Closing the Gap)"]
["8622",8622,"Other Non-Ad Valorem Taxes","2.  Strategies to meet ELA/Math/ELD goals (Closing the Gap)"]
["8625",8625,"Comm Rdv Funds Not Sub Rev Lim","3.  Strategies to meet ELA/Math/ELD goals (Professional Development)"]
["8629",8629,"Pen/Int-Delinq Non-Rev Lmt Tax","5.  Strategies to meet parent engagement goals"]
["8631",8631,"Sale Of Equipment And Supplies","5.  Strategies to meet parent engagement goals"]
["8632",8632,"Sales of Publications","LCFF Intervention Supports"]
["8634",8634,"Food Service Sales","LCFF Intervention Supports"]
["8639",8639,"All Other Sales","LCFF Intervention Supports"]
["8650",8650,"Leases And Rentals","LCFF Intervention Supports"]
["8660",8660,"Interest","LCFF Intervention Supports"]
["8662",8662,"Net Inc/(Dec) in FV Investment","LCFF Intervention Supports"]
["8671",8671,"Adult Education Fees","LCFF Intervention Supports"]
["8672",8672,"Nonresident Students Fees","LCFF Intervention Supports"]
["8673",8673,"Child Development Parent Fees","LCFF Intervention Supports"]
["8674",8674,"In-District Premiums/Contrib","LCFF Intervention Supports"]
["8675",8675,"Transportation Fees From Indiv","LCFF Intervention Supports"]
["8677",8677,"Interagency Srvcs Between LEAs","LCFF Intervention Supports"]
["8681",8681,"Mitigation/Developer Fees","1.  Strategies to meet ELA/Math/ELD goals (Maximizing Instructional Time)"]
["8689",8689,"All Other Fees And Contracts","1.  Strategies to meet ELA/Math/ELD goals (Maximizing Instructional Time)"]
["8691",8691,"Plus: Misc Non-Rev Lim(50%)Adj","4.  Strategies to meet graduation/promotion rates (Social/Emotional Supports)"]
["8697",8697,"Pass-Thru Rev From Local Sourc","4.  Strategies to meet graduation/promotion rates (Social/Emotional Supports)"]
["8699",8699,"All Other Local Revenue","5.  Strategies to meet parent engagement goals"]
["8710",8710,"Tuition","LCFF Intervention Supports"]
["8780",8780,"Chrtr Schl Funding In-Lieu Ptx","LCFF Intervention Supports"]
["8781",8781,"All Other Transfers From Dists","LCFF Intervention Supports"]
["8782",8782,"All Other Trans From Cty Ofces","LCFF Intervention Supports"]
["8783",8783,"All Other Transfers from JPA's","LCFF Intervention Supports"]
["8791",8791,"Transfers Of Apport From Distr","1.  Strategies to meet ELA/Math/ELD goals (Maximizing Instructional Time)"]
["8792",8792,"Transfer Of Apport From Cty Of","2.  Strategies to meet ELA/Math/ELD goals (Closing the Gap)"]
["8793",8793,"Xfers of Appor from JP Agree","4.  Strategies to meet graduation/promotion rates (Social/Emotional Supports)"]
["8799",8799,"Other Trnsfs In From All Other","LCFF Intervention Supports"]
["8911",8911,"General to Child Development","LCFF Intervention Supports"]
["8912",8912,"Between General and Spcl Res","1.  Strategies to meet ELA/Math/ELD goals (Maximizing Instructional Time)"]
["8913",8913,"All Funds to State Bldg","2.  Strategies to meet ELA/Math/ELD goals (Closing the Gap)"]
["8914",8914,"Bond Int and Redemp to General","5.  Strategies to meet parent engagement goals"]
["8915",{"$f":"VALUE(A1026)","v":8915},"Interfund Transfer In fr Funds","LCFF Intervention Supports"]
["8916",8916,"Cafeteria From General","LCFF Intervention Supports"]
["8919",8919,"Other Auth Interfund Trsf In","LCFF Intervention Supports"]
["8931",8931,"Emergency Apportionments","LCFF Intervention Supports"]
["8951",8951,"Proceeds from Sale of Bonds","1.  Strategies to meet ELA/Math/ELD goals (Maximizing Instructional Time)"]
["8953",8953,"Pro Frm Sale/Lse Pur Land/Bldg","2.  Strategies to meet ELA/Math/ELD goals (Closing the Gap)"]
["8961",8961,"County School Building Aid","5.  Strategies to meet parent engagement goals"]
["8965",8965,"Trsfr Frm Fnd Lapsed/Reorg Dis","5.  Strategies to meet parent engagement goals"]
["8971",8971,"Proceeds From Cert Of Particap","5.  Strategies to meet parent engagement goals"]
["8972",8972,"Proceeds From Capital Leases","LCFF Intervention Supports"]
["8973",8973,"Proceeds From Lease Rev Bonds","LCFF Intervention Supports"]
["8979",8979,"All Other Financing Sources","LCFF Intervention Supports"]
["8980",8980,"Contrib From Unrest Revenues","LCFF Intervention Supports"]
["8990",8990,"Contrib From Restricted Revenu","1.  Strategies to meet ELA/Math/ELD goals (Maximizing Instructional Time)"]
["8995",8995,"Categorical Block Grant Trnsfr","1.  Strategies to meet ELA/Math/ELD goals (Maximizing Instructional Time)"]
["8997",8997,"Transfer of Restricted Balance","2.  Strategies to meet ELA/Math/ELD goals (Closing the Gap)"]
["8998",8998,"Categorical Flexible Transfers","2.  Strategies to meet ELA/Math/ELD goals (Closing the Gap)"]
["9000",9000,"Reserves/Expenses","3.  Strategies to meet ELA/Math/ELD goals (Professional Development)"]
["9035",9035,"Reserve Account","4.  Strategies to meet graduation/promotion rates (Social/Emotional Supports)"]
["9110",9110,"Cash In County Treasury","4.  Strategies to meet graduation/promotion rates (Social/Emotional Supports)"]
["9111",9111,"Fair Value Adj/Cash In Cty Tre","5.  Strategies to meet parent engagement goals"]
["9115",9115,"Cash Balancing","5.  Strategies to meet parent engagement goals"]
["9117",9117,"Payroll Cash","5.  Strategies to meet parent engagement goals"]
["9120",9120,"Cash In Bank(s)","5.  Strategies to meet parent engagement goals"]
["9130",9130,"Revolving Cash Account","5.  Strategies to meet parent engagement goals"]
["9135",9135,"Cash With Fiscal Agent/Trustee","LCFF Intervention Supports"]
["9140",9140,"Cash Collect Awaiting Deposit","LCFF Intervention Supports"]
["9150",9150,"Investments","LCFF Intervention Supports"]
["9200",9200,"Accounts Receivable","LCFF Intervention Supports"]
["9210",9210,"Accts Recvble-YR End Accruals","LCFF Intervention Supports"]
["9290",9290,"Due From Grantor Governments","LCFF Intervention Supports"]
["9310",9310,"Due From Other Funds","LCFF Intervention Supports"]
["9320",9320,"Stores","LCFF Intervention Supports"]
["9321",9321,"Inventory - PPO","LCFF Intervention Supports"]
["9330",9330,"Prepaid Expenditures/Expenses","LCFF Intervention Supports"]
["9340",9340,"Other Current Assets","1.  Strategies to meet ELA/Math/ELD goals (Maximizing Instructional Time)"]
["9410",9410,"Land","2.  Strategies to meet ELA/Math/ELD goals (Closing the Gap)"]
["9420",9420,"Improvement Of Sites","4.  Strategies to meet graduation/promotion rates (Social/Emotional Supports)"]
["9425",9425,"Accum Depr-Improvement Of Site","5.  Strategies to meet parent engagement goals"]
["9430",9430,"Buildings","5.  Strategies to meet parent engagement goals"]
["9435",9435,"Accum Depr-Buildings","LCFF Intervention Supports"]
["9436",9436,"Building Improvements","LCFF Intervention Supports"]
["9437",9437,"Accumulated Depreciation","LCFF Intervention Supports"]
["9440",9440,"Equipment","LCFF Intervention Supports"]
["9445",9445,"Accum Depr-Equipment","LCFF Intervention Supports"]
["9450",9450,"Work In Progress","LCFF Intervention Supports"]
["9490",9490,"Deferred Outflows of Resources","LCFF Intervention Supports"]
["9501",9501,"Accounts Payable - Sys Gen","1.  Strategies to meet ELA/Math/ELD goals (Maximizing Instructional Time)"]
["9502",9502,"Accts Payable-Software License","2.  Strategies to meet ELA/Math/ELD goals (Closing the Gap)"]
["9503",9503,"Accts Payable-Purchase Cards","3.  Strategies to meet ELA/Math/ELD goals (Professional Development)"]
["9505",9505,"Accts Payable-Charter Payroll","5.  Strategies to meet parent engagement goals"]
["9506",9506,"Accts Pay-Charter Property Tax","5.  Strategies to meet parent engagement goals"]
["9507",9507,"Accts Payable-Charter Other","5.  Strategies to meet parent engagement goals"]
["9508",9508,"AcctsPayable-Charter Inventory","LCFF Intervention Supports"]
["9509",9509,"Accts Payable-Charter Fees&Ser","LCFF Intervention Supports"]
["9510",9510,"Accounts Payable  Year-end Acc","LCFF Intervention Supports"]
["9512",9512,"Accounts Pay - Ind Cont St W/H","LCFF Intervention Supports"]
["9513",9513,"Accounts Payable - Use Tax","LCFF Intervention Supports"]
["9514",9514,"AP-Payroll Deduction Employer","LCFF Intervention Supports"]
["9515",9515,"AP - Payroll Deductions","1.  Strategies to meet ELA/Math/ELD goals (Maximizing Instructional Time)"]
["9516",9516,"Accounts Pay - Trust Fund","1.  Strategies to meet ELA/Math/ELD goals (Maximizing Instructional Time)"]
["9517",9517,"Payroll Liability","1.  Strategies to meet ELA/Math/ELD goals (Maximizing Instructional Time)"]
["9520",9520,"Accounts Pay - Warehouse","5.  Strategies to meet parent engagement goals"]
["9590",9590,"Due To Grantor Governments","LCFF Intervention Supports"]
["9610",{"$f":"VALUE(A1090)","v":9610},"Due To Other Funds","LCFF Intervention Supports"]
["9620",9620,"Due To Stdnt Grps/Oth Agencies","LCFF Intervention Supports"]
["9640",9640,"Current Loans","LCFF Intervention Supports"]
["9650",9650,"Unearned Revenue","LCFF Intervention Supports"]
["9661",9661,"Gen Obligation Bond Payable","LCFF Intervention Supports"]
["9662",9662,"State Schl Bldg Loan Payable","LCFF Intervention Supports"]
["9664",9664,"Other Postemployment Benefits","LCFF Intervention Supports"]
["9665",9665,"Compensated Absences Payable","1.  Strategies to meet ELA/Math/ELD goals (Maximizing Instructional Time)"]
["9666",9666,"COPs Payable","2.  Strategies to meet ELA/Math/ELD goals (Closing the Gap)"]
["9667",9667,"Capital Leases Payable","3.  Strategies to meet ELA/Math/ELD goals (Professional Development)"]
["9668",9668,"Lease Revenue Bonds Payable","3.  Strategies to meet ELA/Math/ELD goals (Professional Development)"]
["9669",9669,"Other General Long-Term Debt","5.  Strategies to meet parent engagement goals"]
["9690",9690,"Deferred Inflows of Resources","5.  Strategies to meet parent engagement goals"]
["9711",9711,"Reserve For Revolving Cash","5.  Strategies to meet parent engagement goals"]
["9712",9712,"Reserve For Stores","5.  Strategies to meet parent engagement goals"]
["9713",9713,"Reserve For Prepaid Expend.","5.  Strategies to meet parent engagement goals"]
["9719",9719,"Reserve For All Others","5.  Strategies to meet parent engagement goals"]
["9720",9720,"Reserve For Encumbrances","LCFF Intervention Supports"]
["9730",9730,"General Reserve","LCFF Intervention Supports"]
["9740",9740,"Restricted Balance","1.  Strategies to meet ELA/Math/ELD goals (Maximizing Instructional Time)"]
["9770",9770,"Desig For Economic Uncert","1.  Strategies to meet ELA/Math/ELD goals (Maximizing Instructional Time)"]
["9775",9775,"Desig Unreal Gains Inv/Csh Cty","2.  Strategies to meet ELA/Math/ELD goals (Closing the Gap)"]
["9780",9780,"Other Designations","3.  Strategies to meet ELA/Math/ELD goals (Professional Development)"]
["9789",9789,"Reserve For Economic Uncert","5.  Strategies to meet parent engagement goals"]
["9790",9790,"Undesignated/Unappropriated","5.  Strategies to meet parent engagement goals"]
["9791",9791,"Beg Fund Balance/Revenue","LCFF Intervention Supports"]
["9792",9792,"Beg Fund Balance/Expense","LCFF Intervention Supports"]
["9793",9793,"Audit Adjustments","LCFF Intervention Supports"]
["9795",9795,"Other Restatements","LCFF Intervention Supports"]
["9796",9796,"Net Capital Asset","LCFF Intervention Supports"]
["9810",9810,"Estimated Income","2.  Strategies to meet ELA/Math/ELD goals (Closing the Gap)"]
["9820",9820,"Budget Appropriations","3.  Strategies to meet ELA/Math/ELD goals (Professional Development)"]
["9830",9830,"Budget Encumbrance Control","3.  Strategies to meet ELA/Math/ELD goals (Professional Development)"]
["9850",9850,"Budget Expenditure Control","3.  Strategies to meet ELA/Math/ELD goals (Professional Development)"]
["9895",9895,"Projected Actuals Control","4.  Strategies to meet graduation/promotion rates (Social/Emotional Supports)"]
["9980",9980,"Amount Available","4.  Strategies to meet graduation/promotion rates (Social/Emotional Supports)"]
["9989",9989,"Amount To Be Provided","5.  Strategies to meet parent engagement goals"]
["9990",9990,"Investment In Gen Fixed Assets","5.  Strategies to meet parent engagement goals"]
["9994",9994,"Payroll Suspense - Custom","5.  Strategies to meet parent engagement goals"]
["9995",9995,"Payroll Suspense","5.  Strategies to meet parent engagement goals"]
["9996",9996,"Offset TF, Y4, ZJ, ZO for CRC","5.  Strategies to meet parent engagement goals"]
["9999",9999,"Account Not In Use","5.  Strategies to meet parent engagement goals"]
[{"$nulls":3},"LCFF Intervention Supports"]
[{"$nulls":3},"LCFF Intervention Supports"]
[{"$nulls":3},"LCFF Intervention Supports"]
[{"$nulls":3},"LCFF Intervention Supports"]
[{"$nulls":3},"LCFF Intervention Supports"]
[{"$nulls":3},"LCFF Intervention Supports"]
[{"$nulls":3},"LCFF Intervention Supports"]
[{"$nulls":3},"LCFF Intervention Supports"]
[{"$nulls":3},"1.  Strategies to meet ELA/Math/ELD goals (Maximizing Instructional Time)"]
[{"$nulls":3},"1.  Strategies to meet ELA/Math/ELD goals (Maximizing Instructional Time)"]
[{"$nulls":3},"1.  Strategies to meet ELA/Math/ELD goals (Maximizing Instructional Time)"]
[{"$nulls":3},"1.  Strategies to meet ELA/Math/ELD goals (Maximizing Instructional Time)"]
[{"$nulls":3},"1.  Strategies to meet ELA/Math/ELD goals (Maximizing Instructional Time)"]
[{"$nulls":3},"1.  Strategies to meet ELA/Math/ELD goals (Maximizing Instructional Time)"]
[{"$nulls":3},"1.  Strategies to meet ELA/Math/ELD goals (Maximizing Instructional Time)"]
[{"$nulls":3},"1.  Strategies to meet ELA/Math/ELD goals (Maximizing Instructional Time)"]
[{"$nulls":3},"1.  Strategies to meet ELA/Math/ELD goals (Maximizing Instructional Time)"]
[{"$nulls":3},"1.  Strategies to meet ELA/Math/ELD goals (Maximizing Instructional Time)"]
[{"$nulls":3},"1.  Strategies to meet ELA/Math/ELD goals (Maximizing Instructional Time)"]
[{"$nulls":3},"1.  Strategies to meet ELA/Math/ELD goals (Maximizing Instructional Time)"]
[{"$nulls":3},"LCFF Intervention Supports"]
[{"$nulls":3},"LCFF Intervention Supports"]
[{"$nulls":3},"LCFF Intervention Supports"]
[{"$nulls":3},"LCFF Intervention Supports"]
[{"$nulls":3},"LCFF Intervention Supports"]
[{"$nulls":3},"LCFF Intervention Supports"]
[{"$nulls":3},"1.  Strategies to meet ELA/Math/ELD goals (Maximizing Instructional Time)"]
[{"$nulls":3},"1.  Strategies to meet ELA/Math/ELD goals (Maximizing Instructional Time)"]
[{"$nulls":3},"2.  Strategies to meet ELA/Math/ELD goals (Closing the Gap)"]
[{"$nulls":3},"4.  Strategies to meet graduation/promotion rates (Social/Emotional Supports)"]
[{"$nulls":3},"5.  Strategies to meet parent engagement goals"]
[{"$nulls":3},"5.  Strategies to meet parent engagement goals"]
[{"$nulls":3},"5.  Strategies to meet parent engagement goals"]
[{"$nulls":3},"5.  Strategies to meet parent engagement goals"]
[{"$nulls":3},"5.  Strategies to meet parent engagement goals"]
[{"$nulls":3},"LCFF Intervention Supports"]
[{"$nulls":3},"LCFF Intervention Supports"]
[{"$nulls":3},"LCFF Intervention Supports"]
[{"$nulls":3},"1.  Strategies to meet ELA/Math/ELD goals (Maximizing Instructional Time)"]
[{"$nulls":3},"1.  Strategies to meet ELA/Math/ELD goals (Maximizing Instructional Time)"]
[{"$nulls":3},"1.  Strategies to meet ELA/Math/ELD goals (Maximizing Instructional Time)"]
[{"$nulls":3},"2.  Strategies to meet ELA/Math/ELD goals (Closing the Gap)"]
[{"$nulls":3},"2.  Strategies to meet ELA/Math/ELD goals (Closing the Gap)"]
[{"$nulls":3},"2.  Strategies to meet ELA/Math/ELD goals (Closing the Gap)"]
[{"$nulls":3},"3.  Strategies to meet ELA/Math/ELD goals (Professional Development)"]
[{"$nulls":3},"3.  Strategies to meet ELA/Math/ELD goals (Professional Development)"]
[{"$nulls":3},"4.  Strategies to meet graduation/promotion rates (Social/Emotional Supports)"]
[{"$nulls":3},"4.  Strategies to meet graduation/promotion rates (Social/Emotional Supports)"]
[{"$nulls":3},"4.  Strategies to meet graduation/promotion rates (Social/Emotional Supports)"]
[{"$nulls":3},"4.  Strategies to meet graduation/promotion rates (Social/Emotional Supports)"]
[{"$nulls":3},"5.  Strategies to meet parent engagement goals"]
[{"$nulls":3},"5.  Strategies to meet parent engagement goals"]
[{"$nulls":3},"LCFF Intervention Supports"]
[{"$nulls":3},"LCFF Intervention Supports"]
[{"$nulls":3},"LCFF Intervention Supports"]
[{"$nulls":3},"LCFF Intervention Supports"]
[{"$nulls":3},"LCFF Intervention Supports"]
[{"$nulls":3},"LCFF Intervention Supports"]
[{"$nulls":3},"LCFF Intervention Supports"]
[{"$nulls":3},"1.  Strategies to meet ELA/Math/ELD goals (Maximizing Instructional Time)"]
[{"$nulls":3},"3.  Strategies to meet ELA/Math/ELD goals (Professional Development)"]
[{"$nulls":3},"4.  Strategies to meet graduation/promotion rates (Social/Emotional Supports)"]
[{"$nulls":3},"5.  Strategies to meet parent engagement goals"]
[{"$nulls":3},"LCFF Intervention Supports"]
[{"$nulls":3},"LCFF Intervention Supports"]
[{"$nulls":3},"LCFF Intervention Supports"]
[{"$nulls":3},"1.  Strategies to meet ELA/Math/ELD goals (Maximizing Instructional Time)"]
[{"$nulls":3},"1.  Strategies to meet ELA/Math/ELD goals (Maximizing Instructional Time)"]
[{"$nulls":3},"2.  Strategies to meet ELA/Math/ELD goals (Closing the Gap)"]
[{"$nulls":3},"3.  Strategies to meet ELA/Math/ELD goals (Professional Development)"]
[{"$nulls":3},"5.  Strategies to meet parent engagement goals"]
[{"$nulls":3},"5.  Strategies to meet parent engagement goals"]
[{"$nulls":3},"5.  Strategies to meet parent engagement goals"]
[{"$nulls":3},"LCFF Intervention Supports"]
[{"$nulls":3},"LCFF Intervention Supports"]
[{"$nulls":3},"LCFF Intervention Supports"]
[{"$nulls":3},"LCFF Intervention Supports"]
[{"$nulls":3},"LCFF Intervention Supports"]
[{"$nulls":3},"LCFF Intervention Supports"]
[{"$nulls":3},"LCFF Intervention Supports"]
[{"$nulls":3},"1.  Strategies to meet ELA/Math/ELD goals (Maximizing Instructional Time)"]
[{"$nulls":3},"1.  Strategies to meet ELA/Math/ELD goals (Maximizing Instructional Time)"]
[{"$nulls":3},"2.  Strategies to meet ELA/Math/ELD goals (Closing the Gap)"]
[{"$nulls":3},"2.  Strategies to meet ELA/Math/ELD goals (Closing the Gap)"]
[{"$nulls":3},"4.  Strategies to meet graduation/promotion rates (Social/Emotional Supports)"]
[{"$nulls":3},"5.  Strategies to meet parent engagement goals"]
[{"$nulls":3},"5.  Strategies to meet parent engagement goals"]
[{"$nulls":3},"5.  Strategies to meet parent engagement goals"]
[{"$nulls":3},"LCFF Intervention Supports"]
[{"$nulls":3},"LCFF Intervention Supports"]
[{"$nulls":3},"LCFF Intervention Supports"]
[{"$nulls":3},"1.  Strategies to meet ELA/Math/ELD goals (Maximizing Instructional Time)"]
[{"$nulls":3},"2.  Strategies to meet ELA/Math/ELD goals (Closing the Gap)"]
[{"$nulls":3},"3.  Strategies to meet ELA/Math/ELD goals (Professional Development)"]
[{"$nulls":3},"4.  Strategies to meet graduation/promotion rates (Social/Emotional Supports)"]
[{"$nulls":3},"5.  Strategies to meet parent engagement goals"]
[{"$nulls":3},"5.  Strategies to meet parent engagement goals"]
[{"$nulls":3},"5.  Strategies to meet parent engagement goals"]
[{"$nulls":3},"5.  Strategies to meet parent engagement goals"]
[{"$nulls":3},"LCFF Intervention Supports"]
[{"$nulls":3},"LCFF Intervention Supports"]
[{"$nulls":3},"LCFF Intervention Supports"]
[{"$nulls":3},"1.  Strategies to meet ELA/Math/ELD goals (Maximizing Instructional Time)"]
[{"$nulls":3},"1.  Strategies to meet ELA/Math/ELD goals (Maximizing Instructional Time)"]
[{"$nulls":3},"1.  Strategies to meet ELA/Math/ELD goals (Maximizing Instructional Time)"]
[{"$nulls":3},"1.  Strategies to meet ELA/Math/ELD goals (Maximizing Instructional Time)"]
[{"$nulls":3},"5.  Strategies to meet parent engagement goals"]
[{"$nulls":3},"LCFF Intervention Supports"]
[{"$nulls":3},"LCFF Intervention Supports"]
[{"$nulls":3},"LCFF Intervention Supports"]
[{"$nulls":3},"LCFF Intervention Supports"]
[{"$nulls":3},"LCFF Intervention Supports"]
[{"$nulls":3},"LCFF Intervention Supports"]
[{"$nulls":3},"LCFF Intervention Supports"]
[{"$nulls":3},"1.  Strategies to meet ELA/Math/ELD goals (Maximizing Instructional Time)"]
[{"$nulls":3},"2.  Strategies to meet ELA/Math/ELD goals (Closing the Gap)"]
[{"$nulls":3},"5.  Strategies to meet parent engagement goals"]
[{"$nulls":3},"5.  Strategies to meet parent engagement goals"]
[{"$nulls":3},"5.  Strategies to meet parent engagement goals"]
[{"$nulls":3},"5.  Strategies to meet parent engagement goals"]
[{"$nulls":3},"LCFF Intervention Supports"]
[{"$nulls":3},"LCFF Intervention Supports"]
[{"$nulls":3},"LCFF Intervention Supports"]
[{"$nulls":3},"LCFF Intervention Supports"]
[{"$nulls":3},"LCFF Intervention Supports"]
[{"$nulls":3},"LCFF Intervention Supports"]
[{"$nulls":3},"LCFF Intervention Supports"]
[{"$nulls":3},"LCFF Intervention Supports"]
[{"$nulls":3},"LCFF Intervention Supports"]
[{"$nulls":3},"LCFF Intervention Supports"]
[{"$nulls":3},"LCFF Intervention Supports"]
[{"$nulls":3},"1.  Strategies to meet ELA/Math/ELD goals (Maximizing Instructional Time)"]
[{"$nulls":3},"1.  Strategies to meet ELA/Math/ELD goals (Maximizing Instructional Time)"]
[{"$nulls":3},"2.  Strategies to meet ELA/Math/ELD goals (Closing the Gap)"]
[{"$nulls":3},"3.  Strategies to meet ELA/Math/ELD goals (Professional Development)"]
[{"$nulls":3},"3.  Strategies to meet ELA/Math/ELD goals (Professional Development)"]
[{"$nulls":3},"5.  Strategies to meet parent engagement goals"]
[{"$nulls":3},"5.  Strategies to meet parent engagement goals"]
[{"$nulls":3},"5.  Strategies to meet parent engagement goals"]
[{"$nulls":3},"5.  Strategies to meet parent engagement goals"]
[{"$nulls":3},"LCFF Intervention Supports"]
[{"$nulls":3},"LCFF Intervention Supports"]
[{"$nulls":3},"LCFF Intervention Supports"]
[{"$nulls":3},"LCFF Intervention Supports"]
[{"$nulls":3},"LCFF Intervention Supports"]
[{"$nulls":3},"LCFF Intervention Supports"]
[{"$nulls":3},"LCFF Intervention Supports"]
[{"$nulls":3},"LCFF Intervention Supports"]
[{"$nulls":3},"1.  Strategies to meet ELA/Math/ELD goals (Maximizing Instructional Time)"]
[{"$nulls":3},"2.  Strategies to meet ELA/Math/ELD goals (Closing the Gap)"]
[{"$nulls":3},"5.  Strategies to meet parent engagement goals"]
[{"$nulls":3},"LCFF Intervention Supports"]
[{"$nulls":3},"LCFF Intervention Supports"]
[{"$nulls":3},"LCFF Intervention Supports"]
[{"$nulls":3},"LCFF Intervention Supports"]
[{"$nulls":3},"1.  Strategies to meet ELA/Math/ELD goals (Maximizing Instructional Time)"]
[{"$nulls":3},"2.  Strategies to meet ELA/Math/ELD goals (Closing the Gap)"]
[{"$nulls":3},"2.  Strategies to meet ELA/Math/ELD goals (Closing the Gap)"]
[{"$nulls":3},"2.  Strategies to meet ELA/Math/ELD goals (Closing the Gap)"]
[{"$nulls":3},"3.  Strategies to meet ELA/Math/ELD goals (Professional Development)"]
[{"$nulls":3},"3.  Strategies to meet ELA/Math/ELD goals (Professional Development)"]
[{"$nulls":3},"4.  Strategies to meet graduation/promotion rates (Social/Emotional Supports)"]
[{"$nulls":3},"5.  Strategies to meet parent engagement goals"]
[{"$nulls":3},"5.  Strategies to meet parent engagement goals"]
[{"$nulls":3},"LCFF Intervention Supports"]
[{"$nulls":3},"LCFF Intervention Supports"]
[{"$nulls":3},"LCFF Intervention Supports"]
[{"$nulls":3},"LCFF Intervention Supports"]
[{"$nulls":3},"LCFF Intervention Supports"]
[{"$nulls":3},"LCFF Intervention Supports"]
[{"$nulls":3},"LCFF Intervention Supports"]
[{"$nulls":3},"LCFF Intervention Supports"]
[{"$nulls":3},"LCFF Intervention Supports"]
[{"$nulls":3},"LCFF Intervention Supports"]
[{"$nulls":3},"LCFF Intervention Supports"]
[{"$nulls":3},"1.  Strategies to meet ELA/Math/ELD goals (Maximizing Instructional Time)"]
[{"$nulls":3},"1.  Strategies to meet ELA/Math/ELD goals (Maximizing Instructional Time)"]
[{"$nulls":3},"2.  Strategies to meet ELA/Math/ELD goals (Closing the Gap)"]
[{"$nulls":3},"3.  Strategies to meet ELA/Math/ELD goals (Professional Development)"]
[{"$nulls":3},"3.  Strategies to meet ELA/Math/ELD goals (Professional Development)"]
[{"$nulls":3},"3.  Strategies to meet ELA/Math/ELD goals (Professional Development)"]
[{"$nulls":3},"4.  Strategies to meet graduation/promotion rates (Social/Emotional Supports)"]
[{"$nulls":3},"4.  Strategies to meet graduation/promotion rates (Social/Emotional Supports)"]
[{"$nulls":3},"5.  Strategies to meet parent engagement goals"]
[{"$nulls":3},"5.  Strategies to meet parent engagement goals"]
[{"$nulls":3},"5.  Strategies to meet parent engagement goals"]
[{"$nulls":3},"LCFF Intervention Supports"]
[{"$nulls":3},"LCFF Intervention Supports"]
[{"$nulls":3},"LCFF Intervention Supports"]
[{"$nulls":3},"LCFF Intervention Supports"]
[{"$nulls":3},"LCFF Intervention Supports"]
[{"$nulls":3},"LCFF Intervention Supports"]
[{"$nulls":3},"LCFF Intervention Supports"]
[{"$nulls":3},"1.  Strategies to meet ELA/Math/ELD goals (Maximizing Instructional Time)"]
[{"$nulls":3},"3.  Strategies to meet ELA/Math/ELD goals (Professional Development)"]
[{"$nulls":3},"4.  Strategies to meet graduation/promotion rates (Social/Emotional Supports)"]
[{"$nulls":3},"4.  Strategies to meet graduation/promotion rates (Social/Emotional Supports)"]
[{"$nulls":3},"5.  Strategies to meet parent engagement goals"]
[{"$nulls":3},"5.  Strategies to meet parent engagement goals"]
[{"$nulls":3},"LCFF Intervention Supports"]
[{"$nulls":3},"LCFF Intervention Supports"]
[{"$nulls":3},"LCFF Intervention Supports"]
[{"$nulls":3},"LCFF Intervention Supports"]
[{"$nulls":3},"LCFF Intervention Supports"]
[{"$nulls":3},"1.  Strategies to meet ELA/Math/ELD goals (Maximizing Instructional Time)"]
[{"$nulls":3},"3.  Strategies to meet ELA/Math/ELD goals (Professional Development)"]
[{"$nulls":3},"3.  Strategies to meet ELA/Math/ELD goals (Professional Development)"]
[{"$nulls":3},"4.  Strategies to meet graduation/promotion rates (Social/Emotional Supports)"]
[{"$nulls":3},"5.  Strategies to meet parent engagement goals"]
[{"$nulls":3},"5.  Strategies to meet parent engagement goals"]
[{"$nulls":3},"LCFF Intervention Supports"]
[{"$nulls":3},"LCFF Intervention Supports"]
[{"$nulls":3},"LCFF Intervention Supports"]
[{"$nulls":3},"LCFF Intervention Supports"]
[{"$nulls":3},"1.  Strategies to meet ELA/Math/ELD goals (Maximizing Instructional Time)"]
[{"$nulls":3},"1.  Strategies to meet ELA/Math/ELD goals (Maximizing Instructional Time)"]
[{"$nulls":3},"2.  Strategies to meet ELA/Math/ELD goals (Closing the Gap)"]
[{"$nulls":3},"3.  Strategies to meet ELA/Math/ELD goals (Professional Development)"]
[{"$nulls":3},"4.  Strategies to meet graduation/promotion rates (Social/Emotional Supports)"]
[{"$nulls":3},"5.  Strategies to meet parent engagement goals"]
[{"$nulls":3},"LCFF Intervention Supports"]
[{"$nulls":3},"LCFF Intervention Supports"]
[{"$nulls":3},"LCFF Intervention Supports"]
[{"$nulls":3},"LCFF Intervention Supports"]
[{"$nulls":3},"LCFF Intervention Supports"]
[{"$nulls":3},"LCFF Intervention Supports"]
[{"$nulls":3},"1.  Strategies to meet ELA/Math/ELD goals (Maximizing Instructional Time)"]
[{"$nulls":3},"1.  Strategies to meet ELA/Math/ELD goals (Maximizing Instructional Time)"]
[{"$nulls":3},"2.  Strategies to meet ELA/Math/ELD goals (Closing the Gap)"]
[{"$nulls":3},"3.  Strategies to meet ELA/Math/ELD goals (Professional Development)"]
[{"$nulls":3},"3.  Strategies to meet ELA/Math/ELD goals (Professional Development)"]
[{"$nulls":3},"5.  Strategies to meet parent engagement goals"]
[{"$nulls":3},"5.  Strategies to meet parent engagement goals"]
[{"$nulls":3},"LCFF Intervention Supports"]
[{"$nulls":3},"LCFF Intervention Supports"]
[{"$nulls":3},"LCFF Intervention Supports"]
[{"$nulls":3},"LCFF Intervention Supports"]
[{"$nulls":3},"LCFF Intervention Supports"]
[{"$nulls":3},"LCFF Intervention Supports"]
[{"$nulls":3},"LCFF Intervention Supports"]
[{"$nulls":3},"1.  Strategies to meet ELA/Math/ELD goals (Maximizing Instructional Time)"]
[{"$nulls":3},"2.  Strategies to meet ELA/Math/ELD goals (Closing the Gap)"]
[{"$nulls":3},"2.  Strategies to meet ELA/Math/ELD goals (Closing the Gap)"]
[{"$nulls":3},"2.  Strategies to meet ELA/Math/ELD goals (Closing the Gap)"]
[{"$nulls":3},"5.  Strategies to meet parent engagement goals"]
[{"$nulls":3},"5.  Strategies to meet parent engagement goals"]
[{"$nulls":3},"LCFF Intervention Supports"]
[{"$nulls":3},"LCFF Intervention Supports"]
[{"$nulls":3},"LCFF Intervention Supports"]
[{"$nulls":3},"LCFF Intervention Supports"]
[{"$nulls":3},"LCFF Intervention Supports"]
[{"$nulls":3},"1.  Strategies to meet ELA/Math/ELD goals (Maximizing Instructional Time)"]
[{"$nulls":3},"2.  Strategies to meet ELA/Math/ELD goals (Closing the Gap)"]
[{"$nulls":3},"2.  Strategies to meet ELA/Math/ELD goals (Closing the Gap)"]
[{"$nulls":3},"3.  Strategies to meet ELA/Math/ELD goals (Professional Development)"]
[{"$nulls":3},"3.  Strategies to meet ELA/Math/ELD goals (Professional Development)"]
[{"$nulls":3},"5.  Strategies to meet parent engagement goals"]
[{"$nulls":3},"5.  Strategies to meet parent engagement goals"]
[{"$nulls":3},"LCFF Intervention Supports"]
[{"$nulls":3},"LCFF Intervention Supports"]
[{"$nulls":3},"1.  Strategies to meet ELA/Math/ELD goals (Maximizing Instructional Time)"]
[{"$nulls":3},"1.  Strategies to meet ELA/Math/ELD goals (Maximizing Instructional Time)"]
[{"$nulls":3},"1.  Strategies to meet ELA/Math/ELD goals (Maximizing Instructional Time)"]
[{"$nulls":3},"2.  Strategies to meet ELA/Math/ELD goals (Closing the Gap)"]
[{"$nulls":3},"2.  Strategies to meet ELA/Math/ELD goals (Closing the Gap)"]
[{"$nulls":3},"2.  Strategies to meet ELA/Math/ELD goals (Closing the Gap)"]
[{"$nulls":3},"2.  Strategies to meet ELA/Math/ELD goals (Closing the Gap)"]
[{"$nulls":3},"2.  Strategies to meet ELA/Math/ELD goals (Closing the Gap)"]
[{"$nulls":3},"2.  Strategies to meet ELA/Math/ELD goals (Closing the Gap)"]
[{"$nulls":3},"3.  Strategies to meet ELA/Math/ELD goals (Professional Development)"]
[{"$nulls":3},"3.  Strategies to meet ELA/Math/ELD goals (Professional Development)"]
[{"$nulls":3},"3.  Strategies to meet ELA/Math/ELD goals (Professional Development)"]
[{"$nulls":3},"3.  Strategies to meet ELA/Math/ELD goals (Professional Development)"]
[{"$nulls":3},"3.  Strategies to meet ELA/Math/ELD goals (Professional Development)"]
[{"$nulls":3},"4.  Strategies to meet graduation/promotion rates (Social/Emotional Supports)"]
[{"$nulls":3},"4.  Strategies to meet graduation/promotion rates (Social/Emotional Supports)"]
[{"$nulls":3},"4.  Strategies to meet graduation/promotion rates (Social/Emotional Supports)"]
[{"$nulls":3},"4.  Strategies to meet graduation/promotion rates (Social/Emotional Supports)"]
[{"$nulls":3},"5.  Strategies to meet parent engagement goals"]
[{"$nulls":3},"5.  Strategies to meet parent engagement goals"]
[{"$nulls":3},"5.  Strategies to meet parent engagement goals"]
[{"$nulls":3},"5.  Strategies to meet parent engagement goals"]
[{"$nulls":3},"5.  Strategies to meet parent engagement goals"]
[{"$nulls":3},"5.  Strategies to meet parent engagement goals"]
[{"$nulls":3},"5.  Strategies to meet parent engagement goals"]
[{"$nulls":3},"5.  Strategies to meet parent engagement goals"]
[{"$nulls":3},"5.  Strategies to meet parent engagement goals"]
[{"$nulls":3},"LCFF Intervention Supports"]
[{"$nulls":3},"LCFF Intervention Supports"]
[{"$nulls":3},"LCFF Intervention Supports"]
[{"$nulls":3},"LCFF Intervention Supports"]
[{"$nulls":3},"LCFF Intervention Supports"]
[{"$nulls":3},"LCFF Intervention Supports"]
[{"$nulls":3},"LCFF Intervention Supports"]
[{"$nulls":3},"LCFF Intervention Supports"]
[{"$nulls":3},"LCFF Intervention Supports"]
[{"$nulls":3},"LCFF Intervention Supports"]
[{"$nulls":3},"LCFF Intervention Supports"]
[{"$nulls":3},"LCFF Intervention Supports"]
[{"$nulls":3},"LCFF Intervention Supports"]
[{"$nulls":3},"1.  Strategies to meet ELA/Math/ELD goals (Maximizing Instructional Time)"]
[{"$nulls":3},"2.  Strategies to meet ELA/Math/ELD goals (Closing the Gap)"]
[{"$nulls":3},"3.  Strategies to meet ELA/Math/ELD goals (Professional Development)"]
[{"$nulls":3},"4.  Strategies to meet graduation/promotion rates (Social/Emotional Supports)"]
[{"$nulls":3},"5.  Strategies to meet parent engagement goals"]
[{"$nulls":3},"LCFF Intervention Supports"]
[{"$nulls":3},"LCFF Intervention Supports"]
[{"$nulls":3},"1.  Strategies to meet ELA/Math/ELD goals (Maximizing Instructional Time)"]
[{"$nulls":3},"1.  Strategies to meet ELA/Math/ELD goals (Maximizing Instructional Time)"]
[{"$nulls":3},"1.  Strategies to meet ELA/Math/ELD goals (Maximizing Instructional Time)"]
[{"$nulls":3},"1.  Strategies to meet ELA/Math/ELD goals (Maximizing Instructional Time)"]
[{"$nulls":3},"1.  Strategies to meet ELA/Math/ELD goals (Maximizing Instructional Time)"]
[{"$nulls":3},"1.  Strategies to meet ELA/Math/ELD goals (Maximizing Instructional Time)"]
[{"$nulls":3},"2.  Strategies to meet ELA/Math/ELD goals (Closing the Gap)"]
[{"$nulls":3},"2.  Strategies to meet ELA/Math/ELD goals (Closing the Gap)"]
[{"$nulls":3},"2.  Strategies to meet ELA/Math/ELD goals (Closing the Gap)"]
[{"$nulls":3},"3.  Strategies to meet ELA/Math/ELD goals (Professional Development)"]
[{"$nulls":3},"3.  Strategies to meet ELA/Math/ELD goals (Professional Development)"]
[{"$nulls":3},"4.  Strategies to meet graduation/promotion rates (Social/Emotional Supports)"]
[{"$nulls":3},"4.  Strategies to meet graduation/promotion rates (Social/Emotional Supports)"]
[{"$nulls":3},"4.  Strategies to meet graduation/promotion rates (Social/Emotional Supports)"]
[{"$nulls":3},"4.  Strategies to meet graduation/promotion rates (Social/Emotional Supports)"]
[{"$nulls":3},"5.  Strategies to meet parent engagement goals"]
[{"$nulls":3},"5.  Strategies to meet parent engagement goals"]
[{"$nulls":3},"5.  Strategies to meet parent engagement goals"]
[{"$nulls":3},"5.  Strategies to meet parent engagement goals"]
[{"$nulls":3},"5.  Strategies to meet parent engagement goals"]
[{"$nulls":3},"LCFF Intervention Supports"]
[{"$nulls":3},"LCFF Intervention Supports"]
[{"$nulls":3},"LCFF Intervention Supports"]
[{"$nulls":3},"LCFF Intervention Supports"]
[{"$nulls":3},"LCFF Intervention Supports"]
[{"$nulls":3},"LCFF Intervention Supports"]
[{"$nulls":3},"LCFF Intervention Supports"]
[{"$nulls":3},"LCFF Intervention Supports"]
[{"$nulls":3},"1.  Strategies to meet ELA/Math/ELD goals (Maximizing Instructional Time)"]
[{"$nulls":3},"1.  Strategies to meet ELA/Math/ELD goals (Maximizing Instructional Time)"]
[{"$nulls":3},"1.  Strategies to meet ELA/Math/ELD goals (Maximizing Instructional Time)"]
[{"$nulls":3},"2.  Strategies to meet ELA/Math/ELD goals (Closing the Gap)"]
[{"$nulls":3},"4.  Strategies to meet graduation/promotion rates (Social/Emotional Supports)"]
[{"$nulls":3},"5.  Strategies to meet parent engagement goals"]
[{"$nulls":3},"5.  Strategies to meet parent engagement goals"]
[{"$nulls":3},"5.  Strategies to meet parent engagement goals"]
[{"$nulls":3},"LCFF Intervention Supports"]
[{"$nulls":3},"LCFF Intervention Supports"]
[{"$nulls":3},"LCFF Intervention Supports"]
[{"$nulls":3},"LCFF Intervention Supports"]
[{"$nulls":3},"1.  Strategies to meet ELA/Math/ELD goals (Maximizing Instructional Time)"]
[{"$nulls":3},"1.  Strategies to meet ELA/Math/ELD goals (Maximizing Instructional Time)"]
[{"$nulls":3},"2.  Strategies to meet ELA/Math/ELD goals (Closing the Gap)"]
[{"$nulls":3},"2.  Strategies to meet ELA/Math/ELD goals (Closing the Gap)"]
[{"$nulls":3},"2.  Strategies to meet ELA/Math/ELD goals (Closing the Gap)"]
[{"$nulls":3},"3.  Strategies to meet ELA/Math/ELD goals (Professional Development)"]
[{"$nulls":3},"3.  Strategies to meet ELA/Math/ELD goals (Professional Development)"]
[{"$nulls":3},"4.  Strategies to meet graduation/promotion rates (Social/Emotional Supports)"]
[{"$nulls":3},"4.  Strategies to meet graduation/promotion rates (Social/Emotional Supports)"]
[{"$nulls":3},"4.  Strategies to meet graduation/promotion rates (Social/Emotional Supports)"]
[{"$nulls":3},"5.  Strategies to meet parent engagement goals"]
[{"$nulls":3},"5.  Strategies to meet parent engagement goals"]
[{"$nulls":3},"5.  Strategies to meet parent engagement goals"]
[{"$nulls":3},"LCFF Intervention Supports"]
[{"$nulls":3},"LCFF Intervention Supports"]
[{"$nulls":3},"LCFF Intervention Supports"]
[{"$nulls":3},"LCFF Intervention Supports"]
[{"$nulls":3},"LCFF Intervention Supports"]
[{"$nulls":3},"LCFF Intervention Supports"]
[{"$nulls":3},"LCFF Intervention Supports"]
[{"$nulls":3},"LCFF Intervention Supports"]
[{"$nulls":3},"LCFF Intervention Supports"]
[{"$nulls":3},"LCFF Intervention Supports"]
[{"$nulls":3},"LCFF Intervention Supports"]
[{"$nulls":3},"LCFF Intervention Supports"]
[{"$nulls":3},"LCFF Intervention Supports"]
[{"$nulls":3},"LCFF Intervention Supports"]
[{"$nulls":3},"LCFF Intervention Supports"]
[{"$nulls":3},"LCFF Intervention Supports"]
[{"$nulls":3},"LCFF Intervention Supports"]
[{"$nulls":3},"LCFF Intervention Supports"]
[{"$nulls":3},"LCFF Intervention Supports"]
[{"$nulls":3},"1.  Strategies to meet ELA/Math/ELD goals (Maximizing Instructional Time)"]
[{"$nulls":3},"1.  Strategies to meet ELA/Math/ELD goals (Maximizing Instructional Time)"]
[{"$nulls":3},"2.  Strategies to meet ELA/Math/ELD goals (Closing the Gap)"]
[{"$nulls":3},"2.  Strategies to meet ELA/Math/ELD goals (Closing the Gap)"]
[{"$nulls":3},"2.  Strategies to meet ELA/Math/ELD goals (Closing the Gap)"]
[{"$nulls":3},"2.  Strategies to meet ELA/Math/ELD goals (Closing the Gap)"]
[{"$nulls":3},"2.  Strategies to meet ELA/Math/ELD goals (Closing the Gap)"]
[{"$nulls":3},"2.  Strategies to meet ELA/Math/ELD goals (Closing the Gap)"]
[{"$nulls":3},"3.  Strategies to meet ELA/Math/ELD goals (Professional Development)"]
[{"$nulls":3},"3.  Strategies to meet ELA/Math/ELD goals (Professional Development)"]
[{"$nulls":3},"3.  Strategies to meet ELA/Math/ELD goals (Professional Development)"]
[{"$nulls":3},"3.  Strategies to meet ELA/Math/ELD goals (Professional Development)"]
[{"$nulls":3},"3.  Strategies to meet ELA/Math/ELD goals (Professional Development)"]
[{"$nulls":3},"5.  Strategies to meet parent engagement goals"]
[{"$nulls":3},"5.  Strategies to meet parent engagement goals"]
[{"$nulls":3},"5.  Strategies to meet parent engagement goals"]
[{"$nulls":3},"5.  Strategies to meet parent engagement goals"]
[{"$nulls":3},"5.  Strategies to meet parent engagement goals"]
[{"$nulls":3},"5.  Strategies to meet parent engagement goals"]
[{"$nulls":3},"LCFF Intervention Supports"]
[{"$nulls":3},"LCFF Intervention Supports"]
[{"$nulls":3},"1.  Strategies to meet ELA/Math/ELD goals (Maximizing Instructional Time)"]
[{"$nulls":3},"2.  Strategies to meet ELA/Math/ELD goals (Closing the Gap)"]
[{"$nulls":3},"3.  Strategies to meet ELA/Math/ELD goals (Professional Development)"]
[{"$nulls":3},"3.  Strategies to meet ELA/Math/ELD goals (Professional Development)"]
[{"$nulls":3},"4.  Strategies to meet graduation/promotion rates (Social/Emotional Supports)"]
[{"$nulls":3},"5.  Strategies to meet parent engagement goals"]
[{"$nulls":3},"5.  Strategies to meet parent engagement goals"]
[{"$nulls":3},"5.  Strategies to meet parent engagement goals"]
[{"$nulls":3},"5.  Strategies to meet parent engagement goals"]
[{"$nulls":3},"LCFF Intervention Supports"]
[{"$nulls":3},"LCFF Intervention Supports"]
[{"$nulls":3},"LCFF Intervention Supports"]
[{"$nulls":3},"LCFF Intervention Supports"]
[{"$nulls":3},"LCFF Intervention Supports"]
[{"$nulls":3},"1.  Strategies to meet ELA/Math/ELD goals (Maximizing Instructional Time)"]
[{"$nulls":3},"1.  Strategies to meet ELA/Math/ELD goals (Maximizing Instructional Time)"]
[{"$nulls":3},"1.  Strategies to meet ELA/Math/ELD goals (Maximizing Instructional Time)"]
[{"$nulls":3},"1.  Strategies to meet ELA/Math/ELD goals (Maximizing Instructional Time)"]
[{"$nulls":3},"1.  Strategies to meet ELA/Math/ELD goals (Maximizing Instructional Time)"]
[{"$nulls":3},"1.  Strategies to meet ELA/Math/ELD goals (Maximizing Instructional Time)"]
[{"$nulls":3},"1.  Strategies to meet ELA/Math/ELD goals (Maximizing Instructional Time)"]
[{"$nulls":3},"1.  Strategies to meet ELA/Math/ELD goals (Maximizing Instructional Time)"]
[{"$nulls":3},"1.  Strategies to meet ELA/Math/ELD goals (Maximizing Instructional Time)"]
[{"$nulls":3},"1.  Strategies to meet ELA/Math/ELD goals (Maximizing Instructional Time)"]
[{"$nulls":3},"1.  Strategies to meet ELA/Math/ELD goals (Maximizing Instructional Time)"]
[{"$nulls":3},"3.  Strategies to meet ELA/Math/ELD goals (Professional Development)"]
[{"$nulls":3},"4.  Strategies to meet graduation/promotion rates (Social/Emotional Supports)"]
[{"$nulls":3},"5.  Strategies to meet parent engagement goals"]
[{"$nulls":3},"5.  Strategies to meet parent engagement goals"]
[{"$nulls":3},"5.  Strategies to meet parent engagement goals"]
[{"$nulls":3},"1.  Strategies to meet ELA/Math/ELD goals (Maximizing Instructional Time)"]
[{"$nulls":3},"1.  Strategies to meet ELA/Math/ELD goals (Maximizing Instructional Time)"]
[{"$nulls":3},"2.  Strategies to meet ELA/Math/ELD goals (Closing the Gap)"]
[{"$nulls":3},"3.  Strategies to meet ELA/Math/ELD goals (Professional Development)"]
[{"$nulls":3},"5.  Strategies to meet parent engagement goals"]
[{"$nulls":3},"5.  Strategies to meet parent engagement goals"]
[{"$nulls":3},"LCFF Intervention Supports"]
[{"$nulls":3},"LCFF Intervention Supports"]
[{"$nulls":3},"LCFF Intervention Supports"]
[{"$nulls":3},"1.  Strategies to meet ELA/Math/ELD goals (Maximizing Instructional Time)"]
[{"$nulls":3},"1.  Strategies to meet ELA/Math/ELD goals (Maximizing Instructional Time)"]
[{"$nulls":3},"2.  Strategies to meet ELA/Math/ELD goals (Closing the Gap)"]
[{"$nulls":3},"3.  Strategies to meet ELA/Math/ELD goals (Professional Development)"]
[{"$nulls":3},"3.  Strategies to meet ELA/Math/ELD goals (Professional Development)"]
[{"$nulls":3},"3.  Strategies to meet ELA/Math/ELD goals (Professional Development)"]
[{"$nulls":3},"4.  Strategies to meet graduation/promotion rates (Social/Emotional Supports)"]
[{"$nulls":3},"4.  Strategies to meet graduation/promotion rates (Social/Emotional Supports)"]
[{"$nulls":3},"5.  Strategies to meet parent engagement goals"]
[{"$nulls":3},"5.  Strategies to meet parent engagement goals"]
[{"$nulls":3},"LCFF Intervention Supports"]
[{"$nulls":3},"LCFF Intervention Supports"]
[{"$nulls":3},"LCFF Intervention Supports"]
[{"$nulls":3},"LCFF Intervention Supports"]
[{"$nulls":3},"LCFF Intervention Supports"]
[{"$nulls":3},"LCFF Intervention Supports"]
[{"$nulls":3},"LCFF Intervention Supports"]
[{"$nulls":3},"LCFF Intervention Supports"]
[{"$nulls":3},"LCFF Intervention Supports"]
[{"$nulls":3},"LCFF Intervention Supports"]
[{"$nulls":3},"1.  Strategies to meet ELA/Math/ELD goals (Maximizing Instructional Time)"]
[{"$nulls":3},"1.  Strategies to meet ELA/Math/ELD goals (Maximizing Instructional Time)"]
[{"$nulls":3},"1.  Strategies to meet ELA/Math/ELD goals (Maximizing Instructional Time)"]
[{"$nulls":3},"1.  Strategies to meet ELA/Math/ELD goals (Maximizing Instructional Time)"]
[{"$nulls":3},"1.  Strategies to meet ELA/Math/ELD goals (Maximizing Instructional Time)"]
[{"$nulls":3},"1.  Strategies to meet ELA/Math/ELD goals (Maximizing Instructional Time)"]
[{"$nulls":3},"2.  Strategies to meet ELA/Math/ELD goals (Closing the Gap)"]
[{"$nulls":3},"2.  Strategies to meet ELA/Math/ELD goals (Closing the Gap)"]
[{"$nulls":3},"2.  Strategies to meet ELA/Math/ELD goals (Closing the Gap)"]
[{"$nulls":3},"2.  Strategies to meet ELA/Math/ELD goals (Closing the Gap)"]
[{"$nulls":3},"2.  Strategies to meet ELA/Math/ELD goals (Closing the Gap)"]
[{"$nulls":3},"3.  Strategies to meet ELA/Math/ELD goals (Professional Development)"]
[{"$nulls":3},"3.  Strategies to meet ELA/Math/ELD goals (Professional Development)"]
[{"$nulls":3},"3.  Strategies to meet ELA/Math/ELD goals (Professional Development)"]
[{"$nulls":3},"4.  Strategies to meet graduation/promotion rates (Social/Emotional Supports)"]
[{"$nulls":3},"4.  Strategies to meet graduation/promotion rates (Social/Emotional Supports)"]
[{"$nulls":3},"4.  Strategies to meet graduation/promotion rates (Social/Emotional Supports)"]
[{"$nulls":3},"5.  Strategies to meet parent engagement goals"]
[{"$nulls":3},"5.  Strategies to meet parent engagement goals"]
[{"$nulls":3},"5.  Strategies to meet parent engagement goals"]
[{"$nulls":3},"LCFF Intervention Supports"]
[{"$nulls":3},"LCFF Intervention Supports"]
[{"$nulls":3},"LCFF Intervention Supports"]
[{"$nulls":3},"LCFF Intervention Supports"]
[{"$nulls":3},"LCFF Intervention Supports"]
[{"$nulls":3},"LCFF Intervention Supports"]
[{"$nulls":3},"1.  Strategies to meet ELA/Math/ELD goals (Maximizing Instructional Time)"]
[{"$nulls":3},"1.  Strategies to meet ELA/Math/ELD goals (Maximizing Instructional Time)"]
[{"$nulls":3},"1.  Strategies to meet ELA/Math/ELD goals (Maximizing Instructional Time)"]
[{"$nulls":3},"3.  Strategies to meet ELA/Math/ELD goals (Professional Development)"]
[{"$nulls":3},"3.  Strategies to meet ELA/Math/ELD goals (Professional Development)"]
[{"$nulls":3},"3.  Strategies to meet ELA/Math/ELD goals (Professional Development)"]
[{"$nulls":3},"5.  Strategies to meet parent engagement goals"]
[{"$nulls":3},"5.  Strategies to meet parent engagement goals"]
[{"$nulls":3},"LCFF Intervention Supports"]
[{"$nulls":3},"LCFF Intervention Supports"]
[{"$nulls":3},"LCFF Intervention Supports"]
[{"$nulls":3},"LCFF Intervention Supports"]
[{"$nulls":3},"LCFF Intervention Supports"]
[{"$nulls":3},"LCFF Intervention Supports"]
[{"$nulls":3},"1.  Strategies to meet ELA/Math/ELD goals (Maximizing Instructional Time)"]
[{"$nulls":3},"1.  Strategies to meet ELA/Math/ELD goals (Maximizing Instructional Time)"]
[{"$nulls":3},"2.  Strategies to meet ELA/Math/ELD goals (Closing the Gap)"]
[{"$nulls":3},"2.  Strategies to meet ELA/Math/ELD goals (Closing the Gap)"]
[{"$nulls":3},"2.  Strategies to meet ELA/Math/ELD goals (Closing the Gap)"]
[{"$nulls":3},"2.  Strategies to meet ELA/Math/ELD goals (Closing the Gap)"]
[{"$nulls":3},"2.  Strategies to meet ELA/Math/ELD goals (Closing the Gap)"]
[{"$nulls":3},"2.  Strategies to meet ELA/Math/ELD goals (Closing the Gap)"]
[{"$nulls":3},"3.  Strategies to meet ELA/Math/ELD goals (Professional Development)"]
[{"$nulls":3},"4.  Strategies to meet graduation/promotion rates (Social/Emotional Supports)"]
[{"$nulls":3},"4.  Strategies to meet graduation/promotion rates (Social/Emotional Supports)"]
[{"$nulls":3},"5.  Strategies to meet parent engagement goals"]
[{"$nulls":3},"5.  Strategies to meet parent engagement goals"]
[{"$nulls":3},"LCFF Intervention Supports"]
[{"$nulls":3},"LCFF Intervention Supports"]
[{"$nulls":3},"LCFF Intervention Supports"]
[{"$nulls":3},"LCFF Intervention Supports"]
[{"$nulls":3},"LCFF Intervention Supports"]
[{"$nulls":3},"LCFF Intervention Supports"]
[{"$nulls":3},"1.  Strategies to meet ELA/Math/ELD goals (Maximizing Instructional Time)"]
[{"$nulls":3},"1.  Strategies to meet ELA/Math/ELD goals (Maximizing Instructional Time)"]
[{"$nulls":3},"2.  Strategies to meet ELA/Math/ELD goals (Closing the Gap)"]
[{"$nulls":3},"2.  Strategies to meet ELA/Math/ELD goals (Closing the Gap)"]
[{"$nulls":3},"2.  Strategies to meet ELA/Math/ELD goals (Closing the Gap)"]
[{"$nulls":3},"2.  Strategies to meet ELA/Math/ELD goals (Closing the Gap)"]
[{"$nulls":3},"2.  Strategies to meet ELA/Math/ELD goals (Closing the Gap)"]
[{"$nulls":3},"2.  Strategies to meet ELA/Math/ELD goals (Closing the Gap)"]
[{"$nulls":3},"2.  Strategies to meet ELA/Math/ELD goals (Closing the Gap)"]
[{"$nulls":3},"2.  Strategies to meet ELA/Math/ELD goals (Closing the Gap)"]
[{"$nulls":3},"3.  Strategies to meet ELA/Math/ELD goals (Professional Development)"]
[{"$nulls":3},"3.  Strategies to meet ELA/Math/ELD goals (Professional Development)"]
[{"$nulls":3},"3.  Strategies to meet ELA/Math/ELD goals (Professional Development)"]
[{"$nulls":3},"3.  Strategies to meet ELA/Math/ELD goals (Professional Development)"]
[{"$nulls":3},"4.  Strategies to meet graduation/promotion rates (Social/Emotional Supports)"]
[{"$nulls":3},"5.  Strategies to meet parent engagement goals"]
[{"$nulls":3},"5.  Strategies to meet parent engagement goals"]
[{"$nulls":3},"5.  Strategies to meet parent engagement goals"]
[{"$nulls":3},"5.  Strategies to meet parent engagement goals"]
[{"$nulls":3},"LCFF Intervention Supports"]
[{"$nulls":3},"LCFF Intervention Supports"]
[{"$nulls":3},"LCFF Intervention Supports"]
[{"$nulls":3},"LCFF Intervention Supports"]
[{"$nulls":3},"1.  Strategies to meet ELA/Math/ELD goals (Maximizing Instructional Time)"]
[{"$nulls":3},"2.  Strategies to meet ELA/Math/ELD goals (Closing the Gap)"]
[{"$nulls":3},"3.  Strategies to meet ELA/Math/ELD goals (Professional Development)"]
[{"$nulls":3},"5.  Strategies to meet parent engagement goals"]
[{"$nulls":3},"5.  Strategies to meet parent engagement goals"]
[{"$nulls":3},"5.  Strategies to meet parent engagement goals"]
[{"$nulls":3},"5.  Strategies to meet parent engagement goals"]
[{"$nulls":3},"5.  Strategies to meet parent engagement goals"]
[{"$nulls":3},"LCFF Intervention Supports"]
[{"$nulls":3},"LCFF Intervention Supports"]
[{"$nulls":3},"LCFF Intervention Supports"]
[{"$nulls":3},"LCFF Intervention Supports"]
[{"$nulls":3},"LCFF Intervention Supports"]
[{"$nulls":3},"LCFF Intervention Supports"]
[{"$nulls":3},"LCFF Intervention Supports"]
[{"$nulls":3},"LCFF Intervention Supports"]
[{"$nulls":3},"LCFF Intervention Supports"]
[{"$nulls":3},"1.  Strategies to meet ELA/Math/ELD goals (Maximizing Instructional Time)"]
[{"$nulls":3},"1.  Strategies to meet ELA/Math/ELD goals (Maximizing Instructional Time)"]
[{"$nulls":3},"1.  Strategies to meet ELA/Math/ELD goals (Maximizing Instructional Time)"]
[{"$nulls":3},"2.  Strategies to meet ELA/Math/ELD goals (Closing the Gap)"]
[{"$nulls":3},"3.  Strategies to meet ELA/Math/ELD goals (Professional Development)"]
[{"$nulls":3},"3.  Strategies to meet ELA/Math/ELD goals (Professional Development)"]
[{"$nulls":3},"3.  Strategies to meet ELA/Math/ELD goals (Professional Development)"]
[{"$nulls":3},"3.  Strategies to meet ELA/Math/ELD goals (Professional Development)"]
[{"$nulls":3},"3.  Strategies to meet ELA/Math/ELD goals (Professional Development)"]
[{"$nulls":3},"4.  Strategies to meet graduation/promotion rates (Social/Emotional Supports)"]
[{"$nulls":3},"4.  Strategies to meet graduation/promotion rates (Social/Emotional Supports)"]
[{"$nulls":3},"5.  Strategies to meet parent engagement goals"]
[{"$nulls":3},"5.  Strategies to meet parent engagement goals"]
[{"$nulls":3},"5.  Strategies to meet parent engagement goals"]
[{"$nulls":3},"5.  Strategies to meet parent engagement goals"]
[{"$nulls":3},"5.  Strategies to meet parent engagement goals"]
[{"$nulls":3},"LCFF Intervention Supports"]
[{"$nulls":3},"LCFF Intervention Supports"]
[{"$nulls":3},"LCFF Intervention Supports"]
[{"$nulls":3},"LCFF Intervention Supports"]
[{"$nulls":3},"LCFF Intervention Supports"]
[{"$nulls":3},"LCFF Intervention Supports"]
[{"$nulls":3},"LCFF Intervention Supports"]
[{"$nulls":3},"LCFF Intervention Supports"]
[{"$nulls":3},"LCFF Intervention Supports"]
[{"$nulls":3},"LCFF Intervention Supports"]
[{"$nulls":3},"LCFF Intervention Supports"]
[{"$nulls":3},"1.  Strategies to meet ELA/Math/ELD goals (Maximizing Instructional Time)"]
[{"$nulls":3},"1.  Strategies to meet ELA/Math/ELD goals (Maximizing Instructional Time)"]
[{"$nulls":3},"2.  Strategies to meet ELA/Math/ELD goals (Closing the Gap)"]
[{"$nulls":3},"2.  Strategies to meet ELA/Math/ELD goals (Closing the Gap)"]
[{"$nulls":3},"3.  Strategies to meet ELA/Math/ELD goals (Professional Development)"]
[{"$nulls":3},"5.  Strategies to meet parent engagement goals"]
[{"$nulls":3},"5.  Strategies to meet parent engagement goals"]
[{"$nulls":3},"LCFF Intervention Supports"]
[{"$nulls":3},"LCFF Intervention Supports"]
[{"$nulls":3},"LCFF Intervention Supports"]
[{"$nulls":3},"1.  Strategies to meet ELA/Math/ELD goals (Maximizing Instructional Time)"]
[{"$nulls":3},"1.  Strategies to meet ELA/Math/ELD goals (Maximizing Instructional Time)"]
[{"$nulls":3},"1.  Strategies to meet ELA/Math/ELD goals (Maximizing Instructional Time)"]
[{"$nulls":3},"2.  Strategies to meet ELA/Math/ELD goals (Closing the Gap)"]
[{"$nulls":3},"2.  Strategies to meet ELA/Math/ELD goals (Closing the Gap)"]
[{"$nulls":3},"2.  Strategies to meet ELA/Math/ELD goals (Closing the Gap)"]
[{"$nulls":3},"2.  Strategies to meet ELA/Math/ELD goals (Closing the Gap)"]
[{"$nulls":3},"3.  Strategies to meet ELA/Math/ELD goals (Professional Development)"]
[{"$nulls":3},"4.  Strategies to meet graduation/promotion rates (Social/Emotional Supports)"]
[{"$nulls":3},"5.  Strategies to meet parent engagement goals"]
[{"$nulls":3},"5.  Strategies to meet parent engagement goals"]
[{"$nulls":3},"5.  Strategies to meet parent engagement goals"]
[{"$nulls":3},"5.  Strategies to meet parent engagement goals"]
[{"$nulls":3},"LCFF Intervention Supports"]
[{"$nulls":3},"LCFF Intervention Supports"]
[{"$nulls":3},"LCFF Intervention Supports"]
[{"$nulls":3},"LCFF Intervention Supports"]
[{"$nulls":3},"LCFF Intervention Supports"]
[{"$nulls":3},"1.  Strategies to meet ELA/Math/ELD goals (Maximizing Instructional Time)"]
[{"$nulls":3},"1.  Strategies to meet ELA/Math/ELD goals (Maximizing Instructional Time)"]
[{"$nulls":3},"2.  Strategies to meet ELA/Math/ELD goals (Closing the Gap)"]
[{"$nulls":3},"2.  Strategies to meet ELA/Math/ELD goals (Closing the Gap)"]
[{"$nulls":3},"2.  Strategies to meet ELA/Math/ELD goals (Closing the Gap)"]
[{"$nulls":3},"3.  Strategies to meet ELA/Math/ELD goals (Professional Development)"]
[{"$nulls":3},"3.  Strategies to meet ELA/Math/ELD goals (Professional Development)"]
[{"$nulls":3},"4.  Strategies to meet graduation/promotion rates (Social/Emotional Supports)"]
[{"$nulls":3},"5.  Strategies to meet parent engagement goals"]
[{"$nulls":3},"5.  Strategies to meet parent engagement goals"]
[{"$nulls":3},"LCFF Intervention Supports"]
[{"$nulls":3},"LCFF Intervention Supports"]
[{"$nulls":3},"LCFF Intervention Supports"]
[{"$nulls":3},"LCFF Intervention Supports"]
[{"$nulls":3},"LCFF Intervention Supports"]
[{"$nulls":3},"LCFF Intervention Supports"]
[{"$nulls":3},"LCFF Intervention Supports"]
[{"$nulls":3},"LCFF Intervention Supports"]
[{"$nulls":3},"LCFF Intervention Supports"]
[{"$nulls":3},"1.  Strategies to meet ELA/Math/ELD goals (Maximizing Instructional Time)"]
[{"$nulls":3},"1.  Strategies to meet ELA/Math/ELD goals (Maximizing Instructional Time)"]
[{"$nulls":3},"2.  Strategies to meet ELA/Math/ELD goals (Closing the Gap)"]
[{"$nulls":3},"2.  Strategies to meet ELA/Math/ELD goals (Closing the Gap)"]
[{"$nulls":3},"2.  Strategies to meet ELA/Math/ELD goals (Closing the Gap)"]
[{"$nulls":3},"3.  Strategies to meet ELA/Math/ELD goals (Professional Development)"]
[{"$nulls":3},"5.  Strategies to meet parent engagement goals"]
[{"$nulls":3},"5.  Strategies to meet parent engagement goals"]
[{"$nulls":3},"5.  Strategies to meet parent engagement goals"]
[{"$nulls":3},"LCFF Intervention Supports"]
[{"$nulls":3},"LCFF Intervention Supports"]
[{"$nulls":3},"LCFF Intervention Supports"]
[{"$nulls":3},"LCFF Intervention Supports"]
[{"$nulls":3},"LCFF Intervention Supports"]
[{"$nulls":3},"1.  Strategies to meet ELA/Math/ELD goals (Maximizing Instructional Time)"]
[{"$nulls":3},"1.  Strategies to meet ELA/Math/ELD goals (Maximizing Instructional Time)"]
[{"$nulls":3},"3.  Strategies to meet ELA/Math/ELD goals (Professional Development)"]
[{"$nulls":3},"4.  Strategies to meet graduation/promotion rates (Social/Emotional Supports)"]
[{"$nulls":3},"5.  Strategies to meet parent engagement goals"]
[{"$nulls":3},"5.  Strategies to meet parent engagement goals"]
[{"$nulls":3},"LCFF Intervention Supports"]
[{"$nulls":3},"LCFF Intervention Supports"]
[{"$nulls":3},"1.  Strategies to meet ELA/Math/ELD goals (Maximizing Instructional Time)"]
[{"$nulls":3},"1.  Strategies to meet ELA/Math/ELD goals (Maximizing Instructional Time)"]
[{"$nulls":3},"1.  Strategies to meet ELA/Math/ELD goals (Maximizing Instructional Time)"]
[{"$nulls":3},"1.  Strategies to meet ELA/Math/ELD goals (Maximizing Instructional Time)"]
[{"$nulls":3},"5.  Strategies to meet parent engagement goals"]
[{"$nulls":3},"5.  Strategies to meet parent engagement goals"]
[{"$nulls":3},"LCFF Intervention Supports"]
[{"$nulls":3},"LCFF Intervention Supports"]
[{"$nulls":3},"LCFF Intervention Supports"]
[{"$nulls":3},"LCFF Intervention Supports"]
[{"$nulls":3},"1.  Strategies to meet ELA/Math/ELD goals (Maximizing Instructional Time)"]
[{"$nulls":3},"1.  Strategies to meet ELA/Math/ELD goals (Maximizing Instructional Time)"]
[{"$nulls":3},"2.  Strategies to meet ELA/Math/ELD goals (Closing the Gap)"]
[{"$nulls":3},"2.  Strategies to meet ELA/Math/ELD goals (Closing the Gap)"]
[{"$nulls":3},"2.  Strategies to meet ELA/Math/ELD goals (Closing the Gap)"]
[{"$nulls":3},"2.  Strategies to meet ELA/Math/ELD goals (Closing the Gap)"]
[{"$nulls":3},"2.  Strategies to meet ELA/Math/ELD goals (Closing the Gap)"]
[{"$nulls":3},"2.  Strategies to meet ELA/Math/ELD goals (Closing the Gap)"]
[{"$nulls":3},"2.  Strategies to meet ELA/Math/ELD goals (Closing the Gap)"]
[{"$nulls":3},"2.  Strategies to meet ELA/Math/ELD goals (Closing the Gap)"]
[{"$nulls":3},"3.  Strategies to meet ELA/Math/ELD goals (Professional Development)"]
[{"$nulls":3},"3.  Strategies to meet ELA/Math/ELD goals (Professional Development)"]
[{"$nulls":3},"3.  Strategies to meet ELA/Math/ELD goals (Professional Development)"]
[{"$nulls":3},"4.  Strategies to meet graduation/promotion rates (Social/Emotional Supports)"]
[{"$nulls":3},"4.  Strategies to meet graduation/promotion rates (Social/Emotional Supports)"]
[{"$nulls":3},"4.  Strategies to meet graduation/promotion rates (Social/Emotional Supports)"]
[{"$nulls":3},"4.  Strategies to meet graduation/promotion rates (Social/Emotional Supports)"]
[{"$nulls":3},"5.  Strategies to meet parent engagement goals"]
[{"$nulls":3},"5.  Strategies to meet parent engagement goals"]
[{"$nulls":3},"5.  Strategies to meet parent engagement goals"]
[{"$nulls":3},"5.  Strategies to meet parent engagement goals"]
[{"$nulls":3},"LCFF Intervention Supports"]
[{"$nulls":3},"LCFF Intervention Supports"]
[{"$nulls":3},"LCFF Intervention Supports"]
[{"$nulls":3},"LCFF Intervention Supports"]
[{"$nulls":3},"LCFF Intervention Supports"]
[{"$nulls":3},"LCFF Intervention Supports"]
[{"$nulls":3},"LCFF Intervention Supports"]
[{"$nulls":3},"LCFF Intervention Supports"]
[{"$nulls":3},"LCFF Intervention Supports"]
[{"$nulls":3},"1.  Strategies to meet ELA/Math/ELD goals (Maximizing Instructional Time)"]
[{"$nulls":3},"1.  Strategies to meet ELA/Math/ELD goals (Maximizing Instructional Time)"]
[{"$nulls":3},"1.  Strategies to meet ELA/Math/ELD goals (Maximizing Instructional Time)"]
[{"$nulls":3},"1.  Strategies to meet ELA/Math/ELD goals (Maximizing Instructional Time)"]
[{"$nulls":3},"2.  Strategies to meet ELA/Math/ELD goals (Closing the Gap)"]
[{"$nulls":3},"2.  Strategies to meet ELA/Math/ELD goals (Closing the Gap)"]
[{"$nulls":3},"2.  Strategies to meet ELA/Math/ELD goals (Closing the Gap)"]
[{"$nulls":3},"2.  Strategies to meet ELA/Math/ELD goals (Closing the Gap)"]
[{"$nulls":3},"3.  Strategies to meet ELA/Math/ELD goals (Professional Development)"]
[{"$nulls":3},"3.  Strategies to meet ELA/Math/ELD goals (Professional Development)"]
[{"$nulls":3},"4.  Strategies to meet graduation/promotion rates (Social/Emotional Supports)"]
[{"$nulls":3},"4.  Strategies to meet graduation/promotion rates (Social/Emotional Supports)"]
[{"$nulls":3},"4.  Strategies to meet graduation/promotion rates (Social/Emotional Supports)"]
[{"$nulls":3},"4.  Strategies to meet graduation/promotion rates (Social/Emotional Supports)"]
[{"$nulls":3},"5.  Strategies to meet parent engagement goals"]
[{"$nulls":3},"5.  Strategies to meet parent engagement goals"]
[{"$nulls":3},"LCFF Intervention Supports"]
[{"$nulls":3},"LCFF Intervention Supports"]
[{"$nulls":3},"LCFF Intervention Supports"]
[{"$nulls":3},"LCFF Intervention Supports"]
[{"$nulls":3},"LCFF Intervention Supports"]
[{"$nulls":3},"LCFF Intervention Supports"]
[{"$nulls":3},"LCFF Intervention Supports"]
[{"$nulls":3},"LCFF Intervention Supports"]
[{"$nulls":3},"LCFF Intervention Supports"]
[{"$nulls":3},"LCFF Intervention Supports"]
[{"$nulls":3},"LCFF Intervention Supports"]
[{"$nulls":3},"LCFF Intervention Supports"]
[{"$nulls":3},"LCFF Intervention Supports"]
[{"$nulls":3},"LCFF Intervention Supports"]
[{"$nulls":3},"LCFF Intervention Supports"]
[{"$nulls":3},"LCFF Intervention Supports"]
[{"$nulls":3},"LCFF Intervention Supports"]
[{"$nulls":3},"1.  Strategies to meet ELA/Math/ELD goals (Maximizing Instructional Time)"]
[{"$nulls":3},"1.  Strategies to meet ELA/Math/ELD goals (Maximizing Instructional Time)"]
[{"$nulls":3},"1.  Strategies to meet ELA/Math/ELD goals (Maximizing Instructional Time)"]
[{"$nulls":3},"1.  Strategies to meet ELA/Math/ELD goals (Maximizing Instructional Time)"]
[{"$nulls":3},"1.  Strategies to meet ELA/Math/ELD goals (Maximizing Instructional Time)"]
[{"$nulls":3},"2.  Strategies to meet ELA/Math/ELD goals (Closing the Gap)"]
[{"$nulls":3},"2.  Strategies to meet ELA/Math/ELD goals (Closing the Gap)"]
[{"$nulls":3},"2.  Strategies to meet ELA/Math/ELD goals (Closing the Gap)"]
[{"$nulls":3},"3.  Strategies to meet ELA/Math/ELD goals (Professional Development)"]
[{"$nulls":3},"4.  Strategies to meet graduation/promotion rates (Social/Emotional Supports)"]
[{"$nulls":3},"5.  Strategies to meet parent engagement goals"]
[{"$nulls":3},"5.  Strategies to meet parent engagement goals"]
[{"$nulls":3},"5.  Strategies to meet parent engagement goals"]
[{"$nulls":3},"5.  Strategies to meet parent engagement goals"]
[{"$nulls":3},"5.  Strategies to meet parent engagement goals"]
[{"$nulls":3},"5.  Strategies to meet parent engagement goals"]
[{"$nulls":3},"5.  Strategies to meet parent engagement goals"]
[{"$nulls":3},"LCFF Intervention Supports"]
[{"$nulls":3},"LCFF Intervention Supports"]
[{"$nulls":3},"LCFF Intervention Supports"]
[{"$nulls":3},"LCFF Intervention Supports"]
[{"$nulls":3},"LCFF Intervention Supports"]
[{"$nulls":3},"LCFF Intervention Supports"]
[{"$nulls":3},"LCFF Intervention Supports"]
[{"$nulls":3},"LCFF Intervention Supports"]
[{"$nulls":3},"LCFF Intervention Supports"]
[{"$nulls":3},"LCFF Intervention Supports"]
[{"$nulls":3},"LCFF Intervention Supports"]
[{"$nulls":3},"1.  Strategies to meet ELA/Math/ELD goals (Maximizing Instructional Time)"]
[{"$nulls":3},"2.  Strategies to meet ELA/Math/ELD goals (Closing the Gap)"]
[{"$nulls":3},"2.  Strategies to meet ELA/Math/ELD goals (Closing the Gap)"]
[{"$nulls":3},"2.  Strategies to meet ELA/Math/ELD goals (Closing the Gap)"]
[{"$nulls":3},"2.  Strategies to meet ELA/Math/ELD goals (Closing the Gap)"]
[{"$nulls":3},"2.  Strategies to meet ELA/Math/ELD goals (Closing the Gap)"]
[{"$nulls":3},"2.  Strategies to meet ELA/Math/ELD goals (Closing the Gap)"]
[{"$nulls":3},"3.  Strategies to meet ELA/Math/ELD goals (Professional Development)"]
[{"$nulls":3},"3.  Strategies to meet ELA/Math/ELD goals (Professional Development)"]
[{"$nulls":3},"3.  Strategies to meet ELA/Math/ELD goals (Professional Development)"]
[{"$nulls":3},"3.  Strategies to meet ELA/Math/ELD goals (Professional Development)"]
[{"$nulls":3},"3.  Strategies to meet ELA/Math/ELD goals (Professional Development)"]
[{"$nulls":3},"5.  Strategies to meet parent engagement goals"]
[{"$nulls":3},"5.  Strategies to meet parent engagement goals"]
[{"$nulls":3},"5.  Strategies to meet parent engagement goals"]
[{"$nulls":3},"LCFF Intervention Supports"]
[{"$nulls":3},"LCFF Intervention Supports"]
[{"$nulls":3},"LCFF Intervention Supports"]
[{"$nulls":3},"LCFF Intervention Supports"]
[{"$nulls":3},"LCFF Intervention Supports"]
[{"$nulls":3},"LCFF Intervention Supports"]
[{"$nulls":3},"LCFF Intervention Supports"]
[{"$nulls":3},"LCFF Intervention Supports"]
[{"$nulls":3},"LCFF Intervention Supports"]
[{"$nulls":3},"LCFF Intervention Supports"]
[{"$nulls":3},"1.  Strategies to meet ELA/Math/ELD goals (Maximizing Instructional Time)"]
[{"$nulls":3},"1.  Strategies to meet ELA/Math/ELD goals (Maximizing Instructional Time)"]
[{"$nulls":3},"2.  Strategies to meet ELA/Math/ELD goals (Closing the Gap)"]
[{"$nulls":3},"2.  Strategies to meet ELA/Math/ELD goals (Closing the Gap)"]
[{"$nulls":3},"3.  Strategies to meet ELA/Math/ELD goals (Professional Development)"]
[{"$nulls":3},"3.  Strategies to meet ELA/Math/ELD goals (Professional Development)"]
[{"$nulls":3},"5.  Strategies to meet parent engagement goals"]
[{"$nulls":3},"5.  Strategies to meet parent engagement goals"]
[{"$nulls":3},"5.  Strategies to meet parent engagement goals"]
[{"$nulls":3},"LCFF Intervention Supports"]
[{"$nulls":3},"LCFF Intervention Supports"]
[{"$nulls":3},"LCFF Intervention Supports"]
[{"$nulls":3},"LCFF Intervention Supports"]
[{"$nulls":3},"LCFF Intervention Supports"]
[{"$nulls":3},"LCFF Intervention Supports"]
[{"$nulls":3},"LCFF Intervention Supports"]
[{"$nulls":3},"1.  Strategies to meet ELA/Math/ELD goals (Maximizing Instructional Time)"]
[{"$nulls":3},"1.  Strategies to meet ELA/Math/ELD goals (Maximizing Instructional Time)"]
[{"$nulls":3},"3.  Strategies to meet ELA/Math/ELD goals (Professional Development)"]
[{"$nulls":3},"4.  Strategies to meet graduation/promotion rates (Social/Emotional Supports)"]
[{"$nulls":3},"4.  Strategies to meet graduation/promotion rates (Social/Emotional Supports)"]
[{"$nulls":3},"4.  Strategies to meet graduation/promotion rates (Social/Emotional Supports)"]
[{"$nulls":3},"5.  Strategies to meet parent engagement goals"]
[{"$nulls":3},"LCFF Intervention Supports"]
[{"$nulls":3},"LCFF Intervention Supports"]
[{"$nulls":3},"LCFF Intervention Supports"]
[{"$nulls":3},"1.  Strategies to meet ELA/Math/ELD goals (Maximizing Instructional Time)"]
[{"$nulls":3},"1.  Strategies to meet ELA/Math/ELD goals (Maximizing Instructional Time)"]
[{"$nulls":3},"2.  Strategies to meet ELA/Math/ELD goals (Closing the Gap)"]
[{"$nulls":3},"2.  Strategies to meet ELA/Math/ELD goals (Closing the Gap)"]
[{"$nulls":3},"2.  Strategies to meet ELA/Math/ELD goals (Closing the Gap)"]
[{"$nulls":3},"2.  Strategies to meet ELA/Math/ELD goals (Closing the Gap)"]
[{"$nulls":3},"2.  Strategies to meet ELA/Math/ELD goals (Closing the Gap)"]
[{"$nulls":3},"2.  Strategies to meet ELA/Math/ELD goals (Closing the Gap)"]
[{"$nulls":3},"5.  Strategies to meet parent engagement goals"]
[{"$nulls":3},"LCFF Intervention Supports"]
[{"$nulls":3},"LCFF Intervention Supports"]
[{"$nulls":3},"LCFF Intervention Supports"]
[{"$nulls":3},"LCFF Intervention Supports"]
[{"$nulls":3},"LCFF Intervention Supports"]
[{"$nulls":3},"LCFF Intervention Supports"]
[{"$nulls":3},"2.  Strategies to meet ELA/Math/ELD goals (Closing the Gap)"]
[{"$nulls":3},"2.  Strategies to meet ELA/Math/ELD goals (Closing the Gap)"]
[{"$nulls":3},"2.  Strategies to meet ELA/Math/ELD goals (Closing the Gap)"]
[{"$nulls":3},"2.  Strategies to meet ELA/Math/ELD goals (Closing the Gap)"]
[{"$nulls":3},"2.  Strategies to meet ELA/Math/ELD goals (Closing the Gap)"]
[{"$nulls":3},"3.  Strategies to meet ELA/Math/ELD goals (Professional Development)"]
[{"$nulls":3},"3.  Strategies to meet ELA/Math/ELD goals (Professional Development)"]
[{"$nulls":3},"3.  Strategies to meet ELA/Math/ELD goals (Professional Development)"]
[{"$nulls":3},"4.  Strategies to meet graduation/promotion rates (Social/Emotional Supports)"]
[{"$nulls":3},"4.  Strategies to meet graduation/promotion rates (Social/Emotional Supports)"]
[{"$nulls":3},"5.  Strategies to meet parent engagement goals"]
[{"$nulls":3},"5.  Strategies to meet parent engagement goals"]
[{"$nulls":3},"5.  Strategies to meet parent engagement goals"]
[{"$nulls":3},"LCFF Intervention Supports"]
[{"$nulls":3},"LCFF Intervention Supports"]
[{"$nulls":3},"LCFF Intervention Supports"]
[{"$nulls":3},"LCFF Intervention Supports"]
[{"$nulls":3},"LCFF Intervention Supports"]
[{"$nulls":3},"LCFF Intervention Supports"]
[{"$nulls":3},"LCFF Intervention Supports"]
[{"$nulls":3},"LCFF Intervention Supports"]
[{"$nulls":3},"LCFF Intervention Supports"]
[{"$nulls":3},"LCFF Intervention Supports"]
[{"$nulls":3},"LCFF Intervention Supports"]
[{"$nulls":3},"2.  Strategies to meet ELA/Math/ELD goals (Closing the Gap)"]
[{"$nulls":3},"2.  Strategies to meet ELA/Math/ELD goals (Closing the Gap)"]
[{"$nulls":3},"2.  Strategies to meet ELA/Math/ELD goals (Closing the Gap)"]
[{"$nulls":3},"2.  Strategies to meet ELA/Math/ELD goals (Closing the Gap)"]
[{"$nulls":3},"2.  Strategies to meet ELA/Math/ELD goals (Closing the Gap)"]
[{"$nulls":3},"2.  Strategies to meet ELA/Math/ELD goals (Closing the Gap)"]
[{"$nulls":3},"2.  Strategies to meet ELA/Math/ELD goals (Closing the Gap)"]
[{"$nulls":3},"2.  Strategies to meet ELA/Math/ELD goals (Closing the Gap)"]
[{"$nulls":3},"2.  Strategies to meet ELA/Math/ELD goals (Closing the Gap)"]
[{"$nulls":3},"2.  Strategies to meet ELA/Math/ELD goals (Closing the Gap)"]
[{"$nulls":3},"2.  Strategies to meet ELA/Math/ELD goals (Closing the Gap)"]
[{"$nulls":3},"2.  Strategies to meet ELA/Math/ELD goals (Closing the Gap)"]
[{"$nulls":3},"2.  Strategies to meet ELA/Math/ELD goals (Closing the Gap)"]
[{"$nulls":3},"2.  Strategies to meet ELA/Math/ELD goals (Closing the Gap)"]
[{"$nulls":3},"2.  Strategies to meet ELA/Math/ELD goals (Closing the Gap)"]
[{"$nulls":3},"2.  Strategies to meet ELA/Math/ELD goals (Closing the Gap)"]
[{"$nulls":3},"2.  Strategies to meet ELA/Math/ELD goals (Closing the Gap)"]
[{"$nulls":3},"2.  Strategies to meet ELA/Math/ELD goals (Closing the Gap)"]
[{"$nulls":3},"5.  Strategies to meet parent engagement goals"]
[{"$nulls":3},"5.  Strategies to meet parent engagement goals"]
[{"$nulls":3},"5.  Strategies to meet parent engagement goals"]
[{"$nulls":3},"LCFF Intervention Supports"]
[{"$nulls":3},"LCFF Intervention Supports"]
[{"$nulls":3},"LCFF Intervention Supports"]
[{"$nulls":3},"LCFF Intervention Supports"]
[{"$nulls":3},"LCFF Intervention Supports"]
[{"$nulls":3},"LCFF Intervention Supports"]
[{"$nulls":3},"1.  Strategies to meet ELA/Math/ELD goals (Maximizing Instructional Time)"]
[{"$nulls":3},"1.  Strategies to meet ELA/Math/ELD goals (Maximizing Instructional Time)"]
[{"$nulls":3},"2.  Strategies to meet ELA/Math/ELD goals (Closing the Gap)"]
[{"$nulls":3},"2.  Strategies to meet ELA/Math/ELD goals (Closing the Gap)"]
[{"$nulls":3},"2.  Strategies to meet ELA/Math/ELD goals (Closing the Gap)"]
[{"$nulls":3},"2.  Strategies to meet ELA/Math/ELD goals (Closing the Gap)"]
[{"$nulls":3},"2.  Strategies to meet ELA/Math/ELD goals (Closing the Gap)"]
[{"$nulls":3},"3.  Strategies to meet ELA/Math/ELD goals (Professional Development)"]
[{"$nulls":3},"3.  Strategies to meet ELA/Math/ELD goals (Professional Development)"]
[{"$nulls":3},"3.  Strategies to meet ELA/Math/ELD goals (Professional Development)"]
[{"$nulls":3},"3.  Strategies to meet ELA/Math/ELD goals (Professional Development)"]
[{"$nulls":3},"3.  Strategies to meet ELA/Math/ELD goals (Professional Development)"]
[{"$nulls":3},"3.  Strategies to meet ELA/Math/ELD goals (Professional Development)"]
[{"$nulls":3},"3.  Strategies to meet ELA/Math/ELD goals (Professional Development)"]
[{"$nulls":3},"3.  Strategies to meet ELA/Math/ELD goals (Professional Development)"]
[{"$nulls":3},"4.  Strategies to meet graduation/promotion rates (Social/Emotional Supports)"]
[{"$nulls":3},"5.  Strategies to meet parent engagement goals"]
[{"$nulls":3},"5.  Strategies to meet parent engagement goals"]
[{"$nulls":3},"5.  Strategies to meet parent engagement goals"]
[{"$nulls":3},"LCFF Intervention Supports"]
[{"$nulls":3},"LCFF Intervention Supports"]
[{"$nulls":3},"LCFF Intervention Supports"]
[{"$nulls":3},"LCFF Intervention Supports"]
[{"$nulls":3},"LCFF Intervention Supports"]
[{"$nulls":3},"LCFF Intervention Supports"]
[{"$nulls":3},"LCFF Intervention Supports"]
[{"$nulls":3},"LCFF Intervention Supports"]
[{"$nulls":3},"LCFF Intervention Supports"]
[{"$nulls":3},"LCFF Intervention Supports"]
[{"$nulls":3},"LCFF Intervention Supports"]
[{"$nulls":3},"1.  Strategies to meet ELA/Math/ELD goals (Maximizing Instructional Time)"]
[{"$nulls":3},"2.  Strategies to meet ELA/Math/ELD goals (Closing the Gap)"]
[{"$nulls":3},"5.  Strategies to meet parent engagement goals"]
[{"$nulls":3},"5.  Strategies to meet parent engagement goals"]
[{"$nulls":3},"5.  Strategies to meet parent engagement goals"]
[{"$nulls":3},"5.  Strategies to meet parent engagement goals"]
[{"$nulls":3},"LCFF Intervention Supports"]
[{"$nulls":3},"LCFF Intervention Supports"]
[{"$nulls":3},"LCFF Intervention Supports"]
[{"$nulls":3},"LCFF Intervention Supports"]
[{"$nulls":3},"LCFF Intervention Supports"]
[{"$nulls":3},"LCFF Intervention Supports"]
[{"$nulls":3},"LCFF Intervention Supports"]
[{"$nulls":3},"LCFF Intervention Supports"]
[{"$nulls":3},"LCFF Intervention Supports"]
[{"$nulls":3},"1.  Strategies to meet ELA/Math/ELD goals (Maximizing Instructional Time)"]
[{"$nulls":3},"1.  Strategies to meet ELA/Math/ELD goals (Maximizing Instructional Time)"]
[{"$nulls":3},"1.  Strategies to meet ELA/Math/ELD goals (Maximizing Instructional Time)"]
[{"$nulls":3},"1.  Strategies to meet ELA/Math/ELD goals (Maximizing Instructional Time)"]
[{"$nulls":3},"1.  Strategies to meet ELA/Math/ELD goals (Maximizing Instructional Time)"]
[{"$nulls":3},"1.  Strategies to meet ELA/Math/ELD goals (Maximizing Instructional Time)"]
[{"$nulls":3},"2.  Strategies to meet ELA/Math/ELD goals (Closing the Gap)"]
[{"$nulls":3},"2.  Strategies to meet ELA/Math/ELD goals (Closing the Gap)"]
[{"$nulls":3},"2.  Strategies to meet ELA/Math/ELD goals (Closing the Gap)"]
[{"$nulls":3},"2.  Strategies to meet ELA/Math/ELD goals (Closing the Gap)"]
[{"$nulls":3},"2.  Strategies to meet ELA/Math/ELD goals (Closing the Gap)"]
[{"$nulls":3},"2.  Strategies to meet ELA/Math/ELD goals (Closing the Gap)"]
[{"$nulls":3},"2.  Strategies to meet ELA/Math/ELD goals (Closing the Gap)"]
[{"$nulls":3},"2.  Strategies to meet ELA/Math/ELD goals (Closing the Gap)"]
[{"$nulls":3},"3.  Strategies to meet ELA/Math/ELD goals (Professional Development)"]
[{"$nulls":3},"3.  Strategies to meet ELA/Math/ELD goals (Professional Development)"]
[{"$nulls":3},"3.  Strategies to meet ELA/Math/ELD goals (Professional Development)"]
[{"$nulls":3},"3.  Strategies to meet ELA/Math/ELD goals (Professional Development)"]
[{"$nulls":3},"3.  Strategies to meet ELA/Math/ELD goals (Professional Development)"]
[{"$nulls":3},"3.  Strategies to meet ELA/Math/ELD goals (Professional Development)"]
[{"$nulls":3},"4.  Strategies to meet graduation/promotion rates (Social/Emotional Supports)"]
[{"$nulls":3},"4.  Strategies to meet graduation/promotion rates (Social/Emotional Supports)"]
[{"$nulls":3},"4.  Strategies to meet graduation/promotion rates (Social/Emotional Supports)"]
[{"$nulls":3},"4.  Strategies to meet graduation/promotion rates (Social/Emotional Supports)"]
[{"$nulls":3},"5.  Strategies to meet parent engagement goals"]
[{"$nulls":3},"5.  Strategies to meet parent engagement goals"]
[{"$nulls":3},"LCFF Intervention Supports"]
[{"$nulls":3},"LCFF Intervention Supports"]
[{"$nulls":3},"1.  Strategies to meet ELA/Math/ELD goals (Maximizing Instructional Time)"]
[{"$nulls":3},"3.  Strategies to meet ELA/Math/ELD goals (Professional Development)"]
[{"$nulls":3},"4.  Strategies to meet graduation/promotion rates (Social/Emotional Supports)"]
[{"$nulls":3},"1.  Strategies to meet ELA/Math/ELD goals (Maximizing Instructional Time)"]
[{"$nulls":3},"2.  Strategies to meet ELA/Math/ELD goals (Closing the Gap)"]
[{"$nulls":3},"3.  Strategies to meet ELA/Math/ELD goals (Professional Development)"]
[{"$nulls":3},"4.  Strategies to meet graduation/promotion rates (Social/Emotional Supports)"]
[{"$nulls":3},"4.  Strategies to meet graduation/promotion rates (Social/Emotional Supports)"]
[{"$nulls":3},"5.  Strategies to meet parent engagement goals"]
[{"$nulls":3},"5.  Strategies to meet parent engagement goals"]
[{"$nulls":3},"LCFF Intervention Supports"]
[{"$nulls":3},"LCFF Intervention Supports"]
[{"$nulls":3},"LCFF Intervention Supports"]
[{"$nulls":3},"LCFF Intervention Supports"]
[{"$nulls":3},"LCFF Intervention Supports"]
[{"$nulls":3},"1.  Strategies to meet ELA/Math/ELD goals (Maximizing Instructional Time)"]
[{"$nulls":3},"1.  Strategies to meet ELA/Math/ELD goals (Maximizing Instructional Time)"]
[{"$nulls":3},"2.  Strategies to meet ELA/Math/ELD goals (Closing the Gap)"]
[{"$nulls":3},"3.  Strategies to meet ELA/Math/ELD goals (Professional Development)"]
[{"$nulls":3},"3.  Strategies to meet ELA/Math/ELD goals (Professional Development)"]
[{"$nulls":3},"4.  Strategies to meet graduation/promotion rates (Social/Emotional Supports)"]
[{"$nulls":3},"5.  Strategies to meet parent engagement goals"]
[{"$nulls":3},"LCFF Intervention Supports"]
[{"$nulls":3},"LCFF Intervention Supports"]
[{"$nulls":3},"LCFF Intervention Supports"]
[{"$nulls":3},"LCFF Intervention Supports"]
[{"$nulls":3},"LCFF Intervention Supports"]
[{"$nulls":3},"LCFF Intervention Supports"]
[{"$nulls":3},"LCFF Intervention Supports"]
[{"$nulls":3},"LCFF Intervention Supports"]
[{"$nulls":3},"LCFF Intervention Supports"]
[{"$nulls":3},"LCFF Intervention Supports"]
[{"$nulls":3},"1.  Strategies to meet ELA/Math/ELD goals (Maximizing Instructional Time)"]
[{"$nulls":3},"1.  Strategies to meet ELA/Math/ELD goals (Maximizing Instructional Time)"]
[{"$nulls":3},"2.  Strategies to meet ELA/Math/ELD goals (Closing the Gap)"]
[{"$nulls":3},"3.  Strategies to meet ELA/Math/ELD goals (Professional Development)"]
[{"$nulls":3},"3.  Strategies to meet ELA/Math/ELD goals (Professional Development)"]
[{"$nulls":3},"3.  Strategies to meet ELA/Math/ELD goals (Professional Development)"]
[{"$nulls":3},"5.  Strategies to meet parent engagement goals"]
[{"$nulls":3},"5.  Strategies to meet parent engagement goals"]
[{"$nulls":3},"5.  Strategies to meet parent engagement goals"]
[{"$nulls":3},"LCFF Intervention Supports"]
[{"$nulls":3},"1.  Strategies to meet ELA/Math/ELD goals (Maximizing Instructional Time)"]
[{"$nulls":3},"1.  Strategies to meet ELA/Math/ELD goals (Maximizing Instructional Time)"]
[{"$nulls":3},"1.  Strategies to meet ELA/Math/ELD goals (Maximizing Instructional Time)"]
[{"$nulls":3},"1.  Strategies to meet ELA/Math/ELD goals (Maximizing Instructional Time)"]
[{"$nulls":3},"1.  Strategies to meet ELA/Math/ELD goals (Maximizing Instructional Time)"]
[{"$nulls":3},"1.  Strategies to meet ELA/Math/ELD goals (Maximizing Instructional Time)"]
[{"$nulls":3},"1.  Strategies to meet ELA/Math/ELD goals (Maximizing Instructional Time)"]
[{"$nulls":3},"1.  Strategies to meet ELA/Math/ELD goals (Maximizing Instructional Time)"]
[{"$nulls":3},"1.  Strategies to meet ELA/Math/ELD goals (Maximizing Instructional Time)"]
[{"$nulls":3},"1.  Strategies to meet ELA/Math/ELD goals (Maximizing Instructional Time)"]
[{"$nulls":3},"2.  Strategies to meet ELA/Math/ELD goals (Closing the Gap)"]
[{"$nulls":3},"2.  Strategies to meet ELA/Math/ELD goals (Closing the Gap)"]
[{"$nulls":3},"2.  Strategies to meet ELA/Math/ELD goals (Closing the Gap)"]
[{"$nulls":3},"2.  Strategies to meet ELA/Math/ELD goals (Closing the Gap)"]
[{"$nulls":3},"2.  Strategies to meet ELA/Math/ELD goals (Closing the Gap)"]
[{"$nulls":3},"2.  Strategies to meet ELA/Math/ELD goals (Closing the Gap)"]
[{"$nulls":3},"2.  Strategies to meet ELA/Math/ELD goals (Closing the Gap)"]
[{"$nulls":3},"2.  Strategies to meet ELA/Math/ELD goals (Closing the Gap)"]
[{"$nulls":3},"2.  Strategies to meet ELA/Math/ELD goals (Closing the Gap)"]
[{"$nulls":3},"2.  Strategies to meet ELA/Math/ELD goals (Closing the Gap)"]
[{"$nulls":3},"3.  Strategies to meet ELA/Math/ELD goals (Professional Development)"]
[{"$nulls":3},"3.  Strategies to meet ELA/Math/ELD goals (Professional Development)"]
[{"$nulls":3},"3.  Strategies to meet ELA/Math/ELD goals (Professional Development)"]
[{"$nulls":3},"4.  Strategies to meet graduation/promotion rates (Social/Emotional Supports)"]
[{"$nulls":3},"4.  Strategies to meet graduation/promotion rates (Social/Emotional Supports)"]
[{"$nulls":3},"5.  Strategies to meet parent engagement goals"]
[{"$nulls":3},"5.  Strategies to meet parent engagement goals"]
[{"$nulls":3},"LCFF Intervention Supports"]
[{"$nulls":3},"LCFF Intervention Supports"]
[{"$nulls":3},"LCFF Intervention Supports"]
[{"$nulls":3},"LCFF Intervention Supports"]
[{"$nulls":3},"LCFF Intervention Supports"]
[{"$nulls":3},"LCFF Intervention Supports"]
[{"$nulls":3},"LCFF Intervention Supports"]
[{"$nulls":3},"1.  Strategies to meet ELA/Math/ELD goals (Maximizing Instructional Time)"]
[{"$nulls":3},"1.  Strategies to meet ELA/Math/ELD goals (Maximizing Instructional Time)"]
[{"$nulls":3},"1.  Strategies to meet ELA/Math/ELD goals (Maximizing Instructional Time)"]
[{"$nulls":3},"1.  Strategies to meet ELA/Math/ELD goals (Maximizing Instructional Time)"]
[{"$nulls":3},"1.  Strategies to meet ELA/Math/ELD goals (Maximizing Instructional Time)"]
[{"$nulls":3},"2.  Strategies to meet ELA/Math/ELD goals (Closing the Gap)"]
[{"$nulls":3},"3.  Strategies to meet ELA/Math/ELD goals (Professional Development)"]
[{"$nulls":3},"3.  Strategies to meet ELA/Math/ELD goals (Professional Development)"]
[{"$nulls":3},"3.  Strategies to meet ELA/Math/ELD goals (Professional Development)"]
[{"$nulls":3},"4.  Strategies to meet graduation/promotion rates (Social/Emotional Supports)"]
[{"$nulls":3},"5.  Strategies to meet parent engagement goals"]
[{"$nulls":3},"5.  Strategies to meet parent engagement goals"]
[{"$nulls":3},"5.  Strategies to meet parent engagement goals"]
[{"$nulls":3},"5.  Strategies to meet parent engagement goals"]
[{"$nulls":3},"5.  Strategies to meet parent engagement goals"]
[{"$nulls":3},"5.  Strategies to meet parent engagement goals"]
[{"$nulls":3},"5.  Strategies to meet parent engagement goals"]
[{"$nulls":3},"LCFF Intervention Supports"]
[{"$nulls":3},"LCFF Intervention Supports"]
[{"$nulls":3},"LCFF Intervention Supports"]
[{"$nulls":3},"1.  Strategies to meet ELA/Math/ELD goals (Maximizing Instructional Time)"]
[{"$nulls":3},"2.  Strategies to meet ELA/Math/ELD goals (Closing the Gap)"]
[{"$nulls":3},"5.  Strategies to meet parent engagement goals"]
[{"$nulls":3},"LCFF Intervention Supports"]
[{"$nulls":3},"LCFF Intervention Supports"]
[{"$nulls":3},"1.  Strategies to meet ELA/Math/ELD goals (Maximizing Instructional Time)"]
[{"$nulls":3},"2.  Strategies to meet ELA/Math/ELD goals (Closing the Gap)"]
[{"$nulls":3},"3.  Strategies to meet ELA/Math/ELD goals (Professional Development)"]
[{"$nulls":3},"5.  Strategies to meet parent engagement goals"]
[{"$nulls":3},"5.  Strategies to meet parent engagement goals"]
[{"$nulls":3},"LCFF Intervention Supports"]
[{"$nulls":3},"LCFF Intervention Supports"]
[{"$nulls":3},"LCFF Intervention Supports"]
[{"$nulls":3},"LCFF Intervention Supports"]
[{"$nulls":3},"LCFF Intervention Supports"]
[{"$nulls":3},"1.  Strategies to meet ELA/Math/ELD goals (Maximizing Instructional Time)"]
[{"$nulls":3},"1.  Strategies to meet ELA/Math/ELD goals (Maximizing Instructional Time)"]
[{"$nulls":3},"1.  Strategies to meet ELA/Math/ELD goals (Maximizing Instructional Time)"]
[{"$nulls":3},"1.  Strategies to meet ELA/Math/ELD goals (Maximizing Instructional Time)"]
[{"$nulls":3},"1.  Strategies to meet ELA/Math/ELD goals (Maximizing Instructional Time)"]
[{"$nulls":3},"1.  Strategies to meet ELA/Math/ELD goals (Maximizing Instructional Time)"]
[{"$nulls":3},"1.  Strategies to meet ELA/Math/ELD goals (Maximizing Instructional Time)"]
[{"$nulls":3},"LCFF Intervention Supports"]
[{"$nulls":3},"1.  Strategies to meet ELA/Math/ELD goals (Maximizing Instructional Time)"]
[{"$nulls":3},"5.  Strategies to meet parent engagement goals"]
[{"$nulls":3},"LCFF Intervention Supports"]
[{"$nulls":3},"1.  Strategies to meet ELA/Math/ELD goals (Maximizing Instructional Time)"]
[{"$nulls":3},"2.  Strategies to meet ELA/Math/ELD goals (Closing the Gap)"]
[{"$nulls":3},"3.  Strategies to meet ELA/Math/ELD goals (Professional Development)"]
[{"$nulls":3},"3.  Strategies to meet ELA/Math/ELD goals (Professional Development)"]
[{"$nulls":3},"3.  Strategies to meet ELA/Math/ELD goals (Professional Development)"]
[{"$nulls":3},"5.  Strategies to meet parent engagement goals"]
[{"$nulls":3},"LCFF Intervention Supports"]
[{"$nulls":3},"LCFF Intervention Supports"]
[{"$nulls":3},"LCFF Intervention Supports"]
[{"$nulls":3},"LCFF Intervention Supports"]
[{"$nulls":3},"LCFF Intervention Supports"]
[{"$nulls":3},"LCFF Intervention Supports"]
[{"$nulls":3},"LCFF Intervention Supports"]
[{"$nulls":3},"1.  Strategies to meet ELA/Math/ELD goals (Maximizing Instructional Time)"]
[{"$nulls":3},"1.  Strategies to meet ELA/Math/ELD goals (Maximizing Instructional Time)"]
[{"$nulls":3},"1.  Strategies to meet ELA/Math/ELD goals (Maximizing Instructional Time)"]
[{"$nulls":3},"1.  Strategies to meet ELA/Math/ELD goals (Maximizing Instructional Time)"]
[{"$nulls":3},"1.  Strategies to meet ELA/Math/ELD goals (Maximizing Instructional Time)"]
[{"$nulls":3},"2.  Strategies to meet ELA/Math/ELD goals (Closing the Gap)"]
[{"$nulls":3},"2.  Strategies to meet ELA/Math/ELD goals (Closing the Gap)"]
[{"$nulls":3},"3.  Strategies to meet ELA/Math/ELD goals (Professional Development)"]
[{"$nulls":3},"3.  Strategies to meet ELA/Math/ELD goals (Professional Development)"]
[{"$nulls":3},"3.  Strategies to meet ELA/Math/ELD goals (Professional Development)"]
[{"$nulls":3},"4.  Strategies to meet graduation/promotion rates (Social/Emotional Supports)"]
[{"$nulls":3},"5.  Strategies to meet parent engagement goals"]
[{"$nulls":3},"5.  Strategies to meet parent engagement goals"]
[{"$nulls":3},"5.  Strategies to meet parent engagement goals"]
[{"$nulls":3},"5.  Strategies to meet parent engagement goals"]
[{"$nulls":3},"5.  Strategies to meet parent engagement goals"]
[{"$nulls":3},"LCFF Intervention Supports"]
[{"$nulls":3},"LCFF Intervention Supports"]
[{"$nulls":3},"LCFF Intervention Supports"]
[{"$nulls":3},"LCFF Intervention Supports"]
[{"$nulls":3},"LCFF Intervention Supports"]
[{"$nulls":3},"LCFF Intervention Supports"]
[{"$nulls":3},"LCFF Intervention Supports"]
[{"$nulls":3},"LCFF Intervention Supports"]
[{"$nulls":3},"1.  Strategies to meet ELA/Math/ELD goals (Maximizing Instructional Time)"]
[{"$nulls":3},"1.  Strategies to meet ELA/Math/ELD goals (Maximizing Instructional Time)"]
[{"$nulls":3},"1.  Strategies to meet ELA/Math/ELD goals (Maximizing Instructional Time)"]
[{"$nulls":3},"1.  Strategies to meet ELA/Math/ELD goals (Maximizing Instructional Time)"]
[{"$nulls":3},"1.  Strategies to meet ELA/Math/ELD goals (Maximizing Instructional Time)"]
[{"$nulls":3},"1.  Strategies to meet ELA/Math/ELD goals (Maximizing Instructional Time)"]
[{"$nulls":3},"1.  Strategies to meet ELA/Math/ELD goals (Maximizing Instructional Time)"]
[{"$nulls":3},"1.  Strategies to meet ELA/Math/ELD goals (Maximizing Instructional Time)"]
[{"$nulls":3},"5.  Strategies to meet parent engagement goals"]
[{"$nulls":3},"5.  Strategies to meet parent engagement goals"]
[{"$nulls":3},"LCFF Intervention Supports"]
[{"$nulls":3},"LCFF Intervention Supports"]
[{"$nulls":3},"LCFF Intervention Supports"]
[{"$nulls":3},"LCFF Intervention Supports"]
[{"$nulls":3},"LCFF Intervention Supports"]
[{"$nulls":3},"LCFF Intervention Supports"]
[{"$nulls":3},"LCFF Intervention Supports"]
[{"$nulls":3},"1.  Strategies to meet ELA/Math/ELD goals (Maximizing Instructional Time)"]
[{"$nulls":3},"1.  Strategies to meet ELA/Math/ELD goals (Maximizing Instructional Time)"]
[{"$nulls":3},"1.  Strategies to meet ELA/Math/ELD goals (Maximizing Instructional Time)"]
[{"$nulls":3},"1.  Strategies to meet ELA/Math/ELD goals (Maximizing Instructional Time)"]
[{"$nulls":3},"1.  Strategies to meet ELA/Math/ELD goals (Maximizing Instructional Time)"]
[{"$nulls":3},"1.  Strategies to meet ELA/Math/ELD goals (Maximizing Instructional Time)"]
[{"$nulls":3},"1.  Strategies to meet ELA/Math/ELD goals (Maximizing Instructional Time)"]
[{"$nulls":3},"1.  Strategies to meet ELA/Math/ELD goals (Maximizing Instructional Time)"]
[{"$nulls":3},"5.  Strategies to meet parent engagement goals"]
[{"$nulls":3},"5.  Strategies to meet parent engagement goals"]
[{"$nulls":3},"LCFF Intervention Supports"]
[{"$nulls":3},"LCFF Intervention Supports"]
[{"$nulls":3},"LCFF Intervention Supports"]
[{"$nulls":3},"LCFF Intervention Supports"]
[{"$nulls":3},"LCFF Intervention Supports"]
[{"$nulls":3},"LCFF Intervention Supports"]
[{"$nulls":3},"1.  Strategies to meet ELA/Math/ELD goals (Maximizing Instructional Time)"]
[{"$nulls":3},"1.  Strategies to meet ELA/Math/ELD goals (Maximizing Instructional Time)"]
[{"$nulls":3},"1.  Strategies to meet ELA/Math/ELD goals (Maximizing Instructional Time)"]
[{"$nulls":3},"1.  Strategies to meet ELA/Math/ELD goals (Maximizing Instructional Time)"]
[{"$nulls":3},"1.  Strategies to meet ELA/Math/ELD goals (Maximizing Instructional Time)"]
[{"$nulls":3},"3.  Strategies to meet ELA/Math/ELD goals (Professional Development)"]
[{"$nulls":3},"5.  Strategies to meet parent engagement goals"]
[{"$nulls":3},"5.  Strategies to meet parent engagement goals"]
[{"$nulls":3},"LCFF Intervention Supports"]
[{"$nulls":3},"LCFF Intervention Supports"]
[{"$nulls":3},"LCFF Intervention Supports"]
[{"$nulls":3},"LCFF Intervention Supports"]
[{"$nulls":3},"LCFF Intervention Supports"]
[{"$nulls":3},"LCFF Intervention Supports"]
[{"$nulls":3},"LCFF Intervention Supports"]
[{"$nulls":3},"LCFF Intervention Supports"]
[{"$nulls":3},"LCFF Intervention Supports"]
[{"$nulls":3},"LCFF Intervention Supports"]
[{"$nulls":3},"LCFF Intervention Supports"]
[{"$nulls":3},"LCFF Intervention Supports"]
[{"$nulls":3},"1.  Strategies to meet ELA/Math/ELD goals (Maximizing Instructional Time)"]
[{"$nulls":3},"1.  Strategies to meet ELA/Math/ELD goals (Maximizing Instructional Time)"]
[{"$nulls":3},"1.  Strategies to meet ELA/Math/ELD goals (Maximizing Instructional Time)"]
[{"$nulls":3},"1.  Strategies to meet ELA/Math/ELD goals (Maximizing Instructional Time)"]
[{"$nulls":3},"1.  Strategies to meet ELA/Math/ELD goals (Maximizing Instructional Time)"]
[{"$nulls":3},"1.  Strategies to meet ELA/Math/ELD goals (Maximizing Instructional Time)"]
[{"$nulls":3},"1.  Strategies to meet ELA/Math/ELD goals (Maximizing Instructional Time)"]
[{"$nulls":3},"1.  Strategies to meet ELA/Math/ELD goals (Maximizing Instructional Time)"]
[{"$nulls":3},"2.  Strategies to meet ELA/Math/ELD goals (Closing the Gap)"]
[{"$nulls":3},"5.  Strategies to meet parent engagement goals"]
[{"$nulls":3},"5.  Strategies to meet parent engagement goals"]
[{"$nulls":3},"LCFF Intervention Supports"]
[{"$nulls":3},"LCFF Intervention Supports"]
[{"$nulls":3},"LCFF Intervention Supports"]
[{"$nulls":3},"LCFF Intervention Supports"]
[{"$nulls":3},"LCFF Intervention Supports"]
[{"$nulls":3},"LCFF Intervention Supports"]
[{"$nulls":3},"LCFF Intervention Supports"]
[{"$nulls":3},"LCFF Intervention Supports"]
[{"$nulls":3},"1.  Strategies to meet ELA/Math/ELD goals (Maximizing Instructional Time)"]
[{"$nulls":3},"2.  Strategies to meet ELA/Math/ELD goals (Closing the Gap)"]
[{"$nulls":3},"2.  Strategies to meet ELA/Math/ELD goals (Closing the Gap)"]
[{"$nulls":3},"5.  Strategies to meet parent engagement goals"]
[{"$nulls":3},"LCFF Intervention Supports"]
[{"$nulls":3},"LCFF Intervention Supports"]
[{"$nulls":3},"1.  Strategies to meet ELA/Math/ELD goals (Maximizing Instructional Time)"]
[{"$nulls":3},"1.  Strategies to meet ELA/Math/ELD goals (Maximizing Instructional Time)"]
[{"$nulls":3},"2.  Strategies to meet ELA/Math/ELD goals (Closing the Gap)"]
[{"$nulls":3},"3.  Strategies to meet ELA/Math/ELD goals (Professional Development)"]
[{"$nulls":3},"4.  Strategies to meet graduation/promotion rates (Social/Emotional Supports)"]
[{"$nulls":3},"5.  Strategies to meet parent engagement goals"]
[{"$nulls":3},"5.  Strategies to meet parent engagement goals"]
[{"$nulls":3},"LCFF Intervention Supports"]
[{"$nulls":3},"LCFF Intervention Supports"]
[{"$nulls":3},"LCFF Intervention Supports"]
[{"$nulls":3},"1.  Strategies to meet ELA/Math/ELD goals (Maximizing Instructional Time)"]
[{"$nulls":3},"1.  Strategies to meet ELA/Math/ELD goals (Maximizing Instructional Time)"]
[{"$nulls":3},"2.  Strategies to meet ELA/Math/ELD goals (Closing the Gap)"]
[{"$nulls":3},"2.  Strategies to meet ELA/Math/ELD goals (Closing the Gap)"]
[{"$nulls":3},"2.  Strategies to meet ELA/Math/ELD goals (Closing the Gap)"]
[{"$nulls":3},"2.  Strategies to meet ELA/Math/ELD goals (Closing the Gap)"]
[{"$nulls":3},"2.  Strategies to meet ELA/Math/ELD goals (Closing the Gap)"]
[{"$nulls":3},"5.  Strategies to meet parent engagement goals"]
[{"$nulls":3},"5.  Strategies to meet parent engagement goals"]
[{"$nulls":3},"LCFF Intervention Supports"]
[{"$nulls":3},"LCFF Intervention Supports"]
[{"$nulls":3},"LCFF Intervention Supports"]